{"text_format":"1","workbook":"xlsx","n_sheets":17,"sheets":["改修履歴","はじめにお読みください","【必須入力】報告書一覧","【任意入力】所有者・管理者情報","【必須入力】調査者情報","【任意入力】指摘の具体的内容","年度","パラメタ","出力用＿報告書","出力用＿概要書","出力用＿調査表","出力用＿調査表_旧","出力用＿関係写真","旧_出力用＿関係写真","住所検索用","写真縮小用","図面縮小用"],"not_rendered":{"charts":3,"images":2,"macros":1,"external_links":3,"defined_names":55,"comments":0,"pivot_tables":0},"unopened":[],"bounds":{"document_bytes":16777216,"sheet_cells":100000,"rows_first":2000,"rows_last":500,"rows_between":2000,"halvings":0,"cell_chars":16384,"cell_head_chars":4096},"cells_cut":0,"cells_raw":0,"read":"whole","date_system":"1900"}

{"sheet":"改修履歴","index":0,"n_rows":70,"n_cols":2,"rows_kept":70,"cut":false,"hidden":true,"merged":[]}
["2023/04"]
[null,"ファイル名に和暦を追加"]
[null,"枠外に最終更新日を追加"]
[null,"入力補助を追加（\"指摘の具体的内容\"、\"改善策の具体的内容\"）"]
["2023/06"]
[null,"「その他特記事項」がクリアされないよう改修"]
[null,"半角カンマを全角カンマに修正する処理を追加"]
[null,"月が\"12\"以上の場合、メッセージを表示する処理を追加"]
[null,"ボタン他デザイン変更"]
["2023/07"]
[null,"整理番号から年度判定を行う"]
[null,"年度シート追加"]
["2023/08"]
[null,"第二面　階別用途別床面積の注釈文言変更"]
[null,"旧様式取り込み対応"]
[null,"パラメタシートの文言変更"]
[null,"”異常\"の統一（異状／異常）"]
[null,"第二面　外壁材仕上げ「タイル・石貼り・モルタル」以外は選択不可に改修"]
["2023/09"]
[null,"一覧選択時にB列ではなくA列からコピーするよう変更"]
["2023/11"]
[null,"パラメタシートAB列の文言変更（自動車車庫等→駐車場・駐輪場）"]
["2023/12"]
[null,"報告書２面6．ロ、ニを１列左にシフト"]
[null,"Zip失敗時に日付フォルダを残すよう処理追加"]
["2024/02"]
[null,"圧縮ファイル名に建物名を追加"]
[null,"第一面のリストボックスを選択しても入力値が消えないよう修正"]
[null,"「出力用＿写真関係」シートを置き換え\n（\\\\10.11.240.1\\定期報告共有\\02_定期報告書受付システム\\定期報告システム詳細\\100_特定建築物等定期報告データベース\\帳票出力\\テンプレート\\特定建築物等テンプレート_報告書_関係写真.xlsx）"]
[null,"調査結果で既存不適格を選択した場合、『第一面．５．ロ』に\"(適合不)\"を追加"]
["2024/03"]
[null,"パラメタシートに外壁全面打診を追加（59列～60列）"]
[null,"第二面-外壁全面打診・部分打診の選択肢を変更"]
[null,"対象区分で指摘区分が指摘ありまたは既存不適格の場合、\"(既存不)\"を付記"]
["2024/06"]
[null,"outReport2：その他確認事項の参照先を修正"]
[null,"frmRepResult1_BufToForm：2-(11)是正ありにチェックがつかない不具合を修正"]
["2024/07"]
[null,"出力用＿報告書：第二面の床面積の列を変更（AD→AC、AM→AL）"]
[null,"出力用＿概要書：第二面の床面積の列を変更（AD→AC、AM→AL）"]
["2024/08"]
[null,"元号と年の整合性チェックを追加"]
[null,"調査者２と３：リスト未選択時は入力値を削除に戻す"]
["2024/09"]
[null,"調査結果②、③：改善予定年月を数値のみ可とする"]
[null,"調査結果②、③：改善予定月に入力値チェックを追加"]
[null,"指摘なしは指摘内容以降を出力しない"]
[null,"日付整合性チェックを追加"]
["2024/11"]
[null,"第二面：地下階数が空白の場合は\"0\"をセット"]
[null,"調査結果④防火設備の有無：共同住宅の場合は\"無\"をデフォルト表示"]
["2025/01"]
[null,"調査者情報の登録番号に数値以外を入力できるよう改修"]
["2025/07"]
[null,"調査結果に「スプリンクラー」と「上記以外の調査項目」を追加"]
[null,"　　（「スプリンクラー」は調査結果②に、「上記以外の調査項目」は新たにタブを追加）"]
[null,"　　　追加するデータは、すべて報告書一覧の後ろにデータをセット"]
[null,"出力用＿報告書：第三面の２.調査状況に「７．上記以外」を追加"]
[null,"出力用＿調査表：「スプリンクラー」と「上記以外の調査項目」を追加"]
[null,"パラメタのA、B列（調査項目）を修正"]
[null,"「上記以外の調査項目」7(7)～7(13)は共同住宅以外の場合対象外に修正"]
[]
[null,"「出力用＿報告書：第三面の２.調査状況に「７．上記以外」を追加」を削除（追加していたが不要となったため）"]
[]
[null,"追加項目シートのチェックボックスが戻るのを修正"]
[null,"「出力用＿調査表」4(29)～4(31)の文言変更：\"(防火扉を除く)\"を追加"]
[]
[null,"旧様式からコピーされた場合に「スプリンクラー」の4(37)が対象外になる不具合を修正"]
[null,"概要書のリンクが外れていたのを修正"]
[null,"関係写真の印刷範囲を修正"]

{"sheet":"はじめにお読みください","index":1,"n_rows":39,"n_cols":22,"rows_kept":39,"cut":false,"hidden":false,"merged":[]}
["※はじめにお読みください"]
[null,"定期報告支援ツール（このExcelファイル）についての注意事項"]
[]
[null,"１．","本Excelは、福岡市の特定建築物等の定期報告を行うための支援ツールです。"]
[]
[null,"２．","各シートについて"]
[null,null,"No","シート名",null,null,null,null,null,null,null,"入力可否",null,"シートの説明"]
[null,null,"①","はじめにお読みください。",null,null,null,null,null,null,null,"不要",null,"本シートです。"]
[null,null,"②","【必須入力】報告書一覧",null,null,null,null,null,null,null,"必須",null,"報告書情報の新規登録・編集・削除、及び、申請用ファイルの"]
[null,null,null,null,null,null,null,null,null,null,null,null,null,"作成を行います。"]
[null,null,null,null,null,null,null,null,null,null,null,null,null,"過去に作成した報告書様式の取り込みが可能です。"]
[null,null,"③","【任意入力】所有者・管理者情報",null,null,null,null,null,null,null,"任意",null,"所有者・管理者情報の事前登録を行います。"]
[null,null,"④","【必須入力】調査者情報",null,null,null,null,null,null,null,"必須",null,"調査者情報の事前登録を行います。"]
[null,null,"⑤","【任意入力】指摘の具体的内容",null,null,null,null,null,null,null,"任意",null,"調査結果表で記入する指摘の具体的内容の事前登録を行います。"]
[]
[null,"３．","使用方法"]
[null,null,"・","【必須入力】調査者情報",null,null,null,null,null,null,"シート、",null,null,"【任意入力】所有者・管理者情報",null,null,null,null,null,null,null,"シートを事前に入力の上、"]
[null,null,null,"【必須入力】報告書一覧",null,null,null,null,null,null,"シートを入力してください。"]
[]
[null,null,"・","②③④のシートへの入力は、直接手入力できません。"]
[null,null,null,"入力画面を開いてから、入力を行ってください。"]
[]
[null,null,"・","入力画面を開いている間は、他のエクセルを操作することはできません。他のエクセルを操作する場合は、入力画面を"]
[null,null,null,"閉じてから操作を行ってください。"]
[]
[null,null,"・","入力後は、各シート左上にある「保存する」ボタンをクリックして保存してください。"]
[]
[null,null,"・","【必須入力】報告書一覧",null,null,null,null,null,null,"シートから、以下の操作が行えます。"]
[]
[null,null,null,"報告書Excelの作成：",null,null,null,null,null,"報告書様式の下記３様式の出力が可能です。"]
[null,null,null,null,null,null,null,null,null,null,"「定期調査報告書・定期調査報告概要書（第36号の2、3様式） 」令和7年度改訂版"]
[null,null,null,null,null,null,null,null,null,null,"「調査結果表（別記）」令和7年度改訂版"]
[null,null,null,null,null,null,null,null,null,null,"「関係写真（別紙２様式）」令和7年度改訂版"]
[]
[null,null,null,"申請用ファイルの作成：",null,null,null,null,null,"ホームページで申請するための、申請用ファイルの作成が可能です。"]
[]
[null,null,null,"様式取込み：",null,null,null,null,null,"過去に作成した報告書様式を一覧へ取り込むことが可能です。"]
[null,null,null,null,null,null,null,null,null,"※意図したとおりに取り込まれない場合がございますので、取込み後、"]
[null,null,null,null,null,null,null,null,null,"編集ボタンで画面を開いて内容を確認してください。"]

{"sheet":"【必須入力】報告書一覧","index":2,"n_rows":182,"n_cols":2357,"rows_kept":182,"cut":false,"hidden":false,"merged":[[5,3,5,4]]}
[null,{"$f":"(ROW()-8)/1 + 1","v":-6}]
[null,null,null,null,null,null,null,null,null,null,null,null,null,null,null,null,null,null,null,null,null,null,null,null,null,null,null,null,null,null,null,null,null,null,null,null,null,null,null,null,null,null,null,null,null,null,null,null,null,null,null,null,null,null,null,null,null,null,null,null,null,null,null,null,null,null,null,null,null,null,null,null,null,null,null,null,null,null,null,null,null,null,null,null,null,null,null,null,null,null,null,null,null,null,null,null,null,null,null,null,null,null,null,null,null,null,null,null,null,null,null,null,null,null,null,null,null,null,null,null,null,null,null,null,null,null,null,null,null,null,null,null,null,null,null,null,null,null,null,null,null,null,null,null,null,null,null,null,null,null,null,null,null,null,null,null,null,null,null,null,null,null,null,null,null,null,null,null,null,null,null,null,null,null,null,null,null,null,null,null,null,null,null,null,null,null,null,null,null,null,null,null,null,null,null,null,null,null,null,null,null,null,null,null,null,null,null,null,null,null,null,null,null,null,null,null,null,"　　　　　　　　　　　　　　　　　　　　　　　　　　　　　　　　　　　　　　　　　　　　　　　　　　　　　　　　　　　　　　　　　　　　　　　　　　　　　　　　　　　　　　　　　　　　　　　　　　　　　　　　　　　　　　　　　　　　　　　　　　　　　　　　　　　　　　　　　　　　　　　　　　　　　　　　　　　　　　　　　　　　　　　　　　　　　　　　　　　　　　　　　　　　　　　　　　　　　　　　　　　　　　　　　　　　　　　　　　　　　　　　　　　　　　　　　　　　　　　　　　　　　　　　　　　　　　　　　　　　　　　　　　　　　　　　　　　　　　　　　　　　　　　　　　　　　　　　　　　　　　　　　　　　　　　　　　　　　　　　　　　　　　　　　　　　　　　　　　　　　　　　　　　　　　　　　　　　　　　　　　　　　　　　　　　　　　　　　　　　　　　　　　　　　　　　　　　　　　　　　　　　　　　　　　　　　　　　　　　　　　　　　　　　　　　　　　　　　　　　　　　　　　　　　　　　　　　　　　　　　　　　　　　　　　　　　　　　　　　　　　　　　　　　　　　　　　　　　　　　　　　　　　　　　　　　　　　　　　　　　　　　　　　　　　　　　　　　　　　　　　　　　　　　　　　　　　　　　　　　　　　　　　　　　　　　　　　　　　　　　　　　　　　　　　　　　　　　　　　　　　　　　　　　　　　　　　　　　　　　　　　　　　　　　　　　　　　　　　　　　　　　　　　　　　　　　　　　　　　　　　　　　　　　　　　　　　　　　　　　　　　　　　　　　　　　　　　　　　　　　　　　　　　　　　　　　　　　　　　　　　　　　　　　　　　　　　　　　　　　　　　　　　　　　　　　　　　　　　　　　　　　　　　　　　　　　　　　　　　　　　　　　　　　　　　　　　　　　　　　　　　　　　　　　　　　　　　　　　　　　　　　　　　　　　　　　　　　　　　　　　　　　　　　　　　　　　　　　　　　　　　　　　　　　　　　　　　　　　　　　　　　　　　　　　　　　　　　　　　　　　　　　　　　　　　　　　　　　　　　　　　　　　　　　　　　　　　　　　　　　　　　　　　　　　　　　　　　　　　　　　　　　　　　　　　　　　　　　　　　　　　　　　　　　　　　　　　　　　　　　　　　　　　　　　　　　　　　　　　　　　　　　　　　　　　　　　　　　　　　　　　　　　　　　　　　　　　　　　　　　　　　　　　　　　　　　　　　　　　　　　　　　　　　　　　　　　　　　　　　　　　　　　　　　　　　　　　　　　　　　　　　　　　　　　　　　　　　　　　　　　　　　　　　　　　　　　　　　　　　　　　　　　　　　　　　　　　　　　　　　　　　　　　　　　　　　　　　　　　　　　　　　　　　　　　　　　　　　　　　　　　　　　　　　　　　　　　　　　　　　　　　　　　　　　　　　　　　　　　　　　　　　　　　　　　　　　　　",null,null,null,null,null,null,null,null,null,null,null,null,null,null,null,null,null,null,null,null,null,null,null,"　　　　　　　　　　　　　　　　　　　　　　　　　　　　　　　　　　　　　　　　　　　　　　　　　　　　　　　　　　　　　　　　　　　　　　　　　　　　　　　　　　　　　　　　　　　　　　　　　　　　　　　　　　　　　　　　　　　　　　　　　　　　　　　　　　　　　　　　　　　　　　　　　　　　　　　　　　　　　　　　　　　　　　　　　　　　　　　　　　　　　　　　　　　　　　　　　　　　　　　　　　　　　　　　　　　　　　　　　　　　　　　　　　　　　　　　　　　　　　　　　　　　　　　　　　　　　　　　　　　　　　　　　　　　　　　　　　　　　　　　　　　　　　　　　　　　　　　　　　　　　　　　　　　　　　　　　　　　　　　　　　　　　　　　　　　　　　　　　　　　　　　　　　　　　　　　　　　　　　　　　　　　　　　　　　　　　　　　　　　　　　　　　　　　　　　　　　　　　　　　　　　　　　　　　　　　　　　　　　　　　　　　　　　　　　　　　　　　　　　　　　　　　　　　　　　　　　　　　　　　　　　　　　　　　　　　　　　　　　　　　　　　　　　　　　　　　　　　　　　　　　　　　　　　　　　　　　　　　　　　　　　　　　　　　　　　　　　　　　　　　　　　　　　　　　　　　　　　　　　　　　　　　　　　　　　　　　　　　　　　　　　　　　　　　　　　　　　　　　　　　　　　　　　　　　　　　　　　　　　　　　　　　　　　　　　　　　　　　　　　　　　　　　　　　　　　　　　　　　　　　　　　　　　　　　　　　　　　　　　　　　　　　　　　　　　　　　　　　　　　　　　　　　　　　　　　　　　　　　　　　　　　　　　　　　　　　　　　　　　　　　　　　　　　　　　　　　　　　　　　　　　　　　　　　　　　　　　　　　　　　　　　　　　　　　　　　　　　　　　　　　　　　　　　　　　　　　　　　　　　　　　　　　　　　　　　　　　　　　　　　　　　　　　　　　　　　　　　　　　　　　　　　　　　　　　　　　　　　　　　　　　　　　　　　　　　　　　　　　　　　　　　　　　　　　　　　　　　　　　　　　　　　　　　　　　　　　　　　　　　　　　　　　　　　　　　　　　　　　　　　　　　　　　　　　　　　　　　　　　　　　　　　　　　　　　　　　　　　　　　　　　　　　　　　　　　　　　　　　　　　　　　　　　　　　　　　　　　　　　　　　　　　　　　　　　　　　　　　　　　　　　　　　　　　　　　　　　　　　　　　　　　　　　　　　　　　　　　　　　　　　　　　　　　　　　　　　　　　　　　　　　　　　　　　　　　　　　　　　　　　　　　　　　　　　　　　　　　　　　　　　　　　　　　　　　　　　　　　　　　　　　　　　　　　　　　　　　　　　　　　　　　　　　　　　　　　　　　　　　　　　　　　　　　　　　　　　　　　　　　　　　　　　　　　　　　　　　　　　　　　　　　　　　　　　　　　　　　",null,null,null,null,null,null,null,null,null,null,null,null,"　　　　　　　　　　　　　　　　　　　　　　　　　　　　　　　　　　　　　　　　　　　　　　　　　　　　　　　　　　　　　　　　　　　　　　　　　　　　　　　　　　　　　　　　　　　　　　　　　　　　　　　　　　　　　　　　　　　　　　　　　　　　　　　　　　　　　　　　　　　　　　　　　　　　　　　　　　　　　　　　　　　　　　　　　　　　　　　　　　　　　　　　　　　　　　　　　　　　　　　　　　　　　　　　　　　　　　　　　　　　　　　　　　　　　　　　　　　　　　　　　　　　　　　　　　　　　　　　　　　　　　　　　　　　　　　　　　　　　　　　　　　　　　　　　　　　　　　　　　　　　　　　　　　　　　　　　　　　　　　　　　　　　　　　　　　　　　　　　　　　　　　　　　　　　　　　　　　　　　　　　　　　　　　　　　　　　　　　　　　　　　　　　　　　　　　　　　　　　　　　　　　　　　　　　　　　　　　　　　　　　　　　　　　　　　　　　　　　　　　　　　　　　　　　　　　　　　　　　　　　　　　　　　　　　　　　　　　　　　　　　　　　　　　　　　　　　　　　　　　　　　　　　　　　　　　　　　　　　　　　　　　　　　　　　　　　　　　　　　　　　　　　　　　　　　　　　　　　　　　　　　　　　　　　　　　　　　　　　　　　　　　　　　　　　　　　　　　　　　　　　　　　　　　　　　　　　　　　　　　　　　　　　　　　　　　　　　　　　　　　　　　　　　　　　　　　　　　　　　　　　　　　　　　　　　　　　　　　　　　　　　　　　　　　　　　　　　　　　　　　　　　　　　　　　　　　　　　　　　　　　　　　　　　　　　　　　　　　　　　　　　　　　　　　　　　　　　　　　　　　　　　　　　　　　　　　　　　　　　　　　　　　　　　　　　　　　　　　　　　　　　　　　　　　　　　　　　　　　　　　　　　　　　　　　　　　　　　　　　　　　　　　　　　　　　　　　　　　　　　　　　　　　　　　　　　　　　　　　　　　　　　　　　　　　　　　　　　　　　　　　　　　　　　　　　　　　　　　　　　　　　　　　　　　　　　　　　　　　　　　　　　　　　　　　　　　　　　　　　　　　　　　　　　　　　　　　　　　　　　　　　　　　　　　　　　　　　　　　　　　　　　　　　　　　　　　　　　　　　　　　　　　　　　　　　　　　　　　　　　　　　　　　　　　　　　　　　　　　　　　　　　　　　　　　　　　　　　　　　　　　　　　　　　　　　　　　　　　　　　　　　　　　　　　　　　　　　　　　　　　　　　　　　　　　　　　　　　　　　　　　　　　　　　　　　　　　　　　　　　　　　　　　　　　　　　　　　　　　　　　　　　　　　　　　　　　　　　　　　　　　　　　　　　　　　　　　　　　　　　　　　　　　　　　　　　　　　　　　　　　　　　　　　　　　　　　　　　　　　　　　　　　　　　　　　　　　　　　"]
[]
[]
[]
[null,"報告書","報告書","出力状況",null,"第一面　４．報告対象建築物",null,null,null,null,"第一面",null,null,null,null,null,null,null,null,null,null,"第一面　1.所有者","第一面　1.所有者",null,null,null,null,null,null,null,"第一面　2.管理者","第一面　2.管理者",null,null,null,null,null,null,null,"第一面　3.調査者（代表となる調査者）",null,null,null,null,null,null,null,null,null,null,null,null,"第一面　3.調査者（その他の調査者）",null,null,null,null,null,null,null,null,null,null,null,null,"第一面　3.調査者（その他の調査者3）",null,null,null,null,null,null,null,null,null,null,null,null,null,"第一面　5.調査による指摘の概要",null,null,null,null,null,null,null,null,null,"第二面　1.敷地の位置",null,null,null,null,null,null,null,null,null,"第二面　2.建築物及びその敷地の概要",null,null,null,null,null,null,null,null,null,"第二面　3.階別用途別床面積",null,null,null,null,null,null,null,null,null,null,null,null,null,null,null,null,null,null,null,null,null,null,null,null,null,null,null,null,null,null,null,null,null,null,null,null,null,null,null,null,null,null,null,null,null,null,null,null,null,null,null,null,null,null,null,null,null,null,null,null,null,null,null,null,null,null,null,null,null,null,null,null,null,null,null,null,null,null,null,null,null,null,null,null,null,null,null,null,null,null,null,null,null,null,null,null,null,"第二面　４．性能検証等の運用",null,null,null,null,null,null,null,null,null,"第二面　５．増築、改築、用途変更等の経過",null,null,null,null,null,null,null,null,null,null,null,null,null,null,null,null,null,null,null,null,null,null,null,"第二面　6.関連図書の整備状況",null,null,null,null,null,null,null,null,null,null,null,null,null,null,null,null,null,null,null,null,null,null,null,null,null,null,null,null,"第二面　7.備考",null,null,null,null,null,null,null,"第三面　１.調査及び検査の状況",null,null,null,null,null,null,null,null,null,null,null,null,null,null,null,null,null,null,null,null,null,null,null,null,null,null,null,null,null,null,null,null,"第三面　2.調査の状況","第三面　2.調査の状況",null,null,null,null,null,null,null,null,null,null,null,null,null,null,null,null,null,null,null,null,null,null,null,null,null,null,null,null,null,null,null,null,null,null,null,null,null,null,null,null,null,null,null,null,null,null,null,null,null,null,null,null,"第三面　3.石綿添加調査状況","第三面　3.石綿添加調査状況",null,null,null,null,null,null,null,"第三面　4.耐震診断及び耐震改修の調査状況","第三面　4.耐震診断及び耐震改修の調査状況",null,null,null,null,null,null,null,null,null,null,"第三面　5.不具合等の状況",null,null,null,null,null,null,null,null,null,"第三面 6.備考",null,null,"第四面",null,null,null,null,null,null,null,null,null,null,null,null,null,null,null,null,null,null,null,null,null,null,null,null,null,null,null,null,null,null,null,null,null,null,null,null,null,null,null,null,null,null,null,null,null,null,null,null,null,null,null,null,null,null,null,null,null,null,null,null,null,null,null,null,null,null,null,null,null,null,null,null,"外壁材仕上げ",null,null,null,null,null,null,"外壁全面打診について",null,null,null,null,null,null,null,null,null,null,null,null,null,null,null,null,null,null,null,null,"調査結果表",null,null,null,null,null,null,null,null,null,null,null,null,null,null,null,null,null,null,null,null,null,null,null,null,null,null,null,null,null,null,null,null,null,null,null,null,null,null,null,null,null,null,null,null,null,null,null,null,null,null,null,null,null,null,null,null,null,null,null,null,null,null,null,null,null,null,null,null,null,null,null,null,null,null,null,null,null,null,null,null,null,null,null,null,null,null,null,null,null,null,null,null,null,null,null,null,null,null,null,null,null,null,null,null,null,null,null,null,null,null,null,null,null,null,null,null,null,null,null,null,null,null,null,null,null,null,null,null,null,null,null,null,null,null,null,null,null,null,null,null,null,null,null,null,null,null,null,null,null,null,null,null,null,null,null,null,null,null,null,null,null,null,null,null,null,null,null,null,null,null,null,null,null,null,null,null,null,null,null,null,null,null,null,null,null,null,null,null,null,null,null,null,null,null,null,null,null,null,null,null,null,null,null,null,null,null,null,null,null,null,null,null,null,null,null,null,null,null,null,null,null,null,null,null,null,null,null,null,null,null,null,null,null,null,null,null,null,null,null,null,null,null,null,null,null,null,null,null,null,null,null,null,null,null,null,null,null,null,null,null,null,null,null,null,null,null,null,null,null,null,null,null,null,null,null,null,null,null,null,null,null,null,null,null,null,null,null,null,null,null,null,null,null,null,null,null,null,null,null,null,null,null,null,null,null,null,null,null,null,null,null,null,null,null,null,null,null,null,null,null,null,null,null,null,null,null,null,null,null,null,null,null,null,null,null,null,null,null,null,null,null,null,null,null,null,null,null,null,null,null,null,null,null,null,null,null,null,null,null,null,null,null,null,null,null,null,null,null,null,null,null,null,null,null,null,null,null,null,null,null,null,null,null,null,null,null,null,null,null,null,null,null,null,null,null,null,null,null,null,null,null,null,null,null,null,null,null,null,null,null,null,null,null,null,null,null,null,null,null,null,null,null,null,null,null,null,null,null,null,null,null,null,null,null,null,null,null,null,null,null,null,null,null,null,null,null,null,null,null,null,null,null,null,null,null,null,null,null,null,null,null,null,null,null,null,null,null,null,null,null,null,null,null,null,null,null,null,null,null,null,null,null,null,null,null,null,null,null,null,null,null,null,null,null,null,null,null,null,null,null,null,null,null,null,null,null,null,null,null,null,null,null,null,null,null,null,null,null,null,null,null,null,null,null,null,null,null,null,null,null,null,null,null,null,null,null,null,null,null,null,null,null,null,null,null,null,null,null,null,null,null,null,null,null,null,null,null,null,null,null,null,null,null,null,null,null,null,null,null,null,null,null,null,null,null,null,null,null,null,null,null,null,null,null,null,null,null,null,null,null,null,null,null,null,null,null,null,null,null,null,null,null,null,null,null,null,null,null,null,null,null,null,null,null,null,null,null,null,null,null,null,null,null,null,null,null,null,null,null,null,null,null,null,null,null,null,null,null,null,null,null,null,null,null,null,null,null,null,null,null,null,null,null,null,null,null,null,null,null,"調査結果表",null,null,null,null,null,null,null,null,null,null,null,null,null,null,null,null,null,null,null,null,null,null,null,null,null,null,null,null,null,null,null,null,null,null,null,null,null,null,null,null,null,null,null,null,null,null,null,null,null,null,null,null,null,null,null,null,null,null,null,null,null,null,null,null,null,null,null,null,null,null,null,null,null,null,null,null,null,null,null,null,null,null,null,null,null,null,null,null,null,null,null,null,null,null,null,null,null,null,null,null,null,null,null,null,null,null,null,null,null,null,null,null,null,null,null,null,null,null,null,null,null,null,null,null,null,null,null,null,null,null,null,null,null,null,null,null,null,null,null,null,null,null,null,null,null,null,null,null,null,null,null,null,null,null,null,null,null,null,null,null,null,null,null,null,null,null,null,null,null,null,null,null,null,null,null,null,null,null,null,null,null,null,null,null,null,null,null,null,null,null,null,null,null,null,null,null,null,null,null,null,null,null,null,null,null,null,null,null,null,null,null,null,null,null,null,null,null,null,null,null,null,null,null,null,null,null,null,null,null,null,null,null,null,null,null,null,null,null,null,null,null,null,null,null,null,null,null,null,null,null,null,null,null,null,null,null,null,null,null,null,null,null,null,null,null,null,null,null,null,null,null,null,null,null,null,null,null,null,null,null,null,null,null,null,null,null,null,null,null,null,null,null,null,null,null,null,null,null,null,null,null,null,null,null,null,null,null,null,null,null,null,null,null,null,null,null,null,null,null,null,null,null,null,null,null,null,null,null,null,null,null,null,null,null,null,null,null,null,null,null,null,null,null,null,null,null,null,null,null,null,null,null,null,null,null,null,null,null,null,null,null,null,null,null,null,null,null,null,null,null,null,null,null,null,null,null,null,null,null,null,null,null,null,null,null,null,null,null,null,null,null,null,null,null,null,null,null,null,null,null,null,null,null,null,null,null,null,null,null,null,null,null,null,null,null,null,null,null,null,null,null,null,null,null,null,null,null,null,null,null,null,null,null,null,null,null,null,null,null,null,null,null,null,null,null,null,null,null,null,null,null,null,null,null,null,null,null,null,null,null,null,null,null,null,null,null,null,null,null,null,null,null,null,null,null,null,null,null,null,null,null,null,null,null,null,null,null,null,null,null,null,null,null,null,null,null,null,null,null,null,null,null,null,null,null,null,null,null,null,null,null,null,null,null,null,null,null,null,null,null,null,null,null,null,null,null,null,null,null,null,null,null,null,null,null,null,null,null,null,null,null,null,null,null,null,null,null,null,null,null,null,null,null,null,null,null,null,null,null,null,null,null,null,null,null,null,null,null,null,null,null,null,null,null,null,null,null,null,null,null,null,null,null,null,null,null,null,null,null,null,null,null,null,null,null,null,null,null,null,null,null,null,null,null,null,null,null,null,null,null,null,null,null,null,null,null,null,null,null,null,null,null,null,null,null,null,null,null,null,null,null,null,null,null,null,null,null,null,null,null,null,null,null,null,null,null,null,null,null,null,null,null,null,null,null,null,null,null,null,null,null,null,null,null,null,null,null,null,null,null,null,null,null,null,null,null,null,null,null,null,"防火設備",null,null,null,null,null,null,null,null,"1",null,null,null,"2",null,null,null,"3",null,null,null,"4",null,null,null,"5",null,null,null,"6",null,null,null,"7",null,null,null,"8",null,null,null,"9",null,null,null,"10",null,null,null,"11",null,null,null,"12",null,null,null,"13",null,null,null,"14",null,null,null,"15",null,null,null,"16",null,null,null,"17",null,null,null,"18",null,null,null,"19",null,null,null,"20",null,null,null,"21",null,null,null,"22",null,null,null,"23",null,null,null,"24",null,null,null,"25",null,null,null,"26",null,null,null,"27",null,null,null,"28",null,null,null,"29",null,null,null,"30",null,null,null,"31",null,null,null,"32",null,null,null,"33",null,null,null,"34",null,null,null,"35",null,null,null,"36",null,null,null,"37",null,null,null,"38",null,null,null,"39",null,null,null,"40",null,null,null,"41",null,null,null,"42",null,null,null,"43",null,null,null,"44",null,null,null,"45",null,null,null,"46",null,null,null,"47",null,null,null,"48",null,null,null,"49",null,null,null,"50",null,null,null,"51",null,null,null,"52",null,null,null,"53",null,null,null,"54",null,null,null,"55",null,null,null,"56",null,null,null,"57",null,null,null,"58",null,null,null,"59",null,null,null,"60",null,null,null,"61",null,null,null,"62",null,null,null,"63",null,null,null,"64",null,null,null,"65",null,null,null,"66",null,null,null,"67",null,null,null,"68",null,null,null,"69",null,null,null,"70",null,null,null,"71",null,null,null,"72",null,null,null,"73",null,null,null,"74",null,null,null,"75",null,null,null,"76",null,null,null,"77",null,null,null,"78",null,null,null,"79",null,null,null,"80",null,null,null,"81",null,null,null,"82",null,null,null,"83",null,null,null,"84",null,null,null,"85",null,null,null,"86",null,null,null,"87",null,null,null,"88",null,null,null,"89",null,null,null,"90",null,null,null,"91",null,null,null,"92",null,null,null,"93",null,null,null,"94",null,null,null,"95",null,null,null,"96",null,null,null,"97",null,null,null,"98",null,null,null,"99",null,null,null,"100",null,null,null,"図面添付",null,null,null,null,null,null,null,null,null,null,null,null,null,null,null,null,null,null,null,null,null,null,null,null,null,null,null,null,null,"調査票の追加項目",null,null,null,null,null,null,null,null,null,null,null,null,null,null,null,null,null,null,null,null,null,null,null,null,null,null,null,null,null,null,null,null,null,null,null,null,null,null,null,null,null,null,null,null,null,null,null,null,null,null,null,null,null,null,null,null,null,null,null,null,null,null,null,null,null,null,null,null,null,null,"第三面　2.調査の状況"]
[null,"番号","提出日","報告書","申請用ファイル","所在地","建物名称カナ","建物名称",null,"用途","整理番号",null,"特定行政庁","提出日","提出日",null,null,null,"報告者氏名",null,null,"法人名","法人名","肩書名","肩書名","氏名カナ","氏名","郵便番号","住所","電話番号","法人名","法人名","肩書名","肩書名","氏名カナ","氏名","郵便番号","住所","電話番号","資格名称","建築士登録番号",null,"特定建築物調査員番号","フリガナ","氏名","勤務先名称","事務所登録番号",null,null,"郵便番号","所在地","電話番号","資格名称","建築士登録番号",null,"特定建築物調査員番号","フリガナ","氏名","勤務先名称","事務所登録番号",null,null,"郵便番号","所在地","電話番号","資格名称","建築士登録番号",null,"特定建築物調査員番号","フリガナ","氏名","勤務先名称","事務所登録番号",null,null,"郵便番号","所在地","電話番号",null,"指摘の内容","指摘の概要",null,"改善予定の有無","改善予定年月",null,null,null,"その他特記事項","改善予定なしの理由","防火地域","準防火地域","その他","法第２２条区域",null,"指定なし",null,"用途地域１",null,"用途地域２","鉄筋コンクリート造","鉄骨鉄筋コンクリート造","鉄骨造","その他",null,"階数（地上）","階数（地下）","敷地面積","建築面積","延べ面積","階1",null,null,null,null,"階2",null,null,null,null,"階3",null,null,null,null,"階4",null,null,null,null,"階５",null,null,null,null,"階6",null,null,null,null,"階7",null,null,null,null,"階8",null,null,null,null,"階9",null,null,null,null,"階10",null,null,null,null,"階11",null,null,null,null,"階12",null,null,null,null,"階13",null,null,null,null,"階14",null,null,null,null,"全体",null,"用途１",null,null,"用途２",null,null,"用途３",null,null,"用途４",null,null,"用途５",null,null,"用途６",null,null,"用途７",null,null,"用途８",null,null,"用途９",null,"耐火性能検証法","防火区画検証法","区画避難安全検証法","階","階避難安全検証法","階","全館避難安全検証法","その他",null,null,"元号１","年月日１",null,null,"概要１",null,"元号２","年月日２",null,null,"概要2",null,"元号3","年月日3",null,null,"概要3",null,"元号4","年月日4",null,null,"概要4",null,"確認に要した図書",null,"確認済証",null,"交付年月日元号","年","月","日","交付番号",null,"交付者","検査機関名",null,"完了検査に要した図書",null,"検査済証",null,"交付年月日元号","年","月","日","交付番号",null,"交付者","検査機関名",null,"維持保全準則",null,"前回の写し","備考","１","２","竣工年月",null,"年","月",null,"今回調査年月日","今回調査年月日",null,null,null,"前回調査年月日",null,null,null,null,null,null,"建築設備の検査","建築設備の検査",null,null,null,null,null,"昇降機等の検査","昇降機等の検査",null,null,null,null,null,"防火設備の検査","防火設備の検査",null,null,null,null,null,"敷地及び基盤",null,"概要",null,"予定",null,"予定年月",null,null,null,"建築物の外部","概要",null,"予定",null,"予定年月",null,null,null,"屋上及び屋根","概要",null,"予定",null,"予定年月",null,null,null,"建築物の内部","概要",null,"予定",null,"予定年月",null,null,null,"避難施設等","概要",null,"予定",null,"予定年月",null,null,null,"その他","概要",null,"予定",null,"予定年月",null,null,null,"材料の有無","室",null,"改善予定の有無",null,"予定年月",null,null,null,"耐震診断",null,"予定年月",null,null,null,"耐震改修実施",null,"予定年月",null,null,null,"不具合",null,"記録",null,"改善",null,"予定年月",null,null,"備考",null,null,null,"1把握年月",null,null,"概要","原因",null,"改善年月",null,null,"改善概要","写真",null,"２把握年月",null,null,"概要","原因",null,"改善年月",null,null,"改善概要","写真",null,"３把握年月",null,null,"概要","原因",null,"改善年月",null,null,"改善概要","写真",null,"４把握年月",null,null,"概要","原因",null,"改善年月",null,null,"改善概要","写真",null,"５把握年月",null,null,"概要","原因",null,"改善年月",null,null,"改善概要","写真",null,"６把握年月",null,null,"概要","原因",null,"改善年月",null,null,"改善概要","写真",null,"1","2","3","４","5","6","その他","10年結果","全面打診結果","部分打診","部分打診異常箇所","打診の必要性","過去改修状況","和暦","年","月","過去実施実績","和暦","年","月","今後予定","和暦","年","月",null,null,null,null,"対象区分","指摘区分","調査者１","調査者２","調査者３","指摘内容","改善内容","予定元号","年","月","102",null,null,null,null,null,null,null,null,null,"103",null,null,null,null,null,null,null,null,null,"104",null,null,null,null,null,null,null,null,null,"105",null,null,null,null,null,null,null,null,null,"106",null,null,null,null,null,null,null,null,null,"107",null,null,null,null,null,null,null,null,null,"108",null,null,null,null,null,null,null,null,null,"109",null,null,null,null,null,null,null,null,null,"201",null,null,null,null,null,null,null,null,null,"202",null,null,null,null,null,null,null,null,null,"203",null,null,null,null,null,null,null,null,null,"204",null,null,null,null,null,null,null,null,null,"205",null,null,null,null,null,null,null,null,null,"206",null,null,null,null,null,null,null,null,null,"207",null,null,null,null,null,null,null,null,null,"208",null,null,null,null,null,null,null,null,null,"209",null,null,null,null,null,null,null,null,null,"210",null,null,null,null,null,null,null,null,null,"211",null,null,null,null,null,null,null,null,null,"212",null,null,null,null,null,null,null,null,null,"213",null,null,null,null,null,null,null,null,null,"214",null,null,null,null,null,null,null,null,null,"215",null,null,null,null,null,null,null,null,null,"216",null,null,null,null,null,null,null,null,null,"217",null,null,null,null,null,null,null,null,null,"218",null,null,null,null,null,null,null,null,null,"301",null,null,null,null,null,null,null,null,null,"302",null,null,null,null,null,null,null,null,null,"303",null,null,null,null,null,null,null,null,null,"304",null,null,null,null,null,null,null,null,null,"305",null,null,null,null,null,null,null,null,null,"306",null,null,null,null,null,null,null,null,null,"307",null,null,null,null,null,null,null,null,null,"308",null,null,null,null,null,null,null,null,null,"309",null,null,null,null,null,null,null,null,null,"401",null,null,null,null,null,null,null,null,null,"402",null,null,null,null,null,null,null,null,null,"403",null,null,null,null,null,null,null,null,null,"404",null,null,null,null,null,null,null,null,null,"405",null,null,null,null,null,null,null,null,null,"406",null,null,null,null,null,null,null,null,null,"407",null,null,null,null,null,null,null,null,null,"408",null,null,null,null,null,null,null,null,null,"409",null,null,null,null,null,null,null,null,null,"410",null,null,null,null,null,null,null,null,null,"411",null,null,null,null,null,null,null,null,null,"412",null,null,null,null,null,null,null,null,null,"413",null,null,null,null,null,null,null,null,null,"414",null,null,null,null,null,null,null,null,null,"415",null,null,null,null,null,null,null,null,null,"416",null,null,null,null,null,null,null,null,null,"417",null,null,null,null,null,null,null,null,null,"418",null,null,null,null,null,null,null,null,null,"419",null,null,null,null,null,null,null,null,null,"420",null,null,null,null,null,null,null,null,null,"421",null,null,null,null,null,null,null,null,null,"422",null,null,null,null,null,null,null,null,null,"423",null,null,null,null,null,null,null,null,null,"424",null,null,null,null,null,null,null,null,null,"425",null,null,null,null,null,null,null,null,null,"426",null,null,null,null,null,null,null,null,null,"427",null,null,null,null,null,null,null,null,null,"428",null,null,null,null,null,null,null,null,null,"429",null,null,null,null,null,null,null,null,null,"430",null,null,null,null,null,null,null,null,null,"431",null,null,null,null,null,null,null,null,null,"432",null,null,null,null,null,null,null,null,null,"433",null,null,null,null,null,null,null,null,null,"434",null,null,null,null,null,null,null,null,null,"435",null,null,null,null,null,null,null,null,null,"436",null,null,null,null,null,null,null,null,null,"437",null,null,null,null,null,null,null,null,null,"438",null,null,null,null,null,null,null,null,null,"439",null,null,null,null,null,null,null,null,null,"440",null,null,null,null,null,null,null,null,null,"441",null,null,null,null,null,null,null,null,null,"442",null,null,null,null,null,null,null,null,null,"443",null,null,null,null,null,null,null,null,null,"444",null,null,null,null,null,null,null,null,null,"445",null,null,null,null,null,null,null,null,null,"446",null,null,null,null,null,null,null,null,null,"447",null,null,null,null,null,null,null,null,null,"501",null,null,null,null,null,null,null,null,null,"502",null,null,null,null,null,null,null,null,null,"503",null,null,null,null,null,null,null,null,null,"504",null,null,null,null,null,null,null,null,null,"505",null,null,null,null,null,null,null,null,null,"506",null,null,null,null,null,null,null,null,null,"507",null,null,null,null,null,null,null,null,null,"508",null,null,null,null,null,null,null,null,null,"509",null,null,null,null,null,null,null,null,null,"510",null,null,null,null,null,null,null,null,null,"511",null,null,null,null,null,null,null,null,null,"512",null,null,null,null,null,null,null,null,null,"513",null,null,null,null,null,null,null,null,null,"514",null,null,null,null,null,null,null,null,null,"515",null,null,null,null,null,null,null,null,null,"516",null,null,null,null,null,null,null,null,null,"517",null,null,null,null,null,null,null,null,null,"518",null,null,null,null,null,null,null,null,null,"519",null,null,null,null,null,null,null,null,null,"520",null,null,null,null,null,null,null,null,null,"521",null,null,null,null,null,null,null,null,null,"522",null,null,null,null,null,null,null,null,null,"523",null,null,null,null,null,null,null,null,null,"524",null,null,null,null,null,null,null,null,null,"525",null,null,null,null,null,null,null,null,null,"526",null,null,null,null,null,null,null,null,null,"527",null,null,null,null,null,null,null,null,null,"528",null,null,null,null,null,null,null,null,null,"529",null,null,null,null,null,null,null,null,null,"530",null,null,null,null,null,null,null,null,null,"531",null,null,null,null,null,null,null,null,null,"532",null,null,null,null,null,null,null,null,null,"533",null,null,null,null,null,null,null,null,null,"534",null,null,null,null,null,null,null,null,null,"535",null,null,null,null,null,null,null,null,null,"536",null,null,null,null,null,null,null,null,null,"537",null,null,null,null,null,null,null,null,null,"538",null,null,null,null,null,null,null,null,null,"539",null,null,null,null,null,null,null,null,null,"540",null,null,null,null,null,null,null,null,null,"601",null,null,null,null,null,null,null,null,null,"602",null,null,null,null,null,null,null,null,null,"603",null,null,null,null,null,null,null,null,null,"604",null,null,null,null,null,null,null,null,null,"605",null,null,null,null,null,null,null,null,null,"606",null,null,null,null,null,null,null,null,null,"607",null,null,null,null,null,null,null,null,null,"608",null,null,null,null,null,null,null,null,null,"609",null,null,null,null,null,null,null,null,null,"予備",null,null,null,null,null,null,null,null,null,null,null,null,null,null,null,null,null,null,null,null,null,null,null,null,null,null,null,null,null,"番号","指摘区分","特記事項","写真","番号","指摘区分","特記事項","写真","番号","指摘区分","特記事項","写真","番号","指摘区分","特記事項","写真","番号","指摘区分","特記事項","写真","番号","指摘区分","特記事項","写真","番号","指摘区分","特記事項","写真","番号","指摘区分","特記事項","写真","番号","指摘区分","特記事項","写真","番号","指摘区分","特記事項","写真","番号","指摘区分","特記事項","写真","番号","指摘区分","特記事項","写真","番号","指摘区分","特記事項","写真","番号","指摘区分","特記事項","写真","番号","指摘区分","特記事項","写真","番号","指摘区分","特記事項","写真","番号","指摘区分","特記事項","写真","番号","指摘区分","特記事項","写真","番号","指摘区分","特記事項","写真","番号","指摘区分","特記事項","写真","番号","指摘区分","特記事項","写真","番号","指摘区分","特記事項","写真","番号","指摘区分","特記事項","写真","番号","指摘区分","特記事項","写真","番号","指摘区分","特記事項","写真","番号","指摘区分","特記事項","写真","番号","指摘区分","特記事項","写真","番号","指摘区分","特記事項","写真","番号","指摘区分","特記事項","写真","番号","指摘区分","特記事項","写真","番号","指摘区分","特記事項","写真","番号","指摘区分","特記事項","写真","番号","指摘区分","特記事項","写真","番号","指摘区分","特記事項","写真","番号","指摘区分","特記事項","写真","番号","指摘区分","特記事項","写真","番号","指摘区分","特記事項","写真","番号","指摘区分","特記事項","写真","番号","指摘区分","特記事項","写真","番号","指摘区分","特記事項","写真","番号","指摘区分","特記事項","写真","番号","指摘区分","特記事項","写真","番号","指摘区分","特記事項","写真","番号","指摘区分","特記事項","写真","番号","指摘区分","特記事項","写真","番号","指摘区分","特記事項","写真","番号","指摘区分","特記事項","写真","番号","指摘区分","特記事項","写真","番号","指摘区分","特記事項","写真","番号","指摘区分","特記事項","写真","番号","指摘区分","特記事項","写真","番号","指摘区分","特記事項","写真","番号","指摘区分","特記事項","写真","番号","指摘区分","特記事項","写真","番号","指摘区分","特記事項","写真","番号","指摘区分","特記事項","写真","番号","指摘区分","特記事項","写真","番号","指摘区分","特記事項","写真","番号","指摘区分","特記事項","写真","番号","指摘区分","特記事項","写真","番号","指摘区分","特記事項","写真","番号","指摘区分","特記事項","写真","番号","指摘区分","特記事項","写真","番号","指摘区分","特記事項","写真","番号","指摘区分","特記事項","写真","番号","指摘区分","特記事項","写真","番号","指摘区分","特記事項","写真","番号","指摘区分","特記事項","写真","番号","指摘区分","特記事項","写真","番号","指摘区分","特記事項","写真","番号","指摘区分","特記事項","写真","番号","指摘区分","特記事項","写真","番号","指摘区分","特記事項","写真","番号","指摘区分","特記事項","写真","番号","指摘区分","特記事項","写真","番号","指摘区分","特記事項","写真","番号","指摘区分","特記事項","写真","番号","指摘区分","特記事項","写真","番号","指摘区分","特記事項","写真","番号","指摘区分","特記事項","写真","番号","指摘区分","特記事項","写真","番号","指摘区分","特記事項","写真","番号","指摘区分","特記事項","写真","番号","指摘区分","特記事項","写真","番号","指摘区分","特記事項","写真","番号","指摘区分","特記事項","写真","番号","指摘区分","特記事項","写真","番号","指摘区分","特記事項","写真","番号","指摘区分","特記事項","写真","番号","指摘区分","特記事項","写真","番号","指摘区分","特記事項","写真","番号","指摘区分","特記事項","写真","番号","指摘区分","特記事項","写真","番号","指摘区分","特記事項","写真","番号","指摘区分","特記事項","写真","番号","指摘区分","特記事項","写真","番号","指摘区分","特記事項","写真","番号","指摘区分","特記事項","写真","番号","指摘区分","特記事項","写真","番号","指摘区分","特記事項","写真","1","2","3","4","5","6","7","8","9","10","11","12","13","14","15","16","17","18","18","20","21","22","23","24","25","26","27","28","29","30","436",null,null,null,null,null,null,null,null,null,"437",null,null,null,null,null,null,null,null,null,"701",null,null,null,null,null,null,null,null,null,"702",null,null,null,null,null,null,null,null,null,"703",null,null,null,null,null,null,null,null,null,"704",null,null,null,null,null,null,null,null,null,"705",null,null,null,null,null,null,null,null,null,null,"上記以外","概要",null,"予定",null,"予定年月"]
[]
[]
[]
[]
[]
[]
[]
[]
[]
[]
[]
[]
[]
[]
[]
[]
[]
[]
[]
[]
[]
[]
[]
[]
[]
[]
[]
[]
[]
[]
[]
[]
[]
[]
[]
[]
[]
[]
[]
[]
[]
[]
[]
[]
[null,null,null,null,"242"]
[]
[]
[]
[]
[]
[]
[]
[]
[]
[]
[]
[]
[]
[]
[]
[]
[]
[]
[]
[]
[]
[]
[]
[]
[]
[]
[]
[]
[]
[]
[]
[]
[]
[]
[]
[]
[]
[]
[]
[]
[]
[]
[]
[]
[]
[]
[]
[]
[]
[]
[]
[]
[]
[]
[]
[]
[]
[]
[]
[]
[]
[]
[]
[]
[]
[]
[]
[]
[]
[]
[]
[]
[]
[]
[]
[]
[]
[]
[]
[]
[]
[]
[]
[]
[]
[]
[]
[]
[]
[]
[]
[]
[]
[]
[]
[]
[]
[]
[]
[]
[]
[]
[]
[]
[]
[]
[]
[]
[]
[]
[]
[]
[]
[]
[]
[]
[]
[]
[]
[]
[]
[]
[]
[]
[]
[]
[]
[]
[]
[null,null,null,null,"340"]

{"sheet":"【任意入力】所有者・管理者情報","index":3,"n_rows":7,"n_cols":14,"rows_kept":7,"cut":false,"hidden":false,"merged":[]}
[null,{"$f":"(ROW()-8)/1 + 1","v":-6}]
[]
[]
[]
[null,"【基本情報】所有者・管理者情報"]
[null,"所有者",null,"区分","所有者・管理者　　　"]
[null,"管理者番号",null,null,"法人名カナ","法人名","肩書カナ","肩書","氏名カナ","氏名","郵便番号","住所","電話番号","最終更新日"]

{"sheet":"【必須入力】調査者情報","index":4,"n_rows":7,"n_cols":21,"rows_kept":7,"cut":false,"hidden":false,"merged":[[6,12,6,15],[6,5,6,6],[5,3,5,7],[5,8,5,9]]}
[null,{"$f":"(ROW()-8)/1 + 1","v":-6}]
[]
[]
[]
[null,"【基本情報】調査者情報",null,null,null,null,null,null,null,null,null,null,null,null,null,null,null,null,null," "]
[null,null,null,"1. 資格",null,null,null,null,"2. 氏名",null,"3. 勤務先"]
[null,"調査者番号",null,"資格名称",null,"建築士登録番号",null,"特定建築物調査員番号","フリガナ","氏名","勤務先名称",null,"事務所登録番号",null,null,null,"郵便番号","所在地","電話番号","報酬","最終更新日"]

{"sheet":"【任意入力】指摘の具体的内容","index":5,"n_rows":1,"n_cols":1,"rows_kept":1,"cut":false,"hidden":false,"merged":[]}
["指摘の具体的内容等（２行目以降に入力した内容が調査結果表特記事項の選択肢に表示されます）"]

{"sheet":"年度","index":6,"n_rows":13,"n_cols":5,"rows_kept":13,"cut":false,"hidden":true,"merged":[]}
["記号","和暦年度"]
["A","R05",{"$f":"LEFT(B2,1)","v":"R"},{"$f":"TEXT(MID(B2,2,LEN(B2)),\"00\")","v":"05"},{"$f":"IF(B2<>\"\",TEXT(B2&\"/04/01\",\"yyyy\"),\"\")","v":"2023"}]
["B","R06",{"$f":"LEFT(B3,1)","v":"R"},{"$f":"TEXT(MID(B3,2,LEN(B3)),\"00\")","v":"06"},{"$f":"IF(B3<>\"\",TEXT(B3&\"/04/01\",\"yyyy\"),\"\")","v":"2024"}]
["C","R07",{"$f":"LEFT(B4,1)","v":"R"},{"$f":"TEXT(MID(B4,2,LEN(B4)),\"00\")","v":"07"},{"$f":"IF(B4<>\"\",TEXT(B4&\"/04/01\",\"yyyy\"),\"\")","v":"2025"}]
["D","R07",{"$f":"LEFT(B5,1)","v":"R"},{"$f":"TEXT(MID(B5,2,LEN(B5)),\"00\")","v":"07"},{"$f":"IF(B5<>\"\",TEXT(B5&\"/04/01\",\"yyyy\"),\"\")","v":"2025"}]
["E","R07",{"$f":"LEFT(B6,1)","v":"R"},{"$f":"TEXT(MID(B6,2,LEN(B6)),\"00\")","v":"07"},{"$f":"IF(B6<>\"\",TEXT(B6&\"/04/01\",\"yyyy\"),\"\")","v":"2025"}]
["F","R05",{"$f":"LEFT(B7,1)","v":"R"},{"$f":"TEXT(MID(B7,2,LEN(B7)),\"00\")","v":"05"},{"$f":"IF(B7<>\"\",TEXT(B7&\"/04/01\",\"yyyy\"),\"\")","v":"2023"}]
["G","R06","R","06","2024"]
["H","R05","R","05","2023"]
["I","R06","R","06","2024"]
["J","R05","R","05","2023"]
["K","R07","R","07","2025"]
["N","R06","R","06","2024"]

{"sheet":"パラメタ","index":7,"n_rows":137,"n_cols":60,"rows_kept":137,"cut":false,"hidden":true,"merged":[]}
["調査項目",null,"元号",null,"資格名称",null,"資格登録者",null,"事務所登録種類",null,"事務所登録者",null,"用途",null,"特定行政庁",null,"指摘の内容",null,"有・無",null,"防火地域等（つかっていない）",null,"用途地域",null,"構造（つかっていない）",null,"詳細用途地域",null,"確認に要した図書",null,"交付者",null,"有・無・対象外",null,"実施・未実施",null,"該当建築材料",null,"診断状況",null,"改善の状況",null,"出力状態",null,"整理番号２",null,"整理番号３",null,"外壁全面打診１－１",null,"外壁全面打診結果２－１",null,"今回部分打診１－２",null,"部分打診異状箇所１－３",null,"外壁改修状況",null,"外壁全面打診"]
["101","地盤沈下等による不陸、傾斜等の状況","5","令和","1","１級建築士","71","国土交通大臣","1","１級建築士","40","福岡県知事","EFG","共同住宅","1","福岡市長","1","要是正の指摘あり","1","有","1","防火地域","1","第一種低層住居専用地域","1","鉄筋コンクリート造（RC造）","1","共同住宅","1","有","1","建築主事","1","有","1","実施","1","有（飛散防止措置無）","1","有","1","実施済","0","未出力","31","31","A","A","1","(1)建物竣工後、10年以内である。","1","(1)直近の全面打診等の結果、異常はなかった。","1","(1)今回の部分打診の結果、改善を要する異常はなかった。","1","(1)直近の全面打診等にて把握している箇所と同じである。","1","改修実施済み","11","(1)竣工後、10年以内で、部分打診の結果、異状はなかった。"]
["102","敷地内の排水の状況","4","平成","2","２級建築士","72","建設大臣","2","２級建築士","41","佐賀県知事","A1","劇場",null,null,"2","要是正の指摘あり（既存不適格）","0","無","2","準防火地域","2","第二種低層住居専用地域","2","鉄骨鉄筋コンクリート造（SRC造）","2","駐車場・駐輪場","2","有（各階平面図あり）","2","指定確認検査機関","0","無","0","未実施","2","有（飛散防止措置有）","2","無（実施予定あり）","2","改善予定","1","出力済","32","32","B","B","2","(2)建物竣工後、10年を超えており、過去10年以内に外壁全面打診等を行った。（今回実施した場合も含む）","2","(2)直近の全面打診等の結果、異常があった。","2","(2)今回の部分打診の結果、改善を要する異常があった。","2","(2)直近の全面打診等にて把握していない箇所であった。（過去に全面打診を行っていない、もしくは結果が分からない場合も含む）","2","未実施（改修予定あり）","12","(2)竣工後、10年以内で、部分打診の結果、異状があった。"]
["103","敷地内の通路の確保の状況","3","昭和","8","特定建築物調査員","40","福岡県知事",null,null,"42","長崎県知事","A2","映画館",null,null,"0","指摘なし",null,null,"3","法第２２条区域","3","第一種中高層住居専用地域","3","鉄骨造（S造）","3","機械室","0","無",null,null,"9","対象外",null,null,"0","無","0","無（実施予定なし）","0","予定なし",null,null,"33","33","C","C","3","(3)建物竣工後、10年を超えており、過去10年以内に外壁全面打診等は行っていない。","3","(3)直近に全面打診等の実績は確認できたが、結果については確認できなかった。","3","(3)今回の調査時に外壁全面打診等を行い、その結果、改善を要する異常はなかった。（今回、改善した場合も含む。）",null,null,"0","未実施","13","(3)竣工後、10年を超えているため、10年以内に全面打診を行った。部分打診の結果、異状はなかった。"]
["104","有効幅員の確保の状況",null,null,null,null,"41","佐賀県知事",null,null,"43","熊本県知事","A3","演芸場",null,null,null,null,null,null,"9","その他","4","第二種中高層住居専用地域","9","その他","4","物販店",null,null,null,null,null,null,null,null,null,null,"9","対象外",null,null,null,null,"34","34","D","D",null,null,null,null,"4","(4)今回の調査時に外壁全面打診等を行い、その結果、改善を要する異常があった。",null,null,null,null,"14","(4)竣工後、10年を超えているため、10年以内に全面打診を行った。部分打診の結果、異状があった。"]
["105","敷地内の通路の支障物の状況",null,null,null,null,"42","長崎県知事",null,null,"44","大分県知事","A4","観覧場",null,null,null,null,null,null,"0","指定なし","5","第一種住居地域",null,null,"5","飲食店",null,null,null,null,null,null,null,null,null,null,null,null,null,null,null,null,"35","35","E","E",null,null,null,null,null,null,null,null,null,null,"15","(5)竣工後、10年を超えているが、全面打診を行っていない。"]
["106","組積造の塀又は補強コンクリートブロック造の塀等の耐震対策の状況",null,null,null,null,"43","熊本県知事",null,null,"45","宮﨑県知事","A5","公会堂",null,null,null,null,null,null,null,null,"6","第二種住居地域",null,null,"6","事務所",null,null,null,null,null,null,null,null,null,null,null,null,null,null,null,null,"36","36","F","F"]
["107","組積造の塀又は補強コンクリートブロック造の塀等の劣化及び損傷の状況",null,null,null,null,"44","大分県知事",null,null,"46","鹿児島県知事","A6","集会場",null,null,null,null,null,null,null,null,"7","準住居地域",null,null,null,null,null,null,null,null,null,null,null,null,null,null,null,null,null,null,null,null,"37","37","G","G"]
["108","擁壁の劣化及び損傷の状況",null,null,null,null,"45","宮﨑県知事",null,null,"47","沖縄県知事","B1","ホテル",null,null,null,null,null,null,null,null,"8","田園住居地域内",null,null,null,null,null,null,null,null,null,null,null,null,null,null,null,null,null,null,null,null,null,null,"H","H"]
["109","擁壁の水抜きパイプの維持保全の状況",null,null,null,null,"46","鹿児島県知事",null,null,1,"北海道知事","B2","旅館",null,null,null,null,null,null,null,null,"9","近隣商業地域",null,null,null,null,null,null,null,null,null,null,null,null,null,null,null,null,null,null,null,null,null,null,"I","I"]
["201","基礎の沈下等の状況",null,null,null,null,"47","沖縄県知事",null,null,2,"青森県知事","C1","病院",null,null,null,null,null,null,null,null,"10","商業地域",null,null,null,null,null,null,null,null,null,null,null,null,null,null,null,null,null,null,null,null,null,null,"J","J"]
["202","基礎の劣化及び損傷の状況",null,null,null,null,1,"北海道知事",null,null,3,"岩手県知事","D1","百貨店",null,null,null,null,null,null,null,null,"11","準工業地域",null,null,null,null,null,null,null,null,null,null,null,null,null,null,null,null,null,null,null,null,null,null,"K","K"]
["203","土台の沈下等の状況",null,null,null,null,2,"青森県知事",null,null,4,"宮城県知事","D2","マーケット",null,null,null,null,null,null,null,null,"12","工業地域",null,null,null,null,null,null,null,null,null,null,null,null,null,null,null,null,null,null,null,null,null,null,"N","N"]
["204","土台の劣化及び損傷の状況",null,null,null,null,3,"岩手県知事",null,null,5,"秋田県知事","D3","物品販売を営む店舗",null,null,null,null,null,null,null,null,"13","工業専用地域"]
["205","外壁、軒裏及び外壁の開口部で延焼のおそれのある部分の防火対策の状況",null,null,null,null,4,"宮城県知事",null,null,6,"山形県知事","D4","展示場",null,null,null,null,null,null,null,null,"90","指定なし（市街化調整区域）"]
["206","木造の外壁躯体の劣化及び損傷の状況",null,null,null,null,5,"秋田県知事",null,null,7,"福島県知事","H1","地下街",null,null,null,null,null,null,null,null,"91","指定なし（都市計画区域外）"]
["207","組積造の外壁躯体の劣化及び損傷の状況",null,null,null,null,6,"山形県知事",null,null,8,"茨城県知事","I1","キャバレー"]
["208","補強コンクリートブロック造の外壁躯体の劣化及び損傷の状況",null,null,null,null,7,"福島県知事",null,null,9,"栃木県知事","I2","カフェー"]
["209","鉄骨造の外壁躯体の劣化及び損傷の状況",null,null,null,null,8,"茨城県知事",null,null,10,"群馬県知事","I3","ナイトクラブ"]
["210","鉄筋コンクリート造及び鉄骨鉄筋コンクリート造の外壁躯体の劣化及び損傷の状況",null,null,null,null,9,"栃木県知事",null,null,11,"埼玉県知事","I4","バー"]
["211","タイル、石貼り等（乾式工法によるものを除く）、モルタル等の劣化及び損傷の状況",null,null,null,null,10,"群馬県知事",null,null,12,"千葉県知事","I5","ダンスホール"]
["212","乾式工法によるタイル、石貼り等の劣化及び損傷の状況",null,null,null,null,11,"埼玉県知事",null,null,13,"東京都知事","I6","遊技場"]
["213","金属系パネル（帳壁を含む）の劣化及び損傷の状況",null,null,null,null,12,"千葉県知事",null,null,14,"神奈川県知事","I7","公衆浴場"]
["214","コンクリート系パネル（帳壁を含む。）の劣化及び損傷の状況",null,null,null,null,13,"東京都知事",null,null,15,"新潟県知事","I8","待合"]
["215","サッシ等の劣化及び損傷の状況",null,null,null,null,14,"神奈川県知事",null,null,16,"山梨県知事","I9","料理店"]
["216","はめ殺し窓のガラスの固定の状況",null,null,null,null,15,"新潟県知事",null,null,17,"長野県知事","I10","飲食店"]
["217","機器本体の劣化及び損傷の状況",null,null,null,null,16,"山梨県知事",null,null,18,"富山県知事","J1","診療所（患者収容があるものに限る）"]
["218","支持部分等の劣化及び損傷の状況",null,null,null,null,17,"長野県知事",null,null,19,"石川県知事","K1","高齢者、障がい者等の就寝用に供する施設"]
["301","屋上面の劣化及び損傷の状況",null,null,null,null,18,"富山県知事",null,null,20,"福井県知事","N1","体育館"]
["302","パラペットの立上り面の劣化及び損傷の状況",null,null,null,null,19,"石川県知事",null,null,21,"岐阜県知事","N2","博物館"]
["303","笠木モルタル等の劣化及び損傷の状況",null,null,null,null,20,"福井県知事",null,null,22,"静岡県知事","N3","美術館"]
["304","金属笠木の劣化及び損傷の状況",null,null,null,null,21,"岐阜県知事",null,null,23,"愛知県知事","N4","図書館"]
["305","排水溝（ドレーンを含む。）の劣化及び損傷の状況",null,null,null,null,22,"静岡県知事",null,null,24,"三重県知事","N5","ボーリング場"]
["306","屋根の防火対策の状況",null,null,null,null,23,"愛知県知事",null,null,"25","滋賀県知事","N6","スケート場"]
["307","屋根の劣化及び損傷の状況",null,null,null,null,24,"三重県知事",null,null,26,"京都府知事","N7","水泳場"]
["308","機器、工作物本体及び接合部の劣化及び損傷の状況",null,null,null,null,"25","滋賀県知事",null,null,"27","大阪府知事","N8","スポーツ練習場"]
["309","支持部分等の劣化及び損傷の状況",null,null,null,null,26,"京都府知事",null,null,28,"兵庫県知事"]
["401","令第112条第11項から第13項までに規定する区画の状況",null,null,null,null,"27","大阪府知事",null,null,"29","奈良県知事"]
["402","令第112条第１項、第４項、第５項又は第７項から第10項までの各項に規定する区画の状況",null,null,null,null,28,"兵庫県知事",null,null,"30","和歌山県知事"]
["403","令第112条第18項に規定する区画の状況",null,null,null,null,29,"奈良県知事",null,null,31,"鳥取県知事"]
["404","令第112条第16項に規定する外壁等及び同条第17項に規定する防火設備の処置の状況",null,null,null,null,"30","和歌山県知事",null,null,32,"島根県知事"]
["405","令第112条第16項に規定する外壁等及び同条第17項に規定する防火設備の劣化及び損傷の状況",null,null,null,null,"31","鳥取県知事",null,null,33,"岡山県知事"]
["406","木造の壁の室内に面する部分の躯体の劣化及び損傷の状況",null,null,null,null,32,"島根県知事",null,null,34,"広島県知事"]
["407","組積造の壁の室内に面する部分の躯体の劣化及び損傷の状況",null,null,null,null,33,"岡山県知事",null,null,35,"山口県知事"]
["408","補強コンクリートブロック造の壁の室内に面する部分の躯体の劣化及び損傷の状況",null,null,null,null,34,"広島県知事",null,null,36,"徳島県知事"]
["409","鉄骨造の壁の室内に面する部分の躯体の劣化及び損傷の状況",null,null,null,null,35,"山口県知事",null,null,37,"香川県知事"]
["410","鉄筋コンクリート造及び鉄骨鉄筋コンクリート造の壁の室内に面する部分の躯体の劣化及び損傷の状況",null,null,null,null,36,"徳島県知事",null,null,38,"愛媛県知事"]
["411","準耐火性能等の確保の状況",null,null,null,null,37,"香川県知事",null,null,39,"高知県知事"]
["412","部材の劣化及び損傷の状況",null,null,null,null,38,"愛媛県知事"]
["413","鉄骨の耐火被覆の劣化及び損傷の状況",null,null,null,null,39,"高知県知事"]
["414","給水管、配電管その他の管又は風道の区画貫通部の充填等の処理の状況"]
["415","令第114条に規定する界壁、間仕切壁及び隔壁の状況"]
["416","室内に面する部分の仕上げの維持保全の状況"]
["417","木造の床躯体の劣化及び損傷の状況"]
["418","鉄骨造の床躯体の劣化及び損傷の状況"]
["419","鉄筋コンクリート造及び鉄骨鉄筋コンクリート造の床躯体の劣化及び損傷の状況"]
["420","準耐火性能等の確保の状況"]
["421","部材の劣化及び損傷の状況"]
["422","給水管、配電管その他の管又は風道の区画貫通部の充填等の処理の状況"]
["423","室内に面する部分の仕上げの維持保全の状況"]
["424","室内に面する部分の仕上げの劣化及び損傷の状況"]
["425","特定天井の天井材の劣化及び損傷の状況"]
["426","区画に対応した防火設備又は戸の設置の状況"]
["427","居室から地上へ通じる主たる廊下、階段その他の通路に設置された防火設備又は戸におけるくぐり戸の設置の状況"]
["428","防火扉又は戸の開放方向"]
["429","常閉防火設備等（防火扉を除く）の本体及び枠の劣化及び損傷の状況"]
["430","各階の主要な常閉防火設備等（防火扉を除く）の閉鎖又は作動の状況"]
["431","常閉防火設備等（防火扉を除く）の閉鎖又は作動の障害となる物品の放置並びに照明器具及び懸垂物等の状況"]
["432","常時閉鎖した状態にある戸の固定の状況"]
["433","照明器具、懸垂物等の落下防止対策の状況　"]
["434","警報設備の設置の状況"]
["435","警報設備の劣化及び損傷の状況"]
["436","スプリンクラー設備の設置の状況"]
["437","スプリンクラー設備の劣化及び損傷の状況"]
["438","採光のための開口部の面積の確保の状況"]
["439","採光の妨げとなる物品の放置の状況"]
["440","換気のための開口部の面積の確保の状況"]
["441","換気設備の設置の状況"]
["442","吹付け石綿及び吹付けロックウールでその含有する石綿の重量が当該建築材料の重量の0.1パーセントを超えるもの（以下「吹付け石綿等」という。）の使用の状況"]
["443","吹付け石綿等の劣化の状況　"]
["444","除去又は囲い込み若しくは封じ込めによる飛散防止措置の実施の状況　"]
["445","囲い込み又は封じ込めによる飛散防止措置の劣化及び損傷の状況　"]
["501","令第120条第２項に規定する通路の確保の状況"]
["502","幅の確保の状況\n"]
["503","物品の放置の状況"]
["504","出入口の確保の状況"]
["505","物品の放置の状況"]
["506","屋上広場の確保の状況"]
["507","避難上有効なバルコニーの確保の状況"]
["508","手すり等の劣化及び損傷の状況"]
["509","物品の放置の状況"]
["510","避難器具の操作性の確保の状況"]
["511","直通階段の設置の状況"]
["512","幅の確保の状況"]
["513","手すりの設置の状況"]
["514","物品の放置の状況"]
["515","階段各部の劣化及び損傷の状況"]
["516","階段室の構造の状況"]
["517","屋内と階段との間の防火区画の確保の状況"]
["518","開放性の確保の状況"]
["519","バルコニー又は付室の構造及び面積の確保の状況"]
["520","付室等の排煙設備の設置の状況"]
["521","付室等の外気に向かって開くことができる窓の状況"]
["522","物品の放置の状況"]
["523","防煙区画の設置の状況"]
["524","防煙壁の劣化及び損傷の状況"]
["525","排煙設備の設置の状況"]
["526","排煙口の維持保全の状況"]
["527","非常用の進入口等の設置の状況"]
["528","非常用の進入口等の維持保全の状況"]
["529","乗降ロビーの構造及び面積の確保の状況"]
["530","乗降ロビー等の排煙設備の設置の状況"]
["531","乗降ロビー等の外気に向かって開くことができる窓の状況"]
["532","物品の放置の状況"]
["533","非常用の照明装置の設置の状況"]
["601","膜体及び取付部材の劣化及び損傷の状況"]
["602","膜張力及びケーブル張力の状況"]
["603","免震装置の劣化及び損傷の状況（免震装置が可視状態にある場合に限る。）"]
["604","上部構造の可動の状況"]
["605","避雷針、避雷導線等の劣化及び損傷の状況"]
["606","煙突本体及び建築物との接合部の劣化及び損傷の状況"]
["607","付帯金物の劣化及び損傷の状況"]
["608","煙突本体の劣化及び損傷の状況"]
["609","付帯金物の劣化及び損傷の状況"]
["701","閉鎖又は作動の障害となる物品の放置並びに照明器具及び懸垂物等の状況"]
["702","扉の取付けの状況"]
["703","扉、枠及び金物の劣化及び損傷の状況"]
["704","固定の状況"]
["705","作動の状況"]
["706","換気設備の作動の状況"]
["707","換気の妨げとなる物品の放置の状況"]
["708","付室等の排煙設備の作動の状況"]
["709","可動式防煙壁の作動の状況"]
["710","排煙設備の作動の状況"]
["711","乗降ロビー等の排煙設備の作動の状況"]
["712","非常用の照明装置の作動の状況"]
["713","照明の妨げとなる物品の放置の状況"]

{"sheet":"出力用＿報告書","index":8,"n_rows":267,"n_cols":52,"rows_kept":267,"cut":false,"hidden":true,"merged":[[283,0,285,4],[283,5,285,14],[283,15,285,25],[283,26,285,31],[283,32,285,42],[277,0,279,4],[277,5,279,14],[277,15,279,25],[277,26,279,31],[277,32,279,42],[280,0,282,4],[280,5,282,14],[280,15,282,25],[280,26,282,31],[280,32,282,42],[271,0,273,4],[271,5,273,14],[271,15,273,25],[271,26,273,31],[271,32,273,42],[274,0,276,4],[274,5,276,14],[274,15,276,25],[274,26,276,31],[274,32,276,42],[248,25,248,26],[248,28,248,29],[252,2,258,40],[265,0,267,4],[265,26,267,31],[268,0,270,4],[268,5,270,14],[268,15,270,25],[268,26,270,31],[268,32,270,42],[232,23,232,24],[232,26,232,27],[237,23,237,24],[237,25,237,26],[237,28,237,29],[239,23,239,24],[239,25,239,26],[239,28,239,29],[219,12,219,41],[221,20,221,21],[221,23,221,24],[226,30,226,40],[228,30,228,40],[230,29,230,30],[230,32,230,33],[203,12,203,41],[205,20,205,21],[205,23,205,24],[211,12,211,41],[213,20,213,21],[213,23,213,24],[187,12,187,41],[189,20,189,21],[189,23,189,24],[195,12,195,41],[197,20,197,21],[197,23,197,24],[170,17,170,18],[170,19,170,20],[170,22,170,23],[170,25,170,26],[179,12,179,41],[181,20,181,21],[181,23,181,24],[166,17,166,18],[166,19,166,20],[166,22,166,23],[166,25,166,26],[168,17,168,18],[168,19,168,20],[168,22,168,23],[168,25,168,26],[155,34,155,35],[162,19,162,20],[162,22,162,23],[162,25,162,26],[164,17,164,18],[164,19,164,20],[164,22,164,23],[164,25,164,26],[152,12,152,13],[152,14,152,15],[152,17,152,18],[152,31,152,32],[152,34,152,35],[155,12,155,13],[155,14,155,15],[155,17,155,18],[155,29,155,30],[155,31,155,32],[134,31,134,40],[142,2,143,40],[144,6,144,10],[144,11,144,12],[144,14,144,15],[148,4,149,40],[128,31,128,40],[133,15,133,19],[133,20,133,21],[133,23,133,24],[133,26,133,27],[133,29,133,30],[133,31,133,40],[127,15,127,19],[127,20,127,21],[127,23,127,24],[127,26,127,27],[127,29,127,30],[127,31,127,40],[119,57,119,58],[120,3,120,7],[120,8,120,9],[120,11,120,12],[120,14,120,15],[120,21,120,40],[120,54,120,55],[120,57,120,58],[119,3,119,7],[119,8,119,9],[119,11,119,12],[119,14,119,15],[119,21,119,40],[119,54,119,55],[117,57,117,58],[118,3,118,7],[118,8,118,9],[118,11,118,12],[118,14,118,15],[118,21,118,40],[118,54,118,55],[118,57,118,58],[117,3,117,7],[117,8,117,9],[117,11,117,12],[117,14,117,15],[117,21,117,40],[117,54,117,55],[111,16,111,23],[111,25,111,26],[111,30,111,37],[111,39,111,40],[113,34,113,41],[116,54,116,55],[105,19,105,24],[105,28,105,34],[105,37,105,41],[106,19,106,24],[106,28,106,34],[106,37,106,41],[103,5,103,6],[103,19,103,24],[103,28,103,34],[103,37,103,41],[104,5,104,6],[104,19,104,24],[104,28,104,34],[104,37,104,41],[101,13,101,14],[101,19,101,24],[101,28,101,34],[101,37,101,41],[102,13,102,15],[102,19,102,24],[102,28,102,34],[102,37,102,41],[99,13,99,14],[99,19,99,24],[99,28,99,34],[99,37,99,41],[100,13,100,14],[100,19,100,24],[100,28,100,34],[100,37,100,41],[97,13,97,14],[97,19,97,24],[97,28,97,34],[97,37,97,41],[98,13,98,14],[98,19,98,24],[98,28,98,34],[98,37,98,41],[95,13,95,14],[95,19,95,24],[95,28,95,34],[95,37,95,41],[96,13,96,14],[96,19,96,24],[96,28,96,34],[96,37,96,41],[93,28,93,34],[93,37,93,41],[94,13,94,14],[94,19,94,24],[94,28,94,34],[94,37,94,41],[86,16,86,18],[86,25,86,27],[87,12,87,18],[88,12,88,18],[89,12,89,18],[93,13,93,14],[93,19,93,24],[66,12,66,42],[69,33,71,42],[78,24,78,29],[79,11,79,22],[79,24,79,41],[85,29,85,38],[53,12,53,41],[54,12,54,41],[55,12,55,41],[61,2,63,41],[65,20,65,21],[65,23,65,24],[47,10,47,17],[48,5,48,6],[48,10,48,42],[49,10,49,21],[52,5,52,6],[52,12,52,41],[42,33,42,40],[43,12,43,41],[44,12,44,40],[45,5,45,6],[45,10,45,41],[46,10,46,12],[46,23,46,27],[46,34,46,40],[36,10,36,17],[37,5,37,6],[37,10,37,42],[38,10,38,21],[41,10,41,12],[41,20,41,23],[41,25,41,29],[41,34,41,40],[32,12,32,41],[33,12,33,40],[34,5,34,6],[34,10,34,41],[35,10,35,12],[35,23,35,27],[35,34,35,40],[25,10,25,21],[30,10,30,12],[30,19,30,22],[30,24,30,28],[30,33,30,40],[31,33,31,40],[21,12,21,41],[22,12,22,40],[23,10,23,22],[24,10,24,42],[7,23,7,40],[8,28,8,40],[11,28,11,40],[14,12,14,41],[15,12,15,40],[16,10,16,22],[0,20,0,25],[0,34,0,42],[5,7,5,15],[6,28,6,31],[6,32,6,33],[6,35,6,36],[6,38,6,39],[17,10,17,42],[18,10,18,21]]}
["第","三","十","六","号","の","二","様","式","（","第","五","条","関","係","）","(","A",4,")",null,null,null,null,null,null,null,null,null,null,null,null,null,null,"整　理　番　号"]
[null,null,null,null,null,null,null,null,null,null,null,null,null,null,null,null,null,null,"定","期","調","査","報","告","書",null,null,null,null,null,null,null,null,null,null,null,null,null,null,null,null,null,0]
[null,null,null,null,null,null,null,null,null,null,null,null,null,null,null,null,null,null,null,"(","第","一","面","）"]
[null,"建","築","基","準","法","第",1,2,"条","第",1,"項","の","規","定","に","よ","る","定","期","調","査","の","結","果","を","報","告","し","ま","す","。","こ","の","報","告","書","に","記","載"]
["の","事","項","は","、","事","実","に","相","違","あ","り","ま","せ","ん","。"]
[null,"特","定","行","政","庁",null,null,null,null,null,null,null,null,null,null,"様"]
[null,null,null,null,null,null,null,null,null,null,null,null,null,null,null,null,null,null,null,null,null,null,null,null,null,null,null,null,"令和",null,null,null,null,null,"年",null,null,"月",null,null,"日"]
[null,null,null,null,null,null,null,null,null,null,null,null,null,null,null,null,null,null,null,null,null,null,null,null,null,null,null,null,null,null,null,null,null,null,null,null,null,null,null,null,null,null,null,null,"平成"]
[null,null,null,null,null,null,null,null,null,null,null,null,null,null,null,null,null,null,null,null,null,null,null,"報","告","者","氏","名",null,null,null,null,null,null,null,null,null,null,null,null,null,null,null,null,"令和"]
[]
[]
[null,null,null,null,null,null,null,null,null,null,null,null,null,null,null,null,null,null,null,null,null,null,null,"調","査","者","氏","名"]
[]
["【",1,"．","所","有","者","】"]
[null,"【","イ","．","氏","名","の","フ","リ","ガ","ナ","】"]
[null,"【","ロ","．","氏",null,null,"名","】"]
[null,"【","ハ","．","郵","便","番","号","】"]
[null,"【","ニ","．","住",null,null,"所","】"]
[null,"【","ホ","．","電","話","番","号","】"]
[]
["【",2,"．","管","理","者","】"]
[null,"【","イ","．","氏","名","の","フ","リ","ガ","ナ","】"]
[null,"【","ロ","．","氏",null,null,"名","】"]
[null,"【","ハ","．","郵","便","番","号","】"]
[null,"【","ニ","．","住",null,null,"所","】"]
[null,"【","ホ","．","電","話","番","号","】"]
[]
["【",3,"．","調","査","者","】"]
[null,"（","代","表","と","な","る","調","査","者","）"]
[]
[null,"【","イ","．","資",null,null,"格","】","（",null,null,null,"）","建","築","士",null,null,null,null,null,null,"（",null,null,null,null,null,"）","登","録","第",null,null,null,null,null,null,null,null,"号",null,null,null,"建設大臣"]
[null,null,null,null,null,null,null,null,null,"特","定","建","築","物","調","査","員",null,null,null,null,null,null,null,null,null,null,null,null,null,null,null,"第",null,null,null,null,null,null,null,null,"号",null,null,null,"国土交通大臣"]
[null,"【","ロ","．","氏","名","の","フ","リ","ガ","ナ","】",null,null,null,null,null,null,null,null,null,null,null,null,null,null,null,null,null,null,null,null,null,null,null,null,null,null,null,null,null,null,null,null,null,"知事"]
[null,"【","ハ","．","氏",null,null,"名","】"]
[null,"【","ニ","．","勤","務",null,"先","】"]
[null,null,null,null,null,null,null,null,null,"（",null,null,null,"）","建","築","士","事","務","所",null,null,"（",null,null,null,null,null,"）","知","事","登","録","第",null,null,null,null,null,null,null,"号"]
[null,"【","ホ","．","郵","便","番","号","】"]
[null,"【","ヘ","．","所","在",null,"地","】"]
[null,"【","ト","．","電","話","番","号","】"]
[null,"（","そ","の","他","の","調","査","者","）"]
[]
[null,"【","イ","．","資",null,null,"格","】","（",null,null,null,"）","建","築","士",null,null,null,null,null,null,null,"（",null,null,null,null,null,"）","登","録","第",null,null,null,null,null,null,null,"号"]
[null,null,null,null,null,null,null,null,null,"特","定","建","築","物","調","査","員",null,null,null,null,null,null,null,null,null,null,null,null,null,null,null,"第",null,null,null,null,null,null,null,null,"号"]
[null,"【","ロ","．","氏","名","の","フ","リ","ガ","ナ","】"]
[null,"【","ハ","．","氏",null,null,"名","】"]
[null,"【","ニ","．","勤","務",null,"先","】"]
[null,null,null,null,null,null,null,null,null,"（",null,null,null,"）","建","築","士","事","務","所",null,null,"（",null,null,null,null,null,"）","知","事","登","録","第",null,null,null,null,null,null,null,"号"]
[null,"【","ホ","．","郵","便","番","号","】"]
[null,"【","ヘ","．","所","在",null,"地","】"]
[null,"【","ト","．","電","話","番","号","】"]
[]
["【",4,"．","報","告","対","象","建","築","物","】"]
[null,"【","イ","．","所","在",null,"地","】"]
[null,"【","ロ","．","名","称","の","フ","リ","ガ","ナ","】"]
[null,"【","ハ","．","名",null,null,"称","】"]
[null,"【","ニ","．","用",null,null,"途","】"]
[]
[]
["【",5,"．","調","査","に","よ","る","指","摘","の","概","要","】"]
[null,"【","イ","．","指","摘","の","内","容","】",null,null,null,null,null,"要","是","正","の","指","摘","あ","り",null,"（",null,"既","存","不","適","格","）",null,null,null,"指","摘","な","し",null,null,null,null,null,null,"✓"]
[null,"【","ロ","．","指","摘","の","概","要","】"]
[null,null,{"$f":"M180&\"　\"&M188&\"　\"&M196&\"　\"&M204&\"　\"&M212&\"　\"&M220","v":"　　　　　"}]
[]
[]
[]
[null,"【","ハ","．","改","善","予","定","の","有","無","】",null,null,null,"有",null,"（","令","和",null,null,"年",null,null,"月","に","改","善","予","定","）",null,null,null,"無"]
[null,"【","ニ","．","そ","の","他","特","記","事","項","】"]
[]
[null,null,"※","受","付","欄",null,null,null,null,null,null,null,"※",null,"特","記","欄",null,null,null,null,null,null,null,null,null,null,null,null,null,null,null,null,null,"※","整","理","番","号","欄"]
["令","和",null,null,"年",null,null,"月",null,null,"日"]
[null,"第",null,null,null,null,null,null,null,null,"号"]
["係","員","氏","名"]
[null,null,null,null,null,null,null,null,null,null,null,null,null,null,null,null,null,null,null,"(","第","二","面","）"]
["建","築","物","及","び","そ","の","敷","地","に","関","す","る","事","項"]
[]
["【",1,"．","敷","地","の","位","置","】"]
[null,"【","イ","．","防","火","地","域","等","】",null,null,"防","火","地","域",null,null,null,null,null,"準","防","火","地","域"]
[]
[null,null,null,null,null,null,null,null,null,null,null,null,"そ","の","他","（",null,"法","第",2,2,"条","区","域",null,null,null,null,null,null,"）",null,null,null,"指","定","な","し"]
[null,"【","ロ","．","用","途",null,"地","域","】"]
[]
[]
["【",2,"．","建","築","物","及","び","そ","の","敷","地","の","概","要","】"]
[null,"【","イ","．","構",null,null,"造","】",null,null,null,"鉄","筋","コ","ン","ク","リ","ー","ト","造",null,null,null,null,"鉄","骨","鉄","筋","コ","ン","ク","リ","ー","ト","造"]
[]
[null,null,null,null,null,null,null,null,null,null,null,null,"鉄","骨","造",null,null,null,null,null,null,null,null,null,null,"そ","の","他","（",null,null,null,null,null,null,null,null,null,null,"）"]
[null,"【","ロ","．","階",null,null,"数","】",null,null,null,null,"地","上",null,null,null,null,"階",null,null,"地","下",null,null,null,null,"階"]
[null,"【","ハ","．","敷","地","面","積","】",null,null,null,null,null,null,null,null,null,null,null,"㎡"]
[null,"【","ニ","．","建","築","面","積","】",null,null,null,null,null,null,null,null,null,null,null,"㎡"]
[null,"【","ホ","．","延","べ","面","積","】",null,null,null,null,null,null,null,null,null,null,null,"㎡"]
[]
[]
["【",3,"．","階","別","用","途","別","床","面","積","】",null,null,null,null,null,null,"（",null,null,"用","途",null,null,"）",null,"（",null,null,"床","面","積",null,null,null,"）"]
[null,"【","イ","．","階","別","用","途","別","】",null,null,"（",null,null,"階","）",null,"（",null,null,null,null,null,null,"）",null,"（",null,null,null,null,null,null,null,"㎡","）"]
[null,null,null,null,null,null,null,null,null,null,null,null,"（",null,null,"階","）",null,"（",null,null,null,null,null,null,"）",null,"（",null,null,null,null,null,null,null,"㎡","）"]
[null,null,null,null,null,null,null,null,null,null,null,null,"（",null,null,"階","）",null,"（",null,null,null,null,null,null,"）",null,"（",null,null,null,null,null,null,null,"㎡","）"]
[null,null,null,null,null,null,null,null,null,null,null,null,"（",null,null,"階","）",null,"（",null,null,null,null,null,null,"）",null,"（",null,null,null,null,null,null,null,"㎡","）"]
[null,null,null,null,null,null,null,null,null,null,null,null,"（",null,null,"階","）",null,"（",null,null,null,null,null,null,"）",null,"（",null,null,null,null,null,null,null,"㎡","）"]
[null,null,null,null,null,null,null,null,null,null,null,null,"（",null,null,"階","）",null,"（",null,null,null,null,null,null,"）",null,"（",null,null,null,null,null,null,null,"㎡","）"]
[null,null,null,null,null,null,null,null,null,null,null,null,"（",null,null,"階","）",null,"（",null,null,null,null,null,null,"）",null,"（",null,null,null,null,null,null,null,"㎡","）"]
[null,null,null,null,null,null,null,null,null,null,null,null,"（",null,null,"階","）",null,"（",null,null,null,null,null,null,"）",null,"（",null,null,null,null,null,null,null,"㎡","）"]
[null,null,null,null,null,null,null,null,null,null,null,null,"（",null,null,"階","）",null,"（",null,null,null,null,null,null,"）",null,"（",null,null,null,null,null,null,null,"㎡","）"]
[null,null,null,null,null,null,null,null,null,null,null,null,null,"合　計",null,null,null,null,"（",null,null,null,null,null,null,"）",null,"（",{"$f":"SUM(AC94:AC102)","v":0},null,null,null,null,null,null,"㎡","）"]
[null,"【","ロ","．","用","途",null,"別","】",null,null,null,null,null,null,null,null,null,"（",null,null,null,null,null,null,"）",null,"（",null,null,null,null,null,null,null,"㎡","）"]
[null,null,null,null,null,null,null,null,null,null,null,null,null,null,null,null,null,null,"（",null,null,null,null,null,null,"）",null,"（",null,null,null,null,null,null,null,"㎡","）"]
[null,null,null,null,null,null,null,null,null,null,null,null,null,null,null,null,null,null,"（",null,null,null,null,null,null,"）",null,"（",null,null,null,null,null,null,null,"㎡","）"]
[null,null,null,null,null,null,null,null,null,null,null,null,null,null,null,null,null,null,"（",null,null,null,null,null,null,"）",null,"（",null,null,null,null,null,null,null,"㎡","）"]
[]
[]
["【",4,"．","性","能","検","証","法","等","の","適","用","】",null,null,null,"耐","火","性","能","検","証","法",null,null,null,null,null,null,null,"防","火","区","画","検","証","法"]
[]
[null,null,null,null,null,null,null,null,null,null,null,null,null,null,null,null,"区画避難安全検証法",null,null,null,null,null,null,null,"（",null,null,"階","）",null,"階避難安全検証法",null,null,null,null,null,null,null,"（",null,null,"階","）"]
[]
[null,null,null,null,null,null,null,null,null,null,null,null,null,null,null,null,"全","館","避","難","安","全","検","証","法",null,null,null,null,null,"そ","の","他","（",null,null,null,null,null,null,null,null,"）"]
[]
[]
["【",5,"．","増","築","、","改","築","、","用","途","変","更","等","の","経","過","】"]
[null,null,null,"Ｓ・Ｈ・Ｒ",null,null,null,null,null,null,"年",null,null,"月",null,null,"日",null,"概","要","（",null,null,null,null,null,null,null,null,null,null,null,null,null,null,null,null,null,null,null,null,"）"]
[null,null,null,"Ｓ・Ｈ・Ｒ",null,null,null,null,null,null,"年",null,null,"月",null,null,"日",null,"概","要","（",null,null,null,null,null,null,null,null,null,null,null,null,null,null,null,null,null,null,null,null,"）"]
[null,null,null,"Ｓ・Ｈ・Ｒ",null,null,null,null,null,null,"年",null,null,"月",null,null,"日",null,"概","要","（",null,null,null,null,null,null,null,null,null,null,null,null,null,null,null,null,null,null,null,null,"）"]
[null,null,null,"Ｓ・Ｈ・Ｒ",null,null,null,null,null,null,"年",null,null,"月",null,null,"日",null,"概","要","（",null,null,null,null,null,null,null,null,null,null,null,null,null,null,null,null,null,null,null,null,"）"]
[]
[]
["【",6,"．","関","連","図","書","の","整","備","状","況","】"]
[null,"【","イ","．","確","認","に","要","し","た","図","書","】",null,null,"有",null,null,"（",null,"各","階","平","面","図","あ","り","）",null,null,"無"]
[]
[null,"【","ロ","．","確","認","済","証","】",null,null,null,null,null,null,"有",null,null,null,"無"]
[null,null,null,null,null,null,null,null,null,null,"交","付","番","号",null,"Ｓ・Ｈ・Ｒ",null,null,null,null,null,null,"年",null,null,"月",null,null,"日","第",null,null,null,null,null,null,null,null,null,null,null,"号"]
[null,null,null,null,null,null,null,null,null,null,"交","付","者",null,null,null,"建","築","主","事",null,null,"指","定","確","認","検","査","機","関","（",null,null,null,null,null,null,null,null,null,null,"）"]
[]
[null,"【","ハ","．","完","了","検","査","に","要","し","た","図","書","】",null,"有",null,null,null,"無"]
[]
[null,"【","ニ","．","検","査","済","証","】",null,null,null,null,null,null,null,"有",null,null,null,"無"]
[null,null,null,null,null,null,null,null,null,null,"交","付","番","号",null,"Ｓ・Ｈ・Ｒ",null,null,null,null,null,null,"年",null,null,"月",null,null,"日","第",null,null,null,null,null,null,null,null,null,null,null,"号"]
[null,null,null,null,null,null,null,null,null,null,"交","付","者",null,null,null,"建","築","主","事",null,null,"指","定","確","認","検","査","機","関","（",null,null,null,null,null,null,null,null,null,null,"）"]
[]
[null,"【","ホ","．","維","持","保","全","に","関","す","る","準","則","又","は","計","画","】",null,null,"有",null,null,null,"無"]
[]
[null,"【","ヘ","．","前","回","の","調","査","に","関","す","る","書","類","の","写","し","】",null,null,"有",null,null,null,"無",null,null,null,null,"対","象","外",null,null,null,null,null,null,null,null,null,null,null,null,"福岡県知事",null,null,null,null,null,"第一種低層住居専用地域"]
[null,null,null,null,null,null,null,null,null,null,null,null,null,null,null,null,null,null,null,null,null,null,null,null,null,null,null,null,null,null,null,null,null,null,null,null,null,null,null,null,null,null,null,null,null,"北九州市長",null,null,null,null,null,"第二種低層住居専用地域"]
[null,null,null,null,null,null,null,null,null,null,null,null,null,null,null,null,null,null,null,null,null,null,null,null,null,null,null,null,null,null,null,null,null,null,null,null,null,null,null,null,null,null,null,null,null,"福岡市長",null,null,null,null,null,"第一種中高層住居専用地域"]
["【",7,"．","備",null,"考","】",null,null,null,null,null,null,null,null,null,null,null,null,null,null,null,null,null,null,null,null,null,null,null,null,null,null,null,null,null,null,null,null,null,null,null,null,null,null,"久留米市長",null,null,null,null,null,"第二種中高層住居専用地域"]
[null,null,null,null,null,null,null,null,null,null,null,null,null,null,null,null,null,null,null,null,null,null,null,null,null,null,null,null,null,null,null,null,null,null,null,null,null,null,null,null,null,null,null,null,null,"大牟田市長",null,null,null,null,null,"第一種住居地域"]
[null,null,null,null,null,null,null,null,null,null,null,null,null,null,null,null,null,null,null,null,null,null,null,null,null,null,null,null,null,null,null,null,null,null,null,null,null,null,null,null,null,null,null,null,null,null,null,null,null,null,null,"第二種住居地域"]
["【","竣","工","年","月","】","Ｓ・Ｈ・Ｒ",null,null,null,null,null,null,"年",null,null,"月",null,null,null,null,null,null,null,null,null,null,null,null,null,null,null,null,null,null,null,null,null,null,null,null,null,null,null,null,null,null,null,null,null,null,"準住居地域"]
[null,null,null,null,null,null,null,null,null,null,null,null,null,null,null,null,null,null,null,null,null,null,null,null,null,null,null,null,null,null,null,null,null,null,null,null,null,null,null,null,null,null,null,null,null,null,null,null,null,null,null,"近隣商業地域"]
[null,null,null,null,null,null,null,null,null,null,null,null,null,null,null,null,null,null,null,null,null,null,null,null,null,null,null,null,null,null,null,null,null,null,null,null,null,null,null,null,null,null,null,null,null,null,null,null,null,null,null,"商業地域"]
[null,null,null,null,"外壁全面打診について",null,null,null,null,null,null,null,null,null,null,null,null,null,null,null,null,null,null,null,null,null,null,null,null,null,null,null,null,null,null,null,null,null,null,null,null,null,null,null,null,null,null,null,null,null,null,"準工業地域"]
[null,null,null,null,null,null,null,null,null,null,null,null,null,null,null,null,null,null,null,null,null,null,null,null,null,null,null,null,null,null,null,null,null,null,null,null,null,null,null,null,null,null,null,null,null,null,null,null,null,null,null,"工業地域"]
[null,null,null,null,null,null,null,null,null,null,null,null,null,null,null,null,null,null,null,null,null,null,null,null,null,null,null,null,null,null,null,null,null,null,null,null,null,null,null,null,null,null,null,null,null,null,null,null,null,null,null,"工業専用地域"]
[null,null,null,null,null,null,null,null,null,null,null,null,null,null,null,null,null,null,null,null,null,null,null,null,null,null,null,null,null,null,null,null,null,null,null,null,null,null,null,null,null,null,null,null,null,null,null,null,null,null,null,"指定なし"]
[null,null,null,null,"外壁全面打診等の実施日・予定日",null,null,null,null,null,null,null,null,null,null,null,null,null,null,null,null,null,null,null,null,null,null,null,null,null,null,null,null,null,null,null,null,null,null,null,null,null,null,null,null,null,null,null,null,null,null,"都市計画区域外"]
[null,null,null,null,null,null,"実施日：",null,null,null,null,null,"令和",null,null,null,"年",null,null,"月",null,null,null,"実施予定日：",null,null,null,null,null,"令","和",null,null,"年",null,null,"月",null,null,null,null,null,null,null,null,"１級",null,null,null,null,null,"その他"]
[null,null,null,null,null,null,null,null,null,null,null,null,null,null,null,null,null,null,null,null,null,null,null,null,null,null,null,null,null,null,null,null,null,null,null,null,null,null,null,null,null,null,null,null,null,"２級"]
[null,null,null,null,"外壁改修実施日・予定日"]
[null,null,null,null,null,null,"改修実施済：",null,null,null,null,null,"H・R",null,null,null,"年",null,null,"月",null,null,null,"改修予定日：",null,null,null,null,null,"H・R",null,null,null,"年",null,null,"月"]
[]
[null,null,null,null,null,null,null,null,null,null,null,null,null,null,null,null,null,null,null,"(","第","三","面","）"]
["調","査","等","の","概","要",null,null,null,null,null,null,null,null,null,null,null,null,null,null,null,null,null,null,null,null,null,null,null,null,null,null,null,null,null,null,null,null,null,null,null,null,null,null,null,null,null,null,null,"Ｓ・Ｈ・Ｒ"]
[]
["【",1,"．","調","査","及","び","検","査","の","状","況","】",null,null,null,null,null,null,null,null,null,null,null,null,null,null,null,null,null,null,null,null,null,null,null,null,null,null,null,null,null,null,null,null,null,null,null,null,"昭和"]
[]
[null,"【","イ","．","今","回","の","調","査","】",null,null,null,null,null,null,null,"令","和",null,null,"年",null,null,"月",null,null,"日","実","施",null,null,null,null,null,null,null,null,null,null,null,null,null,null,null,null,null,null,null,"平成"]
[]
[null,"【","ロ","．","前","回","の","調","査","】",null,null,null,null,"実","施","（","H・R",null,null,null,"年",null,null,"月",null,null,"日","報","告","）",null,null,"未","実","施",null,null,null,null,null,null,null,null,null,null,null,null,null,"令和"]
[]
[null,"【","ハ","．","建","築","設","備","の","検","査","】",null,null,"実","施","（","H・R",null,null,null,"年",null,null,"月",null,null,"日","報","告","）",null,null,"未","実","施",null,null,null,null,null,null,null,null,null,null,null,null,null,"H・R"]
[]
[null,"【","ニ","．","昇","降","機","等","の","検","査","】",null,null,"実","施","（","H・R",null,null,null,"年",null,null,"月",null,null,"日","報","告","）",null,null,"未","実","施",null,null,null,null,null,null,null,null,null,null,null,null,null,"平成"]
[]
[null,"【","ホ","．","防","火","設","備","の","検","査","】",null,null,"実","施","（","H・R",null,null,null,"年",null,null,"月",null,null,"日","報","告","）",null,null,"未","実","施",null,null,null,null,null,null,null,null,null,null,null,null,null,"令和"]
[]
[]
["【",2,"．","調","査","の","状","況","】"]
[]
[null,1,"敷","地","及","び","地","盤",null,null,null,null,null,null,null,null,null,null,null,null,null,null,null,null,null,null,null,null,null,null,null,null,null,null,null,null,null,null,null,null,null,null,null,null,null,null,null,null,null,"実施・予定"]
[]
[null,"【","イ","．","指","摘","の","内","容","】",null,null,null,null,null,"要","是","正","の","指","摘","あ","り",null,"（",null,"既","存","不","適","格","）",null,null,null,"指","摘","な","し",null,null,null,null,null,null,null,null,null,null,"実施"]
[]
[null,"【","ロ","．","指","摘","の","概","要","】",null,null,null,null,null,null,null,null,null,null,null,null,null,null,null,null,null,null,null,null,null,null,null,null,null,null,null,null,null,null,null,null,null,null,null,null,null,null,null,"予定"]
[]
[null,"【","ハ","．","改","善","予","定","の","有","無","】",null,null,null,"有",null,"（","令","和",null,null,"年",null,null,"月","に","改","善","予","定","）",null,null,null,"無"]
[]
[null,2,"建","築","物","の","外","部"]
[]
[null,"【","イ","．","指","摘","の","内","容","】",null,null,null,null,null,"要","是","正","の","指","摘","あ","り",null,"（",null,"既","存","不","適","格","）",null,null,null,"指","摘","な","し"]
[]
[null,"【","ロ","．","指","摘","の","概","要","】"]
[]
[null,"【","ハ","．","改","善","予","定","の","有","無","】",null,null,null,"有",null,"（","令","和",null,null,"年",null,null,"月","に","改","善","予","定","）",null,null,null,"無"]
[]
[null,3,"屋","上","及","び","屋","根"]
[]
[null,"【","イ","．","指","摘","の","内","容","】",null,null,null,null,null,"要","是","正","の","指","摘","あ","り",null,"（",null,"既","存","不","適","格","）",null,null,null,"指","摘","な","し"]
[]
[null,"【","ロ","．","指","摘","の","概","要","】"]
[]
[null,"【","ハ","．","改","善","予","定","の","有","無","】",null,null,null,"有",null,"（","令","和",null,null,"年",null,null,"月","に","改","善","予","定","）",null,null,null,"無"]
[]
[null,4,"建","築","物","の","内","部"]
[]
[null,"【","イ","．","指","摘","の","内","容","】",null,null,null,null,null,"要","是","正","の","指","摘","あ","り",null,"（",null,"既","存","不","適","格","）",null,null,null,"指","摘","な","し"]
[]
[null,"【","ロ","．","指","摘","の","概","要","】"]
[]
[null,"【","ハ","．","改","善","予","定","の","有","無","】",null,null,null,"有",null,"（","令","和",null,null,"年",null,null,"月","に","改","善","予","定","）",null,null,null,"無"]
[]
[null,5,"避","難","施","設","等"]
[]
[null,"【","イ","．","指","摘","の","内","容","】",null,null,null,null,null,"要","是","正","の","指","摘","あ","り",null,"（",null,"既","存","不","適","格","）",null,null,null,"指","摘","な","し"]
[]
[null,"【","ロ","．","指","摘","の","概","要","】"]
[]
[null,"【","ハ","．","改","善","予","定","の","有","無","】",null,null,null,"有",null,"（","令","和",null,null,"年",null,null,"月","に","改","善","予","定","）",null,null,null,"無"]
[]
[null,6,"そ","の","他"]
[]
[null,"【","イ","．","指","摘","の","内","容","】",null,null,null,null,null,"要","是","正","の","指","摘","あ","り",null,"（",null,"既","存","不","適","格","）",null,null,null,"指","摘","な","し"]
[]
[null,"【","ロ","．","指","摘","の","概","要","】"]
[]
[null,"【","ハ","．","改","善","予","定","の","有","無","】",null,null,null,"有",null,"（","令","和",null,null,"年",null,null,"月","に","改","善","予","定","）",null,null,null,"無"]
[]
[]
["【",3,"．","石","綿","を","添","加","し","た","建","築","材","料","の","調","査","状","況","】",null,null,null,null,null,null,null,null,null,"（","該","当","す","る","室","）"]
[]
[null,"【","イ","．","該","当","建","築","材","料","の","有","無","】",null,null,null,null,"有",null,"（","飛","散","防","止","措","置","無","）","（",null,null,null,null,null,null,null,null,null,null,null,"）"]
[]
[null,null,null,null,null,null,null,null,null,null,null,null,null,null,null,null,null,null,"有",null,"（","飛","散","防","止","措","置","有","）","（",null,null,null,null,null,null,null,null,null,null,null,"）"]
[]
[null,null,null,null,null,null,null,null,null,null,null,null,null,null,null,null,null,null,"無"]
[]
[null,"【","ロ","．","措","置","予","定","の","有","無","】",null,null,null,null,null,null,"有",null,"（","令","和",null,null,"年",null,null,"月","に","改","善","予","定","）",null,null,null,"無"]
[]
[]
["【",4,"．","耐","震","診","断","及","び","耐","震","改","修","の","調","査","状","況",null,"】"]
[]
[null,"【","イ","．","耐","震","診","断","の","実","施","の","有","無","】",null,null,"有",null,null,"無",null,"（","令和",null,null,null,"年",null,null,"月","に","実","施","予","定","）",null,null,"対","象","外"]
[]
[null,"【","ロ","．","耐","震","改","修","の","実","施","の","有","無","】",null,null,"有",null,null,"無",null,"（","令和",null,null,null,"年",null,null,"月","に","実","施","予","定","）",null,null,"対","象","外"]
[]
[]
["【",5,"．","建","築","物","等","に","係","る","不","具","合","等","の","状","況","】"]
[]
[null,"【","イ","．","不","具","合","等",null,null,null,"】",null,null,"有",null,null,"無"]
[]
[null,"【","ロ","．","不","具","合","等","の","記","録","】",null,null,"有",null,null,"無"]
[]
[null,"【","ハ","．","改","善","の","状","況",null,null,"】",null,"実","施","済",null,null,"改","善","予","定","（","令","和",null,null,"年",null,null,"月","に","改","善","予","定","）",null,"予","定","な","し"]
[]
[]
["【",6,"．","備",null,"考","】"]
[]
[]
[]
[]
[]
[]
[]
[]
[]
[null,null,null,null,null,null,null,null,null,null,null,null,null,null,null,null,null,"(","第","四","面","）"]
["建","築","物","等","に","係","る","不","具","合","等","の","状","況"]
[]
[]
["不具合等を\n把握した\n年月",null,null,null,null,null,null,null,null,null,null,null,null,null,null,null,null,null,null,null,null,null,null,null,null,null,"改善（予定）\n年月"]
[null,null,null,null,null,null,"不","具","合","等","の","概","要",null,null,null,null,"考","え","ら","れ","る","原","因",null,null,null,null,null,null,null,null,null,"改","善","措","置","の","概","要","等"]

{"sheet":"出力用＿概要書","index":9,"n_rows":160,"n_cols":46,"rows_kept":160,"cut":false,"hidden":true,"merged":[[16,12,16,41],[17,10,17,22],[18,10,18,41],[24,10,24,12],[24,20,24,23],[24,25,24,29],[24,34,24,40],[0,34,0,42],[8,12,8,41],[9,12,9,41],[10,10,10,22],[11,10,11,41],[15,12,15,41],[30,10,30,17],[31,5,31,6],[31,10,31,40],[32,10,32,19],[35,10,35,12],[35,20,35,23],[35,25,35,29],[35,34,35,40],[25,34,25,40],[26,12,26,41],[27,11,27,41],[28,5,28,6],[28,11,28,40],[29,10,29,12],[29,23,29,27],[29,34,29,40],[41,10,41,17],[42,5,42,6],[42,10,42,40],[43,10,43,19],[47,5,47,6],[47,11,47,40],[36,34,36,40],[37,12,37,41],[38,11,38,41],[39,5,39,6],[39,11,39,40],[40,10,40,12],[40,23,40,27],[40,34,40,40],[59,13,59,40],[63,19,63,20],[63,22,63,23],[63,25,63,26],[64,17,64,18],[64,19,64,20],[64,22,64,23],[64,25,64,26],[48,12,48,41],[49,12,49,41],[50,11,50,40],[56,1,56,41],[58,20,58,21],[58,23,58,24],[70,17,70,18],[70,19,70,20],[70,22,70,23],[70,25,70,26],[77,13,77,40],[79,26,79,27],[79,29,79,30],[66,17,66,18],[66,19,66,20],[66,22,66,23],[66,25,66,26],[68,17,68,18],[68,19,68,20],[68,22,68,23],[68,25,68,26],[99,12,99,19],[100,12,100,19],[101,12,101,19],[105,13,105,14],[105,19,105,24],[105,29,105,35],[81,23,81,39],[91,12,91,23],[91,25,91,36],[97,29,97,37],[98,16,98,18],[98,25,98,27],[108,13,108,14],[108,19,108,24],[108,29,108,35],[108,38,108,41],[109,13,109,14],[109,19,109,24],[109,29,109,35],[109,38,109,41],[105,38,105,41],[106,13,106,14],[106,19,106,24],[106,29,106,35],[106,38,106,41],[107,13,107,14],[107,19,107,24],[107,29,107,35],[107,38,107,41],[112,13,112,14],[112,19,112,24],[112,29,112,35],[112,38,112,41],[113,13,113,14],[113,19,113,24],[113,29,113,35],[113,38,113,41],[110,13,110,14],[110,19,110,24],[110,29,110,35],[110,38,110,41],[111,13,111,14],[111,19,111,24],[111,29,111,35],[111,38,111,41],[116,5,116,6],[116,19,116,24],[116,29,116,35],[117,19,117,24],[117,29,117,35],[118,19,118,24],[118,29,118,35],[114,13,114,14],[114,19,114,24],[114,29,114,35],[115,5,115,6],[115,13,115,15],[115,19,115,24],[115,29,115,35],[123,15,123,22],[123,24,123,25],[123,29,123,36],[123,38,123,39],[125,33,125,40],[128,3,128,7],[128,8,128,9],[128,11,128,12],[128,14,128,15],[128,21,128,40],[131,3,131,7],[131,8,131,9],[131,11,131,12],[131,14,131,15],[131,21,131,40],[129,3,129,7],[129,8,129,9],[129,11,129,12],[129,14,129,15],[129,21,129,40],[130,3,130,7],[130,8,130,9],[130,11,130,12],[130,14,130,15],[130,21,130,40],[143,23,143,24],[143,26,143,27],[143,29,143,30],[143,31,143,40],[144,31,144,40],[151,1,152,41],[153,1,154,41],[137,15,137,19],[137,20,137,21],[137,23,137,24],[137,26,137,27],[137,29,137,30],[137,31,137,40],[138,31,138,40],[143,15,143,19],[143,20,143,21]]}
[null,null,null,null,null,null,null,null,null,null,null,null,null,null,null,null,null,null,null,null,null,null,null,null,null,null,null,null,null,null,null,null,null,null,"整　理　番　号"]
[null,null,null,null,null,null,null,null,null,null,null,null,null,null,null,null,null,null,null,null,null,null,null,null,null,null,null,null,null,null,null,null,null,null,{"$f":"IF(出力用＿報告書!AI2=\"\",\"\",IF(出力用＿報告書!AI2=0,\"0\",出力用＿報告書!AI2))","v":""},{"$f":"IF(出力用＿報告書!AJ2=\"\",\"\",IF(出力用＿報告書!AJ2=0,\"0\",出力用＿報告書!AJ2))","v":""},{"$f":"IF(出力用＿報告書!AK2=\"\",\"\",IF(出力用＿報告書!AK2=0,\"0\",出力用＿報告書!AK2))","v":""},{"$f":"IF(出力用＿報告書!AL2=\"\",\"\",IF(出力用＿報告書!AL2=0,\"0\",出力用＿報告書!AL2))","v":""},{"$f":"IF(出力用＿報告書!AM2=\"\",\"\",IF(出力用＿報告書!AM2=0,\"0\",出力用＿報告書!AM2))","v":""},{"$f":"IF(出力用＿報告書!AN2=\"\",\"\",IF(出力用＿報告書!AN2=0,\"0\",出力用＿報告書!AN2))","v":""},{"$f":"IF(出力用＿報告書!AO2=\"\",\"\",IF(出力用＿報告書!AO2=0,\"0\",出力用＿報告書!AO2))","v":""},{"$f":"IF(出力用＿報告書!AP2=\"\",\"\",IF(出力用＿報告書!AP2=0,\"0\",出力用＿報告書!AP2))","v":""},{"$f":"IF(出力用＿報告書!AQ2=\"\",\"\",IF(出力用＿報告書!AQ2=0,\"0\",出力用＿報告書!AQ2))","v":"0"}]
["第","三","十","六","号","の","三","様","式","（","第","五","条","、","第","六","条","の","三","、","第","十","一","条","の","四","関","係",")","(","A",4,")"]
[null,null,null,null,null,null,null,null,null,null,null,null,null,null,null,null,"定","期","調","査","報","告","概","要","書"]
[null,null,null,null,null,null,null,null,null,null,null,null,null,null,null,null,null,null,"(","第","一","面","）"]
[null,"調","査","等","の","概","要"]
[]
["【",1,"．","所","有","者","】"]
[null,"【","イ","．","氏","名","の","フ","リ","ガ","ナ","】",{"$f":"出力用＿報告書!M15","v":0}]
[null,"【","ロ","．","氏",null,null,"名","】",null,null,null,{"$f":"出力用＿報告書!M16","v":0}]
[null,"【","ハ","．","郵","便","番","号","】",null,{"$f":"出力用＿報告書!K17","v":0}]
[null,"【","ニ","．","住",null,null,"所","】",null,{"$f":"出力用＿報告書!K18","v":0}]
[]
[]
["【",2,"．","管","理","者","】"]
[null,"【","イ","．","氏","名","の","フ","リ","ガ","ナ","】",{"$f":"出力用＿報告書!M22","v":0}]
[null,"【","ロ","．","氏",null,null,"名","】",null,null,null,{"$f":"出力用＿報告書!M23","v":0}]
[null,"【","ハ","．","郵","便","番","号","】",null,{"$f":"出力用＿報告書!K24","v":0}]
[null,"【","ニ","．","住",null,null,"所","】",null,{"$f":"出力用＿報告書!K25","v":0}]
[]
[]
["【",3,"．","調","査","者","】"]
[null,"（","代","表","と","な","る","調","査","者","）"]
[]
[null,"【","イ","．","資",null,null,"格","】","（",{"$f":"出力用＿報告書!K31","v":0},null,null,"）","建","築","士",null,null,null,{"$f":"+出力用＿報告書!T31","v":0},null,null,null,"（",{"$f":"出力用＿報告書!Y31","v":0},null,null,null,null,"）","登","録","第",{"$f":"出力用＿報告書!AH31","v":0},null,null,null,null,null,null,"号"]
[null,null,null,null,null,null,null,null,null,"特","定","建","築","物","調","査","員",null,null,null,null,null,null,null,null,null,null,null,null,null,null,null,null,"第",{"$f":"出力用＿報告書!AH32","v":0},null,null,null,null,null,null,"号"]
[null,"【","ロ","．","氏","名","の","フ","リ","ガ","ナ","】",{"$f":"出力用＿報告書!M33","v":0}]
[null,"【","ハ","．","氏",null,null,"名","】",null,null,{"$f":"出力用＿報告書!M34","v":0}]
[null,"【","ニ","．","勤","務",null,"先","】",null,null,{"$f":"出力用＿報告書!K35","v":0}]
[null,null,null,null,null,null,null,null,null,"（",{"$f":"出力用＿報告書!K36","v":0},null,null,"）","建","築","士","事","務","所",null,null,"（",{"$f":"出力用＿報告書!X36","v":0},null,null,null,null,"）","知","事","登","録","第",{"$f":"出力用＿報告書!AI36","v":0},null,null,null,null,null,null,"号"]
[null,"【","ホ","．","郵","便","番","号","】",null,{"$f":"出力用＿報告書!K37","v":0}]
[null,"【","ヘ","．","所","在",null,"地","】",null,{"$f":"出力用＿報告書!K38","v":0}]
[null,"【","ト","．","電","話","番","号","】",null,{"$f":"出力用＿報告書!K39","v":0}]
[null,"（","そ","の","他","の","調","査","者","）"]
[]
[null,"【","イ","．","資",null,null,"格","】","（",{"$f":"出力用＿報告書!K42","v":0},null,null,"）","建","築","士",null,null,null,{"$f":"+出力用＿報告書!U42","v":0},null,null,null,"（",{"$f":"出力用＿報告書!Z42","v":0},null,null,null,null,"）","登","録","第",{"$f":"出力用＿報告書!AI42","v":0},null,null,null,null,null,null,"号"]
[null,null,null,null,null,null,null,null,null,"特","定","建","築","物","調","査","員",null,null,null,null,null,null,null,null,null,null,null,null,null,null,null,null,"第",{"$f":"出力用＿報告書!AH43","v":0},null,null,null,null,null,null,"号"]
[null,"【","ロ","．","氏","名","の","フ","リ","ガ","ナ","】",{"$f":"出力用＿報告書!M44","v":0}]
[null,"【","ハ","．","氏",null,null,"名","】",null,null,{"$f":"出力用＿報告書!M45","v":0}]
[null,"【","ニ","．","勤","務",null,"先","】",null,null,{"$f":"出力用＿報告書!K46","v":0}]
[null,null,null,null,null,null,null,null,null,"（",{"$f":"出力用＿報告書!K47","v":0},null,null,"）","建","築","士","事","務","所",null,null,"（",{"$f":"出力用＿報告書!X47","v":0},null,null,null,null,"）","知","事","登","録","第",{"$f":"出力用＿報告書!AI47","v":0},null,null,null,null,null,null,"号"]
[null,"【","ホ","．","郵","便","番","号","】",null,{"$f":"出力用＿報告書!K48","v":0}]
[null,"【","ヘ","．","所","在",null,"地","】",null,{"$f":"出力用＿報告書!K49","v":0}]
[null,"【","ト","．","電","話","番","号","】",null,{"$f":"出力用＿報告書!K50","v":0}]
[]
[]
["【",4,"．","報","告","対","象","建","築","物","】"]
[null,"【","イ","．","所","在",null,"地","】",null,null,{"$f":"出力用＿報告書!M53","v":0},null,null,null,null,null,null,null,null,null,null,null,null,null,null,null,null,null,null,null,null,null,null,null,null,null,null,null,null,null,null,null,null,null,"✓"]
[null,"【","ロ","．","名","称","の","フ","リ","ガ","ナ","】",{"$f":"出力用＿報告書!M54","v":0}]
[null,"【","ハ","．","名",null,null,"称","】",null,null,null,{"$f":"出力用＿報告書!M55","v":0}]
[null,"【","ニ","．","用",null,null,"途","】",null,null,{"$f":"出力用＿報告書!M56","v":0}]
[]
[]
["【",5,"．","調","査","に","よ","る","指","摘","の","概","要","】"]
[null,"【","イ","．","指","摘","の","内","容","】",null,null,null,null,{"$f":"出力用＿報告書!O60","v":0},"要","是","正","の","指","摘","あ","り",null,null,"（",{"$f":"出力用＿報告書!Z60","v":0},"既","存","不","適","格","）",null,null,null,{"$f":"出力用＿報告書!AI60","v":0},"指","摘","な","し"]
[null,"【","ロ","．","指","摘","の","概","要","】"]
[null,{"$f":"+出力用＿報告書!C62","v":"　　　　　"}]
[]
[null,"【","ハ","．","改","善","予","定","の","有","無","】",null,null,{"$f":"出力用＿報告書!O66","v":0},"有",null,"（","令","和",{"$f":"出力用＿報告書!U66","v":0},null,"年",{"$f":"出力用＿報告書!X66","v":0},null,"月","に","改","善","予","定","）",null,null,null,null,{"$f":"出力用＿報告書!AI66","v":0},"無"]
[null,"【","ニ","．","そ","の","他","特","記","事","項","】",null,{"$f":"出力用＿報告書!M67","v":0}]
[]
[]
["【",6,"．","調","査","及","び","検","査","の","状","況","】"]
[null,"【","イ","．","今","回","の","調","査","】",null,null,null,null,null,null,null,"令","和",{"$f":"出力用＿報告書!T163","v":0},null,"年",{"$f":"出力用＿報告書!W163","v":0},null,"月",{"$f":"出力用＿報告書!Z163","v":0},null,"日","実","施"]
[null,"【","ロ","．","前","回","の","調","査","】",null,null,null,{"$f":"出力用＿報告書!N165","v":0},"実","施","（",{"$f":"+出力用＿報告書!R165","v":"H・R"},null,{"$f":"出力用＿報告書!T165","v":0},null,"年",{"$f":"出力用＿報告書!W165","v":0},null,"月",{"$f":"出力用＿報告書!Z165","v":0},null,"日","報","告","）",null,{"$f":"出力用＿報告書!AG165","v":0},"未","実","施"]
[]
[null,"【","ハ","．","建","築","設","備","の","検","査","】",null,{"$f":"出力用＿報告書!N167","v":0},"実","施","（",{"$f":"+出力用＿報告書!R167","v":"H・R"},null,{"$f":"出力用＿報告書!T167","v":0},null,"年",{"$f":"出力用＿報告書!W167","v":0},null,"月",{"$f":"出力用＿報告書!Z167","v":0},null,"日","報","告","）",null,{"$f":"出力用＿報告書!AG167","v":0},"未","実","施"]
[]
[null,"【","ニ","．","昇","降","機","等","の","検","査","】",null,{"$f":"出力用＿報告書!N169","v":0},"実","施","（",{"$f":"+出力用＿報告書!R169","v":"H・R"},null,{"$f":"出力用＿報告書!T169","v":0},null,"年",{"$f":"出力用＿報告書!W169","v":0},null,"月",{"$f":"出力用＿報告書!Z169","v":0},null,"日","報","告","）",null,{"$f":"出力用＿報告書!AG169","v":0},"未","実","施"]
[]
[null,"【","ホ","．","防","火","設","備","の","検","査","】",null,{"$f":"出力用＿報告書!N171","v":0},"実","施","（",{"$f":"+出力用＿報告書!R171","v":"H・R"},null,{"$f":"出力用＿報告書!T171","v":0},null,"年",{"$f":"出力用＿報告書!W171","v":0},null,"月",{"$f":"出力用＿報告書!Z171","v":0},null,"日","報","告","）",null,{"$f":"出力用＿報告書!AG171","v":0},"未","実","施"]
[]
[]
["【",7,"．","建","築","物","等","に","係","る","不","具","合","等","の","状","況","】"]
[null,"【","イ","．","不","具","合","等",null,null,null,"】",null,{"$f":"出力用＿報告書!N245","v":0},"有",null,null,{"$f":"出力用＿報告書!Q245","v":0},"無"]
[]
[null,"【","ロ","．","不","具","合","等","の","記","録","】",null,{"$f":"出力用＿報告書!N247","v":0},"有",null,null,{"$f":"出力用＿報告書!Q247","v":0},"無"]
[null,"【","ハ","．","不","具","合","等","の","概","要","】",null,{"$f":"+出力用＿報告書!F269&\" \"&出力用＿報告書!F272&\" \"&出力用＿報告書!F275&\" \"&出力用＿報告書!F278&\" \"&出力用＿報告書!F281&\" \"&出力用＿報告書!F284","v":"     "}]
[]
[null,"【","ニ","．","改","善","の","状","況",null,null,"】",null,{"$f":"出力用＿報告書!M249","v":0},"実","施","済",null,{"$f":"出力用＿報告書!R249","v":0},"改","善","予","定","（","令","和",{"$f":"出力用＿報告書!Z249","v":0},null,"年",{"$f":"出力用＿報告書!AC249","v":0},null,"月","に","改","善","予","定","）"]
[]
[null,null,null,null,null,null,null,null,null,null,null,null,null,{"$f":"出力用＿報告書!AL249","v":0},"予","定","な","し",null,"（","理","由","：",null,null,null,null,null,null,null,null,null,null,null,null,null,null,null,null,null,"）"]
[]
[]
[null,null,null,null,null,null,null,null,null,null,null,null,null,null,null,null,null,null,null,"(","第","二","面","）"]
["建","築","物","及","び","そ","の","敷","地","に","関","す","る","事","項"]
[]
["【",1,"．","敷","地","の","位","置","】"]
[null,"【","イ","．","防","火","地","域","等","】",null,{"$f":"出力用＿報告書!L77","v":0},"防","火","地","域",null,null,null,null,{"$f":"出力用＿報告書!U77","v":0},"準","防","火","地","域"]
[]
[null,null,null,null,null,null,null,null,null,null,null,{"$f":"出力用＿報告書!L79","v":0},"そ","の","他","（",{"$f":"出力用＿報告書!Q79","v":0},"法","第",2,2,"条","区","域",null,null,null,null,null,null,null,"）",null,{"$f":"出力用＿報告書!AH79","v":0},"指","定","な","し"]
[null,"【","ロ","．","用","途",null,"地","域","】",null,null,{"$f":"出力用＿報告書!L80","v":0},null,null,null,null,null,null,null,null,null,null,null,null,{"$f":"出力用＿報告書!Y80","v":0}]
[]
[]
["【",2,"．","建","築","物","及","び","そ","の","敷","地","の","概","要","】"]
[null,"【","イ","．","構",null,null,"造","】",null,null,{"$f":"出力用＿報告書!L84","v":0},"鉄","筋","コ","ン","ク","リ","ー","ト","造",null,null,null,{"$f":"出力用＿報告書!Y84","v":0},"鉄","骨","鉄","筋","コ","ン","ク","リ","ー","ト","造"]
[]
[null,null,null,null,null,null,null,null,null,null,null,{"$f":"出力用＿報告書!L86","v":0},"鉄","骨","造",null,null,null,null,null,null,null,null,null,{"$f":"出力用＿報告書!Y86","v":0},"そ","の","他","（",{"$f":"出力用＿報告書!AD86","v":0},null,null,null,null,null,null,null,null,"）"]
[null,"【","ロ","．","階",null,null,"数","】",null,null,null,null,"地","上",null,{"$f":"出力用＿報告書!Q87","v":0},null,null,"階",null,null,"地","下",null,{"$f":"出力用＿報告書!Z87","v":0},null,null,"階"]
[null,"【","ハ","．","敷","地","面","積","】",null,null,null,{"$f":"出力用＿報告書!M88","v":0},null,null,null,null,null,null,null,"㎡"]
[null,"【","ニ","．","建","築","面","積","】",null,null,null,{"$f":"出力用＿報告書!M89","v":0},null,null,null,null,null,null,null,"㎡"]
[null,"【","ホ","．","延","べ","面","積","】",null,null,null,{"$f":"出力用＿報告書!M90","v":0},null,null,null,null,null,null,null,"㎡"]
[]
[]
["【",3,"．","階","別","用","途","別","床","面","積","】",null,null,null,null,null,null,"（",null,null,"用","途",null,null,"）",null,null,"（",null,null,"床","面","積",null,null,null,"）",null,null,null,null,null,null,"第一種低層住居専用地域"]
[null,"【","イ","．","階","別","用","途","別","】",null,null,"（",{"$f":"出力用＿報告書!N94","v":0},null,"階","）",null,"（",{"$f":"出力用＿報告書!T94","v":0},null,null,null,null,null,"）",null,null,"（",{"$f":"出力用＿報告書!AC94","v":0},null,null,null,null,null,null,"㎡","）",{"$f":"+出力用＿報告書!AM94","v":0},null,null,null,null,null,"第二種低層住居専用地域"]
[null,null,null,null,null,null,null,null,null,null,null,null,"（",{"$f":"出力用＿報告書!N95","v":0},null,"階","）",null,"（",{"$f":"出力用＿報告書!T95","v":0},null,null,null,null,null,"）",null,null,"（",{"$f":"出力用＿報告書!AC95","v":0},null,null,null,null,null,null,"㎡","）",{"$f":"+出力用＿報告書!AM95","v":0},null,null,null,null,null,"第一種中高層住居専用地域"]
[null,null,null,null,null,null,null,null,null,null,null,null,"（",{"$f":"出力用＿報告書!N96","v":0},null,"階","）",null,"（",{"$f":"出力用＿報告書!T96","v":0},null,null,null,null,null,"）",null,null,"（",{"$f":"出力用＿報告書!AC96","v":0},null,null,null,null,null,null,"㎡","）",{"$f":"+出力用＿報告書!AM96","v":0},null,null,null,null,null,"第二種中高層住居専用地域"]
[null,null,null,null,null,null,null,null,null,null,null,null,"（",{"$f":"出力用＿報告書!N97","v":0},null,"階","）",null,"（",{"$f":"出力用＿報告書!T97","v":0},null,null,null,null,null,"）",null,null,"（",{"$f":"出力用＿報告書!AC97","v":0},null,null,null,null,null,null,"㎡","）",{"$f":"+出力用＿報告書!AM97","v":0},null,null,null,null,null,"第一種住居地域"]
[null,null,null,null,null,null,null,null,null,null,null,null,"（",{"$f":"出力用＿報告書!N98","v":0},null,"階","）",null,"（",{"$f":"出力用＿報告書!T98","v":0},null,null,null,null,null,"）",null,null,"（",{"$f":"出力用＿報告書!AC98","v":0},null,null,null,null,null,null,"㎡","）",{"$f":"+出力用＿報告書!AM98","v":0},null,null,null,null,null,"第二種住居地域"]
[null,null,null,null,null,null,null,null,null,null,null,null,"（",{"$f":"出力用＿報告書!N99","v":0},null,"階","）",null,"（",{"$f":"出力用＿報告書!T99","v":0},null,null,null,null,null,"）",null,null,"（",{"$f":"出力用＿報告書!AC99","v":0},null,null,null,null,null,null,"㎡","）",{"$f":"+出力用＿報告書!AM99","v":0},null,null,null,null,null,"準住居地域"]
[null,null,null,null,null,null,null,null,null,null,null,null,"（",{"$f":"出力用＿報告書!N100","v":0},null,"階","）",null,"（",{"$f":"出力用＿報告書!T100","v":0},null,null,null,null,null,"）",null,null,"（",{"$f":"出力用＿報告書!AC100","v":0},null,null,null,null,null,null,"㎡","）",{"$f":"+出力用＿報告書!AM100","v":0},null,null,null,null,null,"近隣商業地域"]
[null,null,null,null,null,null,null,null,null,null,null,null,"（",{"$f":"出力用＿報告書!N101","v":0},null,"階","）",null,"（",{"$f":"出力用＿報告書!T101","v":0},null,null,null,null,null,"）",null,null,"（",{"$f":"出力用＿報告書!AC101","v":0},null,null,null,null,null,null,"㎡","）",{"$f":"+出力用＿報告書!AM101","v":0},null,null,null,null,null,"商業地域"]
[null,null,null,null,null,null,null,null,null,null,null,null,"（",{"$f":"出力用＿報告書!N102","v":0},null,"階","）",null,"（",{"$f":"出力用＿報告書!T102","v":0},null,null,null,null,null,"）",null,null,"（",{"$f":"出力用＿報告書!AC102","v":0},null,null,null,null,null,null,"㎡","）",{"$f":"+出力用＿報告書!AM102","v":0},null,null,null,null,null,"準工業地域"]
[null,null,null,null,null,null,null,null,null,null,null,null,null,{"$f":"出力用＿報告書!N103","v":"合　計"},null,null,null,null,"（",{"$f":"出力用＿報告書!T103","v":0},null,null,null,null,null,"）",null,null,"（",{"$f":"出力用＿報告書!AC103","v":0},null,null,null,null,null,null,"㎡","）",{"$f":"+出力用＿報告書!AM103","v":0},null,null,null,null,null,"工業地域"]
[null,"【","ロ","．","用","途",null,"別","】",null,null,null,null,{"$f":"出力用＿報告書!N104","v":0},null,null,null,null,"（",{"$f":"出力用＿報告書!T104","v":0},null,null,null,null,null,"）",null,null,"（",{"$f":"出力用＿報告書!AC104","v":0},null,null,null,null,null,null,"㎡","）"]
[null,null,null,null,null,null,null,null,null,null,null,null,null,null,null,null,null,null,"（",{"$f":"出力用＿報告書!T105","v":0},null,null,null,null,null,"）",null,null,"（",{"$f":"出力用＿報告書!AC105","v":0},null,null,null,null,null,null,"㎡","）"]
[null,null,null,null,null,null,null,null,null,null,null,null,null,null,null,null,null,null,"（",{"$f":"出力用＿報告書!T106","v":0},null,null,null,null,null,"）",null,null,"（",{"$f":"出力用＿報告書!AC106","v":0},null,null,null,null,null,null,"㎡","）"]
[null,null,null,null,null,null,null,null,null,null,null,null,null,null,null,null,null,null,"（",{"$f":"出力用＿報告書!T107","v":0},null,null,null,null,null,"）",null,null,"（",{"$f":"出力用＿報告書!AC107","v":0},null,null,null,null,null,null,"㎡","）"]
[]
[]
["【",4,"．","性","能","検","証","法","等","の","適","用","】",null,{"$f":"出力用＿報告書!P110","v":0},"耐","火","性","能","検","証","法",null,null,null,null,null,null,{"$f":"出力用＿報告書!AD110","v":0},"防","火","区","画","検","証","法"]
[]
[null,null,null,null,null,null,null,null,null,null,null,null,null,null,{"$f":"出力用＿報告書!P112","v":0},"区画避難安全検証法",null,null,null,null,null,null,null,"（",{"$f":"+出力用＿報告書!Z112","v":0},null,"階","）",{"$f":"出力用＿報告書!AD112","v":0},"階避難安全検証法",null,null,null,null,null,null,null,"（",{"$f":"+出力用＿報告書!AN112","v":0},null,"階","）"]
[]
[null,null,null,null,null,null,null,null,null,null,null,null,null,null,{"$f":"出力用＿報告書!P114","v":0},"全","館","避","難","安","全","検","証","法",null,null,null,null,{"$f":"出力用＿報告書!AD114","v":0},"そ","の","他","（",{"$f":"+出力用＿報告書!AI114","v":0},null,null,null,null,null,null,null,"）"]
[]
["【",5,"．","増","築","、","改","築","、","用","途","変","更","等","の","経","過","】"]
[null,null,null,{"$f":"出力用＿報告書!D118","v":"Ｓ・Ｈ・Ｒ"},null,null,null,null,{"$f":"出力用＿報告書!I118","v":0},null,"年",{"$f":"出力用＿報告書!L118","v":0},null,"月",{"$f":"出力用＿報告書!O118","v":0},null,"日",null,"概","要","（",{"$f":"出力用＿報告書!V118","v":0},null,null,null,null,null,null,null,null,null,null,null,null,null,null,null,null,null,null,null,"）"]
[null,null,null,{"$f":"出力用＿報告書!D119","v":"Ｓ・Ｈ・Ｒ"},null,null,null,null,{"$f":"出力用＿報告書!I119","v":0},null,"年",{"$f":"出力用＿報告書!L119","v":0},null,"月",{"$f":"出力用＿報告書!O119","v":0},null,"日",null,"概","要","（",{"$f":"出力用＿報告書!V119","v":0},null,null,null,null,null,null,null,null,null,null,null,null,null,null,null,null,null,null,null,"）"]
[null,null,null,{"$f":"出力用＿報告書!D120","v":"Ｓ・Ｈ・Ｒ"},null,null,null,null,{"$f":"出力用＿報告書!I120","v":0},null,"年",{"$f":"出力用＿報告書!L120","v":0},null,"月",{"$f":"出力用＿報告書!O120","v":0},null,"日",null,"概","要","（",{"$f":"出力用＿報告書!V120","v":0},null,null,null,null,null,null,null,null,null,null,null,null,null,null,null,null,null,null,null,"）"]
[null,null,null,{"$f":"出力用＿報告書!D121","v":"Ｓ・Ｈ・Ｒ"},null,null,null,null,{"$f":"出力用＿報告書!I121","v":0},null,"年",{"$f":"出力用＿報告書!L121","v":0},null,"月",{"$f":"出力用＿報告書!O121","v":0},null,"日",null,"概","要","（",{"$f":"出力用＿報告書!V121","v":0},null,null,null,null,null,null,null,null,null,null,null,null,null,null,null,null,null,null,null,"）"]
[]
["【",6,"．","関","連","図","書","の","整","備","状","況","】"]
[null,"【","イ","．","確","認","に","要","し","た","図","書","】",null,null,{"$f":"出力用＿報告書!O125","v":0},"有",null,null,"（",{"$f":"出力用＿報告書!T125","v":0},"各","階","平","面","図","あ","り","）",null,{"$f":"出力用＿報告書!AD125","v":0},"無"]
[]
[null,"【","ロ","．","確","認","済","証","】",null,null,null,null,null,null,{"$f":"出力用＿報告書!O127","v":0},"有",null,null,{"$f":"出力用＿報告書!S127","v":0},"無"]
[null,null,null,null,null,null,null,null,null,null,"交","付","番","号",null,{"$f":"出力用＿報告書!P128","v":"Ｓ・Ｈ・Ｒ"},null,null,null,null,{"$f":"出力用＿報告書!U128","v":0},null,"年",{"$f":"出力用＿報告書!X128","v":0},null,"月",{"$f":"出力用＿報告書!AA128","v":0},null,"日","第",null,{"$f":"出力用＿報告書!AF128","v":0},null,null,null,null,null,null,null,null,null,"号"]
[null,null,null,null,null,null,null,null,null,null,"交","付","者",null,null,{"$f":"出力用＿報告書!P129","v":0},"建","築","主","事",null,{"$f":"出力用＿報告書!V129","v":0},"指","定","確","認","検","査","機","関","（",{"$f":"出力用＿報告書!AF129","v":0},null,null,null,null,null,null,null,null,null,"）"]
[]
[null,"【","ハ","．","完","了","検","査","に","要","し","た","図","書","】",{"$f":"出力用＿報告書!P131","v":0},"有",null,null,{"$f":"出力用＿報告書!T131","v":0},"無"]
[]
[null,"【","ニ","．","検","査","済","証","】",null,null,null,null,null,null,{"$f":"出力用＿報告書!P133","v":0},"有",null,null,{"$f":"出力用＿報告書!T133","v":0},"無"]
[null,null,null,null,null,null,null,null,null,null,"交","付","番","号",null,{"$f":"出力用＿報告書!P134","v":"Ｓ・Ｈ・Ｒ"},null,null,null,null,{"$f":"出力用＿報告書!U134","v":0},null,"年",{"$f":"出力用＿報告書!X134","v":0},null,"月",{"$f":"出力用＿報告書!AA134","v":0},null,"日","第",null,{"$f":"出力用＿報告書!AF134","v":0},null,null,null,null,null,null,null,null,null,"号"]
[null,null,null,null,null,null,null,null,null,null,"交","付","者",null,null,{"$f":"出力用＿報告書!P135","v":0},"建","築","主","事",null,{"$f":"出力用＿報告書!V135","v":0},"指","定","確","認","検","査","機","関","（",{"$f":"出力用＿報告書!AF135","v":0},null,null,null,null,null,null,null,null,null,"）"]
[]
[null,"【","ホ","．","維","持","保","全","に","関","す","る","準","則","又","は","計","画","】",null,{"$f":"出力用＿報告書!U137","v":0},"有",null,null,{"$f":"出力用＿報告書!Y137","v":0},"無"]
[]
[null,"【","ヘ","．","前","回","の","調","査","に","関","す","る","書","類","の","写","し","】",null,{"$f":"出力用＿報告書!U139","v":0},"有",null,null,{"$f":"出力用＿報告書!Y139","v":0},"無",null,null,{"$f":"出力用＿報告書!AD139","v":0},"対","象","外"]
[]
["【",7,"．","備",null,"考","】"]
[null,{"$f":"出力用＿報告書!C143","v":0}]
[]
[null,{"$f":"出力用＿報告書!C253","v":0}]
[]
[]
[null,"（","注","意","）"]
["　この様式には、第三十六号の二様式に記入した内容と同一の内容を記入してください。なお、第一面の"]
["５欄の「ロ」及び「ニ」は同様式第三面の２欄から４欄において指摘があった項目について、第一面の７欄の"]
["「ハ」は同様式第四面に記入されたものについて、すべて記入してください。"]

{"sheet":"出力用＿調査表","index":10,"n_rows":198,"n_cols":18,"rows_kept":198,"cut":false,"hidden":true,"merged":[[141,0,141,14],[151,3,152,7],[153,3,155,7],[147,0,147,1],[147,2,148,7],[147,8,148,8],[147,9,147,10],[148,0,148,1],[148,9,148,10],[149,0,149,14],[150,0,150,1],[150,2,155,2],[150,9,150,10],[151,0,151,1],[151,9,151,10],[152,0,152,1],[152,9,152,10],[153,0,153,1],[153,9,153,10],[154,0,154,1],[154,8,155,8],[154,9,154,10],[155,0,155,1],[155,9,155,10],[150,3,150,7],[5,13,5,14],[6,8,6,12],[6,13,6,14],[8,0,10,1],[8,2,10,10],[8,11,8,13],[8,14,10,14],[9,11,10,11],[14,0,14,1],[14,2,16,8],[14,9,14,10],[15,0,15,1],[15,9,15,10],[16,0,16,1],[16,9,16,10],[11,0,11,1],[11,2,11,14],[12,0,12,1],[12,2,12,8],[12,9,12,10],[13,0,13,1],[13,2,13,8],[13,9,13,10],[1,0,1,14],[3,0,6,2],[3,3,3,7],[3,8,3,12],[3,13,3,14],[4,3,4,7],[4,8,4,12],[4,13,4,14],[5,3,6,7],[5,8,5,12],[21,0,21,1],[21,2,21,14],[22,0,22,1],[22,2,23,8],[22,9,22,10],[23,0,23,1],[23,9,23,10],[17,0,17,1],[17,2,18,8],[17,9,17,10],[18,0,18,1],[18,9,18,10],[19,0,19,1],[19,2,20,8],[19,9,19,10],[20,0,20,1],[20,9,20,10],[27,9,27,10],[28,0,28,1],[28,9,28,10],[29,0,29,1],[29,9,29,10],[30,0,30,1],[30,9,30,10],[24,0,24,1],[24,2,25,8],[24,9,24,10],[25,0,25,1],[25,9,25,10],[26,0,26,1],[26,2,39,2],[26,3,31,8],[26,9,26,10],[27,0,27,1],[31,0,31,1],[31,9,31,10],[32,0,32,1],[32,3,35,8],[32,9,32,10],[33,0,33,1],[33,9,33,10],[34,0,34,1],[34,9,34,10],[35,0,35,1],[38,0,38,1],[38,3,39,8],[38,9,38,10],[39,0,39,1],[39,9,39,10],[40,0,40,1],[40,2,40,14],[35,9,35,10],[36,0,36,1],[36,3,37,8],[36,9,36,10],[37,0,37,1],[37,9,37,10],[41,0,41,1],[41,2,41,8],[41,9,41,10],[42,0,42,1],[42,2,45,8],[42,9,42,10],[43,0,43,1],[43,9,43,10],[44,0,44,1],[44,9,44,10],[48,0,48,1],[48,2,49,8],[48,9,48,10],[49,0,49,1],[49,9,49,10],[50,0,50,1],[50,2,50,14],[45,0,45,1],[45,9,45,10],[46,0,46,1],[46,2,47,8],[46,9,46,10],[47,0,47,1],[47,9,47,10],[51,0,51,1],[51,2,55,2],[51,3,51,10],[52,0,52,1],[52,3,52,10],[53,0,53,1],[53,3,53,10],[54,0,54,1],[54,3,55,8],[54,9,54,10],[55,0,55,1],[55,9,55,10],[56,0,56,1],[56,2,66,2],[56,3,60,8],[56,9,56,10],[57,0,57,1],[57,9,57,10],[58,0,58,1],[58,9,58,10],[63,9,63,10],[64,0,64,1],[64,9,64,10],[65,0,65,1],[65,3,65,8],[65,9,65,10],[59,0,59,1],[59,9,59,10],[60,0,60,1],[60,9,60,10],[61,0,61,1],[61,3,64,8],[61,9,61,10],[62,0,62,1],[62,9,62,10],[63,0,63,1],[69,9,69,10],[70,0,70,1],[70,3,72,8],[70,9,70,10],[71,0,71,1],[71,9,71,10],[72,0,72,1],[72,9,72,10],[66,0,66,1],[66,3,66,8],[66,9,66,10],[67,0,67,1],[67,2,72,2],[67,3,69,8],[67,9,67,10],[68,0,68,1],[68,9,68,10],[69,0,69,1],[73,0,73,1],[73,2,75,2],[73,3,74,8],[73,9,73,10],[74,0,74,1],[74,9,74,10],[75,0,75,1],[75,3,75,8],[75,9,75,10],[80,9,80,10],[81,0,81,1],[81,9,81,10],[82,0,82,1],[82,9,82,10],[83,0,83,1],[83,9,83,10],[76,0,76,1],[76,9,76,10],[77,0,77,1],[77,9,77,10],[78,0,78,1],[78,9,78,10],[79,0,79,1],[79,9,79,10],[80,0,80,1],[76,2,82,8],[83,2,83,8],[84,0,84,1],[84,2,85,8],[84,9,84,10],[85,0,85,1],[85,9,85,10],[86,0,86,1],[86,9,86,10],[87,0,87,1],[87,9,87,10],[86,2,87,2],[86,3,87,8],[88,0,88,1],[88,9,88,10],[89,0,89,1],[89,9,89,10],[90,0,90,1],[90,9,90,10],[91,0,91,1],[91,9,91,10],[92,0,92,1],[88,2,91,8],[92,2,95,8],[96,0,96,1],[96,2,96,14],[97,0,97,1],[97,2,97,8],[97,9,97,10],[92,9,92,10],[93,0,93,1],[93,9,93,10],[94,0,94,1],[94,9,94,10],[95,0,95,1],[95,9,95,10],[98,0,98,1],[98,2,99,8],[98,9,98,10],[99,0,99,1],[99,9,99,10],[100,0,100,1],[100,2,101,8],[100,9,100,10],[101,0,101,1],[101,9,101,10],[102,0,102,1],[102,2,102,8],[102,9,102,10],[103,0,103,1],[103,2,106,8],[103,9,103,10],[104,0,104,1],[104,9,104,10],[105,0,105,1],[105,9,105,10],[110,0,110,1],[110,9,110,10],[111,0,111,1],[111,9,111,10],[112,0,112,1],[112,3,112,8],[112,9,112,10],[106,0,106,1],[106,9,106,10],[107,0,107,1],[107,3,111,8],[107,9,107,10],[108,0,108,1],[108,9,108,10],[109,0,109,1],[109,9,109,10],[117,0,117,1],[117,9,117,10],[118,0,118,1],[118,9,118,10],[119,0,119,1],[119,9,119,10],[113,0,113,1],[113,3,114,8],[113,9,113,10],[114,0,114,1],[114,9,114,10],[115,0,115,1],[115,9,115,10],[116,0,116,1],[116,9,116,10],[107,2,118,2],[115,3,116,8],[117,3,118,8],[119,2,122,2],[119,3,120,8],[121,3,122,8],[120,0,120,1],[120,9,120,10],[121,0,121,1],[121,9,121,10],[122,0,122,1],[122,9,122,10],[123,0,123,1],[123,9,123,10],[124,0,124,1],[124,9,124,10],[125,0,125,1],[125,9,125,10],[123,2,129,2],[123,3,124,8],[125,3,126,8],[127,3,128,8],[129,3,129,8],[126,0,126,1],[126,9,126,10],[127,0,127,1],[127,9,127,10],[128,0,128,1],[128,9,128,10],[129,0,129,1],[129,9,129,10],[138,9,138,10],[139,0,139,1],[139,9,139,10],[133,9,133,10],[134,0,134,1],[134,9,134,10],[135,0,135,1],[135,2,135,8],[135,9,135,10],[130,2,130,14],[131,0,131,1],[131,2,134,2],[131,3,132,8],[131,9,131,10],[132,0,132,1],[132,9,132,10],[133,0,133,1],[133,3,134,8],[156,0,156,8],[157,0,157,10],[158,3,158,4],[160,0,160,8],[161,0,161,1],[161,2,161,7],[161,8,161,9],[161,10,161,13],[164,0,164,1],[164,2,164,7],[164,8,164,9],[164,10,164,13],[165,0,165,1],[165,2,165,7],[165,8,165,9],[165,10,165,13],[162,0,162,1],[162,2,162,7],[162,8,162,9],[162,10,162,13],[163,0,163,1],[163,2,163,7],[163,8,163,9],[163,10,163,13],[181,0,181,1],[181,2,181,7],[181,8,181,9],[181,10,181,13],[183,0,183,14],[184,0,184,1],[184,2,184,14],[166,0,166,1],[166,2,166,7],[166,8,166,9],[166,10,166,13],[167,0,167,1],[167,2,167,7],[167,8,167,9],[167,10,167,13],[168,0,168,1],[168,2,168,7],[168,8,168,9],[168,10,168,13],[169,0,169,1],[169,2,169,7],[169,8,169,9],[169,10,169,13],[178,0,178,1],[188,0,188,1],[188,2,188,14],[189,0,189,1],[189,2,189,14],[190,0,190,1],[190,2,190,14],[185,0,185,1],[185,2,185,14],[186,0,186,1],[186,2,186,14],[187,0,187,1],[187,2,187,14],[195,0,195,1],[195,2,195,14],[196,0,196,1],[196,2,196,14],[197,0,197,1],[197,2,197,14],[191,0,191,1],[191,2,191,14],[192,0,192,1],[192,2,192,14],[194,0,194,1],[194,2,194,14],[193,0,193,1],[193,2,193,14],[178,2,178,7],[178,8,178,9],[178,10,178,13],[179,0,179,1],[179,2,179,7],[179,8,179,9],[179,10,179,13],[180,0,180,1],[180,2,180,7],[180,8,180,9],[180,10,180,13],[170,0,170,1],[170,2,170,7],[170,8,170,9],[170,10,170,13],[171,0,171,1],[171,2,171,7],[171,8,171,9],[171,10,171,13],[172,0,172,1],[172,2,172,7],[172,8,172,9],[172,10,172,13],[177,0,177,1],[177,2,177,7],[177,8,177,9],[177,10,177,13],[176,0,176,1],[176,2,176,7],[176,8,176,9],[176,10,176,13],[173,0,173,1],[173,2,173,7],[173,8,173,9],[173,10,173,13],[174,0,174,1],[174,2,174,7],[174,8,174,9],[174,10,174,13],[175,0,175,1],[175,2,175,7],[175,8,175,9],[175,10,175,13],[146,0,146,1],[146,9,146,10],[130,0,130,1],[140,0,140,1],[142,2,145,8],[146,5,146,8],[146,2,146,4],[140,2,140,14],[142,0,142,1],[142,9,142,10],[143,0,143,1],[143,9,143,10],[144,0,144,1],[144,9,144,10],[145,0,145,1],[145,9,145,10],[136,0,136,1],[136,2,139,2],[136,3,137,8],[136,9,136,10],[137,0,137,1],[137,9,137,10],[138,0,138,1],[138,3,139,8]]}
["別記（A４)　2022.4.1.～"]
["調査結果表"]
[]
["当該調査に関与した調査者",null,null,null,null,null,null,null,"　　氏　名",null,null,null,null,"調査者番号"]
[null,null,null,"代表となる調査者"]
[null,null,null,"その他の調査者"]
[]
[]
["番号",null,"調　査　項　目",null,null,null,null,null,null,null,null,"調査結果",null,null,"担当\n調査者\n番号"]
[null,null,null,null,null,null,null,null,null,null,null,"指摘\nなし","要是正"]
[null,null,null,null,null,null,null,null,null,null,null,null,null,"既　存\n不適格"]
[1,null,"敷地及び地盤"]
["(1)",null,"地盤",null,null,null,null,null,null,"地盤沈下等による不陸、傾斜等の状況"]
["(2)",null,"敷地",null,null,null,null,null,null,"敷地内の排水の状況"]
["(3)",null,"建築基準法施行令(昭和25年政令第338号。以下「令」という。)第128条に規定する通路(以下「敷地内の通路」という。)",null,null,null,null,null,null,"敷地内の通路の確保の状況"]
["(4)",null,null,null,null,null,null,null,null,"有効幅員の確保の状況"]
["(5)",null,null,null,null,null,null,null,null,"敷地内の通路の支障物の状況"]
["(6)",null,"塀",null,null,null,null,null,null,"組積造の塀又は補強コンクリートブロック造の塀等の耐震対策の状況"]
["(7)",null,null,null,null,null,null,null,null,"組積造の塀又は補強コンクリートブロック造の塀等の劣化及び損傷の状況"]
["(8)",null,"擁壁",null,null,null,null,null,null,"擁壁の劣化及び損傷の状況"]
["(9)",null,null,null,null,null,null,null,null,"擁壁の水抜きパイプの維持保全の状況"]
[2,null,"建築物の外部"]
["(1)",null,"基礎",null,null,null,null,null,null,"基礎の沈下等の状況"]
["(2)",null,null,null,null,null,null,null,null,"基礎の劣化及び損傷の状況"]
["(3)",null,"土台（木造に限る。）",null,null,null,null,null,null,"土台の沈下等の状況"]
["(4)",null,null,null,null,null,null,null,null,"土台の劣化及び損傷の状況"]
["(5)",null,"外壁","躯体等",null,null,null,null,null,"外壁、軒裏及び外壁の開口部で延焼のおそれのある部分の防火対策の状況"]
["(6)",null,null,null,null,null,null,null,null,"木造の外壁躯体の劣化及び損傷の状況"]
["(7)",null,null,null,null,null,null,null,null,"組積造の外壁躯体の劣化及び損傷の状況"]
["(8)",null,null,null,null,null,null,null,null,"補強コンクリートブロック造の外壁躯体の劣化及び損傷の状況"]
["(9)",null,null,null,null,null,null,null,null,"鉄骨造の外壁躯体の劣化及び損傷の状況"]
["(10)",null,null,null,null,null,null,null,null,"鉄筋コンクリート造及び鉄骨鉄筋コンクリート造の外壁躯体の劣化及び損傷の状況"]
["(11)",null,null,"外装仕上げ材等",null,null,null,null,null,"タイル、石貼り等（乾式工法によるものを除く）、モルタル等の劣化及び損傷の状況"]
["(12)",null,null,null,null,null,null,null,null,"乾式工法によるタイル、石貼り等の劣化及び損傷の状況"]
["(13)",null,null,null,null,null,null,null,null,"金属系パネル（帳壁を含む）の劣化及び損傷の状況"]
["(14)",null,null,null,null,null,null,null,null,"コンクリート系パネル（帳壁を含む。）の劣化及び損傷の状況"]
["(15)",null,null,"窓サッシ等",null,null,null,null,null,"サッシ等の劣化及び損傷の状況"]
["(16)",null,null,null,null,null,null,null,null,"はめ殺し窓のガラスの固定の状況"]
["(17)",null,null,"外壁に緊結された広告板、空調室外機等",null,null,null,null,null,"機器本体の劣化及び損傷の状況"]
["(18)",null,null,null,null,null,null,null,null,"支持部分等の劣化及び損傷の状況"]
[3,null,"屋上及び屋根"]
["(1)",null,"屋上面",null,null,null,null,null,null,"屋上面の劣化及び損傷の状況"]
["(2)",null,"屋上周り（屋上面を除く。）",null,null,null,null,null,null,"パラペットの立上り面の劣化及び損傷の状況"]
["(3)",null,null,null,null,null,null,null,null,"笠木モルタル等の劣化及び損傷の状況"]
["(4)",null,null,null,null,null,null,null,null,"金属笠木の劣化及び損傷の状況"]
["(5)",null,null,null,null,null,null,null,null,"排水溝（ドレーンを含む。）の劣化及び損傷の状況"]
["(6)",null,"屋根",null,null,null,null,null,null,"屋根の防火対策の状況"]
["(7)",null,null,null,null,null,null,null,null,"屋根の劣化及び損傷の状況"]
["(8)",null,"機器及び工作物（冷却等設備、広告塔等）",null,null,null,null,null,null,"機器、工作物本体及び接合部の劣化及び損傷の状況"]
["(9)",null,null,null,null,null,null,null,null,"支持部分等の劣化及び損傷の状況"]
[4,null,"建築物の内部"]
["(1)",null,"防火区画","令第112条第11項から第13項までに規定する区画の状況"]
["(2)",null,null,"令第112条第１項、第４項、第５項又は第７項から第10項までの各項に規定する区画の状況"]
["(3)",null,null,"令第112条第18項に規定する区画の状況"]
["(4)",null,null,"防火区画の外周部",null,null,null,null,null,"令第112条第16項に規定する外壁等及び同条第17項に規定する防火設備の処置の状況"]
["(5)",null,null,null,null,null,null,null,null,"令第112条第16項に規定する外壁等及び同条第17項に規定する防火設備の劣化及び損傷の状況"]
["(6)",null,"壁の室内に面する部分","躯体等",null,null,null,null,null,"木造の壁の室内に面する部分の躯体の劣化及び損傷の状況"]
["(7)",null,null,null,null,null,null,null,null,"組積造の壁の室内に面する部分の躯体の劣化及び損傷の状況"]
["(8)",null,null,null,null,null,null,null,null,"補強コンクリートブロック造の壁の室内に面する部分の躯体の劣化及び損傷の状況"]
["(9)",null,null,null,null,null,null,null,null,"鉄骨造の壁の室内に面する部分の躯体の劣化及び損傷の状況"]
["(10)",null,null,null,null,null,null,null,null,"鉄筋コンクリート造及び鉄骨鉄筋コンクリート造の壁の室内に面する部分の躯体の劣化及び損傷の状況"]
["(11)",null,null,"耐火構造の壁又は準耐火構造の壁（防火区画を構成する壁等に限る）",null,null,null,null,null,"準耐火性能等の確保の状況"]
["(12)",null,null,null,null,null,null,null,null,"部材の劣化及び損傷の状況"]
["(13)",null,null,null,null,null,null,null,null,"鉄骨の耐火被覆の劣化及び損傷の状況"]
["(14)",null,null,null,null,null,null,null,null,"給水管、配電管その他の管又は風道の区画貫通部の充填等の処理の状況"]
["(15)",null,null,"令第114条に規定する界壁、間仕切壁及び隔壁",null,null,null,null,null,"令第114条に規定する界壁、間仕切壁及び隔壁の状況"]
["(16)",null,null,"令第128条の5各項に規定する建築物の壁の室内に面する部分",null,null,null,null,null,"室内に面する部分の仕上げの維持保全の状況"]
["(17)",null,"床","躯体等",null,null,null,null,null,"木造の床躯体の劣化及び損傷の状況"]
["(18)",null,null,null,null,null,null,null,null,"鉄骨造の床躯体の劣化及び損傷の状況"]
["(19)",null,null,null,null,null,null,null,null,"鉄筋コンクリート造及び鉄骨鉄筋コンクリート造の床躯体の劣化及び損傷の状況"]
["(20)",null,null,"耐火構造の床又は準耐火構造の床（防火区画を構成する床に限る）",null,null,null,null,null,"準耐火性能等の確保の状況"]
["(21)",null,null,null,null,null,null,null,null,"部材の劣化及び損傷の状況"]
["(22)",null,null,null,null,null,null,null,null,"給水管、配電管その他の管又は風道の区画貫通部の充填等の処理の状況"]
["(23)",null,"天井","令第128条の5各項に規定する建築物の天井の室内に面する部分",null,null,null,null,null,"室内に面する部分の仕上げの維持保全の状況"]
["(24)",null,null,null,null,null,null,null,null,"室内に面する部分の仕上げの劣化及び損傷の状況"]
["(25)",null,null,"特定天井",null,null,null,null,null,"特定天井の天井材の劣化及び損傷の状況"]
["(26)",null,"防火設備（防火扉、防火シャッターその他これらに類するものに限る。）又は戸（令第112条第19項第2号に掲げる戸に限る。）",null,null,null,null,null,null,"区画に対応した防火設備又は戸の設置の状況"]
["(27)",null,null,null,null,null,null,null,null,"居室から地上へ通じる主たる廊下、階段その他の通路に設置された防火設備又は戸におけるくぐり戸の設置の状況"]
["(28)",null,null,null,null,null,null,null,null,"防火扉又は戸の開放方向"]
["(29)",null,null,null,null,null,null,null,null,"常閉防火設備等（防火扉を除く）の本体及び枠の劣化及び損傷の状況"]
["(30)",null,null,null,null,null,null,null,null,"各階の主要な常閉防火設備等（防火扉を除く）の閉鎖又は作動の状況"]
["(31)",null,null,null,null,null,null,null,null,"常閉防火設備等(防火扉を除く)の閉鎖又は作動の障害となる物品の放置並びに照明器具及び懸垂物等の状況"]
["(32)",null,null,null,null,null,null,null,null,"常時閉鎖した状態にある戸の固定の状況"]
["(33)",null,"照明器具、懸垂物等",null,null,null,null,null,null,"照明器具、懸垂物等の落下防止対策の状況　"]
["(34)",null,"警報設備",null,null,null,null,null,null,"警報設備の設置の状況"]
["(35)",null,null,null,null,null,null,null,null,"警報設備の劣化及び損傷の状況"]
["(36)",null,"スプリンクラー設備","令和6年国土交通省告示第284号第1第1号又は第2号ニに規定するスプリンクラー設備",null,null,null,null,null,"スプリンクラー設備の設置の状況"]
["(37)",null,null,null,null,null,null,null,null,"スプリンクラー設備の劣化及び損傷の状況"]
["(38)",null,"居室の採光及び換気",null,null,null,null,null,null,"採光のための開口部の面積の確保の状況"]
["(39)",null,null,null,null,null,null,null,null,"採光の妨げとなる物品の放置の状況"]
["(40)",null,null,null,null,null,null,null,null,"換気のための開口部の面積の確保の状況"]
["(41)",null,null,null,null,null,null,null,null,"換気設備の設置の状況"]
["(42)",null,"石綿等を添加した建築材料　",null,null,null,null,null,null,"吹付け石綿及び吹付けロックウールでその含有する石綿の重量が当該建築材料の重量の0.1パーセントを超えるもの（以下「吹付け石綿等」という。）の使用の状況"]
["(43)",null,null,null,null,null,null,null,null,"吹付け石綿等の劣化の状況　"]
["(44)",null,null,null,null,null,null,null,null,"除去又は囲い込み若しくは封じ込めによる飛散防止措置の実施の状況　"]
["(45)",null,null,null,null,null,null,null,null,"囲い込み又は封じ込めによる飛散防止措置の劣化及び損傷の状況　",null,null,null,null,null,null,"　"]
[5,null,"避難施設等"]
["(1)",null,"令第120条第２項に規定する通路",null,null,null,null,null,null,"令第120条第２項に規定する通路の確保の状況"]
["(2)",null,"廊下",null,null,null,null,null,null,"幅の確保の状況\n"]
["(3)",null,null,null,null,null,null,null,null,"物品の放置の状況"]
["(4)",null,"出入口",null,null,null,null,null,null,"出入口の確保の状況"]
["(5)",null,null,null,null,null,null,null,null,"物品の放置の状況"]
["(6)",null,"屋上広場",null,null,null,null,null,null,"屋上広場の確保の状況"]
["(7)",null,"避難上有効なバルコニー",null,null,null,null,null,null,"避難上有効なバルコニーの確保の状況"]
["(8)",null,null,null,null,null,null,null,null,"手すり等の劣化及び損傷の状況"]
["(9)",null,null,null,null,null,null,null,null,"物品の放置の状況"]
["(10)",null,null,null,null,null,null,null,null,"避難器具の操作性の確保の状況"]
["(11)",null,"階段","階段",null,null,null,null,null,"直通階段の設置の状況"]
["(12)",null,null,null,null,null,null,null,null,"幅の確保の状況"]
["(13)",null,null,null,null,null,null,null,null,"手すりの設置の状況"]
["(14)",null,null,null,null,null,null,null,null,"物品の放置の状況"]
["(15)",null,null,null,null,null,null,null,null,"階段各部の劣化及び損傷の状況"]
["(16)",null,null,"屋内に設けられた避難階段",null,null,null,null,null,"階段室の構造の状況"]
["(17)",null,null,"屋外に設けられた避難階段",null,null,null,null,null,"屋内と階段との間の防火区画の確保の状況"]
["(18)",null,null,null,null,null,null,null,null,"開放性の確保の状況"]
["(19)",null,null,"特別避難階段",null,null,null,null,null,"バルコニー又は付室の構造及び面積の確保の状況"]
["(20)",null,null,null,null,null,null,null,null,"付室等の排煙設備の設置の状況"]
["(21)",null,null,null,null,null,null,null,null,"付室等の外気に向かって開くことができる窓の状況"]
["(22)",null,null,null,null,null,null,null,null,"物品の放置の状況"]
["(23)",null,"排煙設備等","防煙壁",null,null,null,null,null,"防煙区画の設置の状況"]
["(24)",null,null,null,null,null,null,null,null,"防煙壁の劣化及び損傷の状況"]
["(25)",null,null,"排煙設備",null,null,null,null,null,"排煙設備の設置の状況"]
["(26)",null,null,null,null,null,null,null,null,"排煙口の維持保全の状況"]
["(27)",null,"その他の設備等","非常用の進入口等",null,null,null,null,null,"非常用の進入口等の設置の状況"]
["(28)",null,null,null,null,null,null,null,null,"非常用の進入口等の維持保全の状況"]
["(29)",null,null,"非常用エレベーター",null,null,null,null,null,"乗降ロビーの構造及び面積の確保の状況"]
["(30)",null,null,null,null,null,null,null,null,"乗降ロビー等の排煙設備の設置の状況"]
["(31)",null,null,null,null,null,null,null,null,"乗降ロビー等の外気に向かって開くことができる窓の状況"]
["(32)",null,null,null,null,null,null,null,null,"物品の放置の状況"]
["(33)",null,null,"非常用の照明装置",null,null,null,null,null,"非常用の照明装置の設置の状況"]
[6,null,"その他"]
["(1)",null,"特殊な構造等","膜構造建築物の膜体、取付部材等",null,null,null,null,null,"膜体及び取付部材の劣化及び損傷の状況"]
["(2)",null,null,null,null,null,null,null,null,"膜張力及びケーブル張力の状況"]
["(3)",null,null,"免震構造建築物の免震層及び免震装置",null,null,null,null,null,"免震装置の劣化及び損傷の状況（免震装置が可視状態にある場合に限る。）"]
["(4)",null,null,null,null,null,null,null,null,"上部構造の可動の状況"]
["(5)",null,"避雷設備",null,null,null,null,null,null,"避雷針、避雷導線等の劣化及び損傷の状況"]
["(6)",null,"煙突","建築物に設ける煙突",null,null,null,null,null,"煙突本体及び建築物との接合部の劣化及び損傷の状況"]
["(7)",null,null,null,null,null,null,null,null,"付帯金物の劣化及び損傷の状況"]
["(8)",null,null,"令第138条第１項第一号に掲げる煙突",null,null,null,null,null,"煙突本体の劣化及び損傷の状況"]
["(9)",null,null,null,null,null,null,null,null,"付帯金物の劣化及び損傷の状況"]
[7,null,"上記以外の調査項目"]
["建築物の内部"]
["(1)",null,"各階の主要な常時閉鎖した状態にある防火扉",null,null,null,null,null,null,"閉鎖又は作動の障害となる物品の放置並びに照明器具及び懸垂物等の状況"]
["(2)",null,null,null,null,null,null,null,null,"扉の取付けの状況"]
["(3)",null,null,null,null,null,null,null,null,"扉、枠及び金物の劣化及び損傷の状況"]
["(4)",null,null,null,null,null,null,null,null,"固定の状況"]
["(5)",null,null,null,null,"人の通行の用に供する部分に設ける防火扉",null,null,null,"作動の状況"]
["(6)",null,"共同住宅に限る",null,null,null,null,null,"居室の換気","換気設備の作動の状況"]
["(7)",null,null,null,null,null,null,null,null,"換気の妨げとなる物品の放置の状況"]
["避難施設等"]
["(8)",null,"共同住宅に限る","階段",null,null,null,null,"特別避難階段","付室等の排煙設備の作動の状況"]
["(9)",null,null,"排煙設備等",null,null,null,null,"防煙壁","可動式防煙壁の作動の状況"]
["(10)",null,null,null,null,null,null,null,"排煙設備","排煙設備の作動の状況"]
["(11)",null,null,"その他の設備等",null,null,null,null,"非常用エレベーター","乗降ロビー等の排煙設備の作動の状況"]
["(12)",null,null,null,null,null,null,null,"非常用の照明装置","非常用の照明装置の作動の状況"]
["(13)",null,null,null,null,null,null,null,null,"照明の妨げとなる物品の放置の状況"]
["その他確認事項"]
["　法第12条3項の規定による検査を要する防火設備の有無",null,null,null,null,null,null,null,null,null,null,null,null,null,null,null,null,"✓"]
[null,null,"有(",null,null,"階)",null,null,"無"]
[]
["特記事項"]
["番号",null,"調査項目",null,null,null,null,null,"指摘の具体的内容等",null,"改善策の具体的内容等",null,null,null,"改善（予定）年月"]
[]
[]
[]
[]
[]
[]
[]
[]
[]
[]
[]
[]
[]
[]
[]
[]
[]
[]
[]
[]
[]
["（注意）"]
["①",null,"　この書類は、特定建築物等ごとに作成してください。"]
["②",null,"　記入欄が不足する場合は、枠を拡大、行を追加して記入するか、別紙に必要な事項を記入して添えてください。"]
["③",null,"　「当該調査に関与した調査者」欄は、建築基準法施行規則別記第36号の２様式第一面３欄に記入した調査者について記入し、「調査者番号」欄に調査者を特定できる番号、記号等を記入してください。当該建築物の調査を行った調査者が１人の場合は、その他の調査者欄は削除して構いません。"]
["④",null,"　該当しない調査項目がある場合は、当該項目の「番号」欄から「担当調査者番号」欄までを取消線で抹消してください。"]
["⑤",null,"　「調査結果」欄は、別表（い）欄に掲げる各調査項目ごとに記入してください。"]
["⑥",null,"　「調査結果」欄のうち「要是正」欄は、別表（い）欄に掲げる調査項目について（は）欄に掲げる判定基準に該当する場合に○印を記入してください。"]
["⑦",null,"　「調査結果」欄のうち「指摘なし」欄は、⑥に該当しない場合に○印を記入してください。"]
["⑧",null,"　「既存不適格」欄は、「要是正」欄に○印を記入した場合で、建築基準法第３条第２項の規定の適用を受けているものであることが確認されたときは、○印を記入してください。"]
["⑨",null,"　「担当調査者番号」欄は、「調査に関与した調査者」欄で記入した番号、記号等を記入してください。ただし、当該建築物の調査を行った調査者が１人の場合は、記入しなくても構いません。"]
["⑩",null,"　７「上記以外の調査項目」欄は、第2の規定により特定行政庁が調査項目等を付加している場合に、当該調査項目等を追加し、⑤から⑨までに準じて調査結果を記入してください。"]
["⑪",null,"　「その他確認事項」は、法第12条3項の規定による検査を要する随時閉鎖または、作動ができる防火設備の設置の有無を確認し、該当するチェックボックスに「✓」マークを入れてください。「有」の場合は、該当防火設備が設置されている階を記入してください。"]
["⑫",null,"　「特記事項」は、調査の結果、要是正の指摘があった場合のほか、指摘がない場合にあっても特記すべき事項がある場合に、該当する調査項目の番号、調査項目を記入し、「指摘の具体的内容等」欄に指摘又は特記すべき事項の具体的内容を記入するとともに、改善済みの場合及び改善策が明らかになっている場合は「改善策の具体的内容等」欄にその内容を記入し、改善した場合は「改善（予定）年月」欄に当該年月を記入し、改善予定年月が明らかになっている場合は「改善（予定）年月」欄に当該年月を（　）書きで記入してください。"]
["⑬",null,"配置図及び各階平面図を別添１の様式に従い添付し、指摘(特記すべき事項を含む）のあった箇所や撮影した写真の位置等を明記してください。"]
["⑭",null,"　要是正とされた調査項目（既存不適格の場合を除く。）については、要是正とされた部分を撮影した写真を別添２の様式に従い添付してください。"]

{"sheet":"出力用＿調査表_旧","index":11,"n_rows":191,"n_cols":18,"rows_kept":191,"cut":false,"hidden":true,"merged":[[5,13,5,14],[6,8,6,12],[6,13,6,14],[8,0,10,1],[8,2,10,10],[8,11,8,13],[8,14,10,14],[9,11,10,11],[1,0,1,14],[3,0,6,2],[3,3,3,7],[3,8,3,12],[3,13,3,14],[4,3,4,7],[4,8,4,12],[4,13,4,14],[5,3,6,7],[5,8,5,12],[14,0,14,1],[14,2,16,8],[14,9,14,10],[15,0,15,1],[15,9,15,10],[16,0,16,1],[16,9,16,10],[11,0,11,1],[11,2,11,14],[12,0,12,1],[12,2,12,8],[12,9,12,10],[13,0,13,1],[13,2,13,8],[13,9,13,10],[21,0,21,1],[21,2,21,14],[22,0,22,1],[22,2,23,8],[22,9,22,10],[23,0,23,1],[23,9,23,10],[17,0,17,1],[17,2,18,8],[17,9,17,10],[18,0,18,1],[18,9,18,10],[19,0,19,1],[19,2,20,8],[19,9,19,10],[20,0,20,1],[20,9,20,10],[27,9,27,10],[28,0,28,1],[28,9,28,10],[29,0,29,1],[29,9,29,10],[30,0,30,1],[30,9,30,10],[24,0,24,1],[24,2,25,8],[24,9,24,10],[25,0,25,1],[25,9,25,10],[26,0,26,1],[26,2,39,2],[26,3,31,8],[26,9,26,10],[27,0,27,1],[31,0,31,1],[31,9,31,10],[32,0,32,1],[32,3,35,8],[32,9,32,10],[33,0,33,1],[33,9,33,10],[34,0,34,1],[34,9,34,10],[35,0,35,1],[38,0,38,1],[38,3,39,8],[38,9,38,10],[39,0,39,1],[39,9,39,10],[40,0,40,1],[40,2,40,14],[35,9,35,10],[36,0,36,1],[36,3,37,8],[36,9,36,10],[37,0,37,1],[37,9,37,10],[41,0,41,1],[41,2,41,8],[41,9,41,10],[42,0,42,1],[42,2,45,8],[42,9,42,10],[43,0,43,1],[43,9,43,10],[44,0,44,1],[44,9,44,10],[48,0,48,1],[48,2,49,8],[48,9,48,10],[49,0,49,1],[49,9,49,10],[50,0,50,1],[50,2,50,14],[45,0,45,1],[45,9,45,10],[46,0,46,1],[46,2,47,8],[46,9,46,10],[47,0,47,1],[47,9,47,10],[51,0,51,1],[51,2,55,2],[51,3,51,10],[52,0,52,1],[52,3,52,10],[53,0,53,1],[53,3,53,10],[54,0,54,1],[54,3,55,8],[54,9,54,10],[55,0,55,1],[55,9,55,10],[56,0,56,1],[56,2,66,2],[56,3,60,8],[56,9,56,10],[57,0,57,1],[57,9,57,10],[58,0,58,1],[58,9,58,10],[63,9,63,10],[64,0,64,1],[64,9,64,10],[65,0,65,1],[65,3,65,8],[65,9,65,10],[59,0,59,1],[59,9,59,10],[60,0,60,1],[60,9,60,10],[61,0,61,1],[61,3,64,8],[61,9,61,10],[62,0,62,1],[62,9,62,10],[63,0,63,1],[69,9,69,10],[70,0,70,1],[70,3,72,8],[70,9,70,10],[71,0,71,1],[71,9,71,10],[72,0,72,1],[72,9,72,10],[66,0,66,1],[66,3,66,8],[66,9,66,10],[67,0,67,1],[67,2,72,2],[67,3,69,8],[67,9,67,10],[68,0,68,1],[68,9,68,10],[69,0,69,1],[73,0,73,1],[73,2,75,2],[73,3,74,8],[73,9,73,10],[74,0,74,1],[74,9,74,10],[75,0,75,1],[75,3,75,8],[75,9,75,10],[80,9,80,10],[81,0,81,1],[81,9,81,10],[82,0,82,1],[82,9,82,10],[83,0,83,1],[83,9,83,10],[76,0,76,1],[76,2,83,8],[76,9,76,10],[77,0,77,1],[77,9,77,10],[78,0,78,1],[78,9,78,10],[79,0,79,1],[79,9,79,10],[80,0,80,1],[84,0,84,1],[84,2,85,8],[84,9,84,10],[85,0,85,1],[85,9,85,10],[86,0,86,1],[86,2,87,8],[86,9,86,10],[87,0,87,1],[87,9,87,10],[88,0,88,1],[88,2,93,8],[88,9,88,10],[89,0,89,1],[89,9,89,10],[90,0,90,1],[90,9,90,10],[91,0,91,1],[91,9,91,10],[92,0,92,1],[97,0,97,1],[97,9,97,10],[98,0,98,1],[98,2,98,14],[99,0,99,1],[99,2,99,8],[99,9,99,10],[92,9,92,10],[93,0,93,1],[93,9,93,10],[94,0,94,1],[94,2,97,8],[94,9,94,10],[95,0,95,1],[95,9,95,10],[96,0,96,1],[96,9,96,10],[100,0,100,1],[100,2,101,8],[100,9,100,10],[101,0,101,1],[101,9,101,10],[102,0,102,1],[102,2,103,8],[102,9,102,10],[103,0,103,1],[103,9,103,10],[104,0,104,1],[104,2,104,8],[104,9,104,10],[105,0,105,1],[105,2,108,8],[105,9,105,10],[106,0,106,1],[106,9,106,10],[107,0,107,1],[107,9,107,10],[112,0,112,1],[112,9,112,10],[113,0,113,1],[113,9,113,10],[114,0,114,1],[114,3,114,8],[114,9,114,10],[108,0,108,1],[108,9,108,10],[109,0,109,1],[109,2,121,2],[109,3,113,8],[109,9,109,10],[110,0,110,1],[110,9,110,10],[111,0,111,1],[111,9,111,10],[119,0,119,1],[119,9,119,10],[120,0,120,1],[120,9,120,10],[121,0,121,1],[121,9,121,10],[115,0,115,1],[115,3,116,8],[115,9,115,10],[116,0,116,1],[116,9,116,10],[117,0,117,1],[117,3,121,8],[117,9,117,10],[118,0,118,1],[118,9,118,10],[122,0,122,1],[122,2,127,2],[122,3,124,8],[122,9,122,10],[123,0,123,1],[123,9,123,10],[124,0,124,1],[124,9,124,10],[125,0,125,1],[125,3,127,8],[125,9,125,10],[126,0,126,1],[126,9,126,10],[127,0,127,1],[127,9,127,10],[128,0,128,1],[128,2,138,2],[128,3,129,8],[128,9,128,10],[129,0,129,1],[129,9,129,10],[130,0,130,1],[130,3,135,8],[130,9,130,10],[131,0,131,1],[131,9,131,10],[132,0,132,1],[132,9,132,10],[133,0,133,1],[133,9,133,10],[134,0,134,1],[134,9,134,10],[135,0,135,1],[135,9,135,10],[136,0,136,1],[136,3,138,8],[136,9,136,10],[137,0,137,1],[137,9,137,10],[138,0,138,1],[142,3,143,8],[142,9,142,10],[143,0,143,1],[143,9,143,10],[144,0,144,1],[144,2,144,8],[144,9,144,10],[138,9,138,10],[139,0,139,1],[139,2,139,14],[140,0,140,1],[140,2,143,2],[140,3,141,8],[140,9,140,10],[141,0,141,1],[141,9,141,10],[142,0,142,1],[148,9,148,10],[145,0,145,1],[145,2,148,2],[145,3,146,8],[145,9,145,10],[146,0,146,1],[146,9,146,10],[147,0,147,1],[147,3,148,8],[147,9,147,10],[148,0,148,1],[155,0,155,1],[155,2,155,7],[155,8,155,9],[155,10,155,13],[156,0,156,1],[156,2,156,7],[156,8,156,9],[156,10,156,13],[149,0,149,8],[150,0,150,10],[151,3,151,4],[153,0,153,8],[154,0,154,1],[154,2,154,7],[154,8,154,9],[154,10,154,13],[159,0,159,1],[159,2,159,7],[159,8,159,9],[159,10,159,13],[160,0,160,1],[160,2,160,7],[160,8,160,9],[160,10,160,13],[157,0,157,1],[157,2,157,7],[157,8,157,9],[157,10,157,13],[158,0,158,1],[158,2,158,7],[158,8,158,9],[158,10,158,13],[163,0,163,1],[163,2,163,7],[163,8,163,9],[163,10,163,13],[164,0,164,1],[164,2,164,7],[164,8,164,9],[164,10,164,13],[161,0,161,1],[161,2,161,7],[161,8,161,9],[161,10,161,13],[162,0,162,1],[162,2,162,7],[162,8,162,9],[162,10,162,13],[167,0,167,1],[167,2,167,7],[167,8,167,9],[167,10,167,13],[168,0,168,1],[168,2,168,7],[168,8,168,9],[168,10,168,13],[165,0,165,1],[165,2,165,7],[165,8,165,9],[165,10,165,13],[166,0,166,1],[166,2,166,7],[166,8,166,9],[166,10,166,13],[171,0,171,1],[171,2,171,7],[171,8,171,9],[171,10,171,13],[172,0,172,1],[172,2,172,7],[172,8,172,9],[172,10,172,13],[169,0,169,1],[169,2,169,7],[169,8,169,9],[169,10,169,13],[170,0,170,1],[170,2,170,7],[170,8,170,9],[170,10,170,13],[176,0,176,14],[177,0,177,1],[177,2,177,14],[178,0,178,1],[178,2,178,14],[179,0,179,1],[179,2,179,14],[173,0,173,1],[173,2,173,7],[173,8,173,9],[173,10,173,13],[174,0,174,1],[174,2,174,7],[174,8,174,9],[174,10,174,13],[183,0,183,1],[183,2,183,14],[184,0,184,1],[184,2,184,14],[185,0,185,1],[185,2,185,14],[180,0,180,1],[180,2,180,14],[181,0,181,1],[181,2,181,14],[182,0,182,1],[182,2,182,14],[189,0,189,1],[189,2,189,14],[190,0,190,1],[190,2,190,14],[186,0,186,1],[186,2,186,14],[187,0,187,1],[187,2,187,14],[188,0,188,1],[188,2,188,14]]}
["別記（A４)　2022.4.1.～"]
["調査結果表"]
[]
["当該調査に関与した調査者",null,null,null,null,null,null,null,"　　氏　名",null,null,null,null,"調査者番号"]
[null,null,null,"代表となる調査者"]
[null,null,null,"その他の調査者"]
[]
[]
["番号",null,"調　査　項　目",null,null,null,null,null,null,null,null,"調査結果",null,null,"担当\n調査者\n番号"]
[null,null,null,null,null,null,null,null,null,null,null,"指摘\nなし","要是正"]
[null,null,null,null,null,null,null,null,null,null,null,null,null,"既　存\n不適格"]
[1,null,"敷地及び地盤"]
["(1)",null,"地盤",null,null,null,null,null,null,"地盤沈下等による不陸、傾斜等の状況"]
["(2)",null,"敷地",null,null,null,null,null,null,"敷地内の排水の状況"]
["(3)",null,"建築基準法施行令(昭和25年政令第338号。以下「令」という。)第128条に規定する通路(以下「敷地内の通路」という。)",null,null,null,null,null,null,"敷地内の通路の確保の状況"]
["(4)",null,null,null,null,null,null,null,null,"有効幅員の確保の状況"]
["(5)",null,null,null,null,null,null,null,null,"敷地内の通路の支障物の状況"]
["(6)",null,"塀",null,null,null,null,null,null,"組積造の塀又は補強コンクリートブロック造の塀等の耐震対策の状況"]
["(7)",null,null,null,null,null,null,null,null,"組積造の塀又は補強コンクリートブロック造の塀等の劣化及び損傷の状況"]
["(8)",null,"擁壁",null,null,null,null,null,null,"擁壁の劣化及び損傷の状況"]
["(9)",null,null,null,null,null,null,null,null,"擁壁の水抜きパイプの維持保全の状況"]
[2,null,"建築物の外部"]
["(1)",null,"基礎",null,null,null,null,null,null,"基礎の沈下等の状況"]
["(2)",null,null,null,null,null,null,null,null,"基礎の劣化及び損傷の状況"]
["(3)",null,"土台（木造に限る。）",null,null,null,null,null,null,"土台の沈下等の状況"]
["(4)",null,null,null,null,null,null,null,null,"土台の劣化及び損傷の状況"]
["(5)",null,"外壁","躯体等",null,null,null,null,null,"外壁、軒裏及び外壁の開口部で延焼のおそれのある部分の防火対策の状況"]
["(6)",null,null,null,null,null,null,null,null,"木造の外壁躯体の劣化及び損傷の状況"]
["(7)",null,null,null,null,null,null,null,null,"組積造の外壁躯体の劣化及び損傷の状況"]
["(8)",null,null,null,null,null,null,null,null,"補強コンクリートブロック造の外壁躯体の劣化及び損傷の状況"]
["(9)",null,null,null,null,null,null,null,null,"鉄骨造の外壁躯体の劣化及び損傷の状況"]
["(10)",null,null,null,null,null,null,null,null,"鉄筋コンクリート造及び鉄骨鉄筋コンクリート造の外壁躯体の劣化及び損傷の状況"]
["(11)",null,null,"外装仕上げ材等",null,null,null,null,null,"タイル、石貼り等（乾式工法によるものを除く）、モルタル等の劣化及び損傷の状況"]
["(12)",null,null,null,null,null,null,null,null,"乾式工法によるタイル、石貼り等の劣化及び損傷の状況"]
["(13)",null,null,null,null,null,null,null,null,"金属系パネル（帳壁を含む）の劣化及び損傷の状況"]
["(14)",null,null,null,null,null,null,null,null,"コンクリート系パネル（帳壁を含む。）の劣化及び損傷の状況"]
["(15)",null,null,"窓サッシ等",null,null,null,null,null,"サッシ等の劣化及び損傷の状況"]
["(16)",null,null,null,null,null,null,null,null,"はめ殺し窓のガラスの固定の状況"]
["(17)",null,null,"外壁に緊結された広告板、空調室外機等",null,null,null,null,null,"機器本体の劣化及び損傷の状況"]
["(18)",null,null,null,null,null,null,null,null,"支持部分等の劣化及び損傷の状況"]
[3,null,"屋上及び屋根"]
["(1)",null,"屋上面",null,null,null,null,null,null,"屋上面の劣化及び損傷の状況"]
["(2)",null,"屋上周り（屋上面を除く。）",null,null,null,null,null,null,"パラペットの立上り面の劣化及び損傷の状況"]
["(3)",null,null,null,null,null,null,null,null,"笠木モルタル等の劣化及び損傷の状況"]
["(4)",null,null,null,null,null,null,null,null,"金属笠木の劣化及び損傷の状況"]
["(5)",null,null,null,null,null,null,null,null,"排水溝（ドレーンを含む。）の劣化及び損傷の状況"]
["(6)",null,"屋根",null,null,null,null,null,null,"屋根の防火対策の状況"]
["(7)",null,null,null,null,null,null,null,null,"屋根の劣化及び損傷の状況"]
["(8)",null,"機器及び工作物（冷却等設備、広告塔等）",null,null,null,null,null,null,"機器、工作物本体及び接合部の劣化及び損傷の状況"]
["(9)",null,null,null,null,null,null,null,null,"支持部分等の劣化及び損傷の状況"]
[4,null,"建築物の内部"]
["(1)",null,"防火区画","令第112条第11項から第13項までに規定する区画の状況"]
["(2)",null,null,"令第112条第１項、第４項、第５項又は第７項から第10項までの各項に規定する区画の状況"]
["(3)",null,null,"令第112条第18項に規定する区画の状況"]
["(4)",null,null,"防火区画の外周部",null,null,null,null,null,"令第112条第16項に規定する外壁等及び同条第17項に規定する防火設備の処置の状況"]
["(5)",null,null,null,null,null,null,null,null,"令第112条第16項に規定する外壁等及び同条第17項に規定する防火設備の劣化及び損傷の状況"]
["(6)",null,"壁の室内に面する部分","躯体等",null,null,null,null,null,"木造の壁の室内に面する部分の躯体の劣化及び損傷の状況"]
["(7)",null,null,null,null,null,null,null,null,"組積造の壁の室内に面する部分の躯体の劣化及び損傷の状況"]
["(8)",null,null,null,null,null,null,null,null,"補強コンクリートブロック造の壁の室内に面する部分の躯体の劣化及び損傷の状況"]
["(9)",null,null,null,null,null,null,null,null,"鉄骨造の壁の室内に面する部分の躯体の劣化及び損傷の状況"]
["(10)",null,null,null,null,null,null,null,null,"鉄筋コンクリート造及び鉄骨鉄筋コンクリート造の壁の室内に面する部分の躯体の劣化及び損傷の状況"]
["(11)",null,null,"耐火構造の壁又は準耐火構造の壁（防火区画を構成する壁等に限る）",null,null,null,null,null,"準耐火性能等の確保の状況"]
["(12)",null,null,null,null,null,null,null,null,"部材の劣化及び損傷の状況"]
["(13)",null,null,null,null,null,null,null,null,"鉄骨の耐火被覆の劣化及び損傷の状況"]
["(14)",null,null,null,null,null,null,null,null,"給水管、配電管その他の管又は風道の区画貫通部の充填等の処理の状況"]
["(15)",null,null,"令第114条に規定する界壁、間仕切壁及び隔壁",null,null,null,null,null,"令第114条に規定する界壁、間仕切壁及び隔壁の状況"]
["(16)",null,null,"令第128条の5各項に規定する建築物の壁の室内に面する部分",null,null,null,null,null,"室内に面する部分の仕上げの維持保全の状況"]
["(17)",null,"床","躯体等",null,null,null,null,null,"木造の床躯体の劣化及び損傷の状況"]
["(18)",null,null,null,null,null,null,null,null,"鉄骨造の床躯体の劣化及び損傷の状況"]
["(19)",null,null,null,null,null,null,null,null,"鉄筋コンクリート造及び鉄骨鉄筋コンクリート造の床躯体の劣化及び損傷の状況"]
["(20)",null,null,"耐火構造の床又は準耐火構造の床（防火区画を構成する床に限る）",null,null,null,null,null,"準耐火性能等の確保の状況"]
["(21)",null,null,null,null,null,null,null,null,"部材の劣化及び損傷の状況"]
["(22)",null,null,null,null,null,null,null,null,"給水管、配電管その他の管又は風道の区画貫通部の充填等の処理の状況"]
["(23)",null,"天井","令第128条の5各項に規定する建築物の天井の室内に面する部分",null,null,null,null,null,"室内に面する部分の仕上げの維持保全の状況"]
["(24)",null,null,null,null,null,null,null,null,"室内に面する部分の仕上げの劣化及び損傷の状況"]
["(25)",null,null,"特定天井",null,null,null,null,null,"特定天井の天井材の劣化及び損傷の状況"]
["(26)",null,"防火設備（防火扉、防火シャッターその他これらに類するものに限る）又は戸",null,null,null,null,null,null,"区画に対応した防火設備又は戸の設置の状況"]
["(27)",null,null,null,null,null,null,null,null,"居室から地上へ通じる主たる廊下、階段その他の通路に設置された防火設備又は戸におけるくぐり戸の設置の状況"]
["(28)",null,null,null,null,null,null,null,null,"昭和48年建設省告示第2563号第１第一号ロに規定する基準への適合の状況"]
["(29)",null,null,null,null,null,null,null,null,"防火扉又は戸の開放方向"]
["(30)",null,null,null,null,null,null,null,null,"常時閉鎖又は作動した状態にある防火設備又は戸(以下「常閉防火設備等」という)の本体と枠の劣化及び損傷の状況"]
["(31)",null,null,null,null,null,null,null,null,"常閉防火設備等の閉鎖又は作動の状況"]
["(32)",null,null,null,null,null,null,null,null,"常閉防火設備等の閉鎖又は作動の障害となる物品の放置の状況"]
["(33)",null,null,null,null,null,null,null,null,"常閉防火扉等の固定の状況"]
["(34)",null,"照明器具、懸垂物等",null,null,null,null,null,null,"照明器具、懸垂物等の落下防止対策の状況　"]
["(35)",null,null,null,null,null,null,null,null,"防火設備又は戸の閉鎖の障害となる照明器具、懸垂物等の状況"]
["(36)",null,"警報設備",null,null,null,null,null,null,"警報設備の設置の状況"]
["(37)",null,null,null,null,null,null,null,null,"警報設備の劣化及び損傷の状況"]
["(38)",null,"居室の採光及び換気",null,null,null,null,null,null,"採光のための開口部の面積の確保の状況"]
["(39)",null,null,null,null,null,null,null,null,"採光の妨げとなる物品の放置の状況"]
["(40)",null,null,null,null,null,null,null,null,"換気のための開口部の面積の確保の状況"]
["(41)",null,null,null,null,null,null,null,null,"換気設備の設置の状況"]
["(42)",null,null,null,null,null,null,null,null,"換気設備の作動の状況"]
["(43)",null,null,null,null,null,null,null,null,"換気の妨げとなる物品の放置の状況"]
["(44)",null,"石綿等を添加した建築材料　",null,null,null,null,null,null,"吹付け石綿及び吹付けロックウールでその含有する石綿の重量が当該建築材料の重量の0.1パーセントを超えるもの（以下「吹付け石綿等」という。）の使用の状況"]
["(45)",null,null,null,null,null,null,null,null,"吹付け石綿等の劣化の状況　",null,null,null,null,null,null,"　"]
["(46)",null,null,null,null,null,null,null,null,"除去又は囲い込み若しくは封じ込めによる飛散防止措置の実施の状況　"]
["(47)",null,null,null,null,null,null,null,null,"囲い込み又は封じ込めによる飛散防止措置の劣化及び損傷の状況　",null,null,null,null,null,null,"　"]
[5,null,"避難施設等"]
["(1)",null,"令第120条第２項に規定する通路",null,null,null,null,null,null,"令第120条第２項に規定する通路の確保の状況"]
["(2)",null,"廊下",null,null,null,null,null,null,"幅の確保の状況\n"]
["(3)",null,null,null,null,null,null,null,null,"物品の放置の状況"]
["(4)",null,"出入口",null,null,null,null,null,null,"出入口の確保の状況"]
["(5)",null,null,null,null,null,null,null,null,"物品の放置の状況"]
["(6)",null,"屋上広場",null,null,null,null,null,null,"屋上広場の確保の状況"]
["(7)",null,"避難上有効なバルコニー",null,null,null,null,null,null,"避難上有効なバルコニーの確保の状況"]
["(8)",null,null,null,null,null,null,null,null,"手すり等の劣化及び損傷の状況"]
["(9)",null,null,null,null,null,null,null,null,"物品の放置の状況"]
["(10)",null,null,null,null,null,null,null,null,"避難器具の操作性の確保の状況"]
["(11)",null,"階段","階段",null,null,null,null,null,"直通階段の設置の状況"]
["(12)",null,null,null,null,null,null,null,null,"幅の確保の状況"]
["(13)",null,null,null,null,null,null,null,null,"手すりの設置の状況"]
["(14)",null,null,null,null,null,null,null,null,"物品の放置の状況"]
["(15)",null,null,null,null,null,null,null,null,"階段各部の劣化及び損傷の状況"]
["(16)",null,null,"屋内に設けられた避難階段",null,null,null,null,null,"階段室の構造の状況"]
["(17)",null,null,"屋外に設けられた避難階段",null,null,null,null,null,"屋内と階段との間の防火区画の確保の状況"]
["(18)",null,null,null,null,null,null,null,null,"開放性の確保の状況"]
["(19)",null,null,"特別避難階段",null,null,null,null,null,"令第123条第3項第一号に規定するバルコニー(以下単に「バルコニー」という。)又は付室(以下単に「付室」という。)の構造及び面積の確保の状況"]
["(20)",null,null,null,null,null,null,null,null,"階段室又は付室(以下「付室等」という。)の排煙設備の設置の状況"]
["(21)",null,null,null,null,null,null,null,null,"付室等の排煙設備の作動の状況"]
["(22)",null,null,null,null,null,null,null,null,"付室等の外気に向かって開くことができる窓の状況"]
["(23)",null,null,null,null,null,null,null,null,"物品の放置の状況"]
["(24)",null,"排煙設備等","防煙壁",null,null,null,null,null,"防煙区画の設置の状況"]
["(25)",null,null,null,null,null,null,null,null,"防煙壁の劣化及び損傷の状況"]
["(26)",null,null,null,null,null,null,null,null,"可動式防煙壁の作動の状況"]
["(27)",null,null,"排煙設備",null,null,null,null,null,"排煙設備の設置の状況"]
["(28)",null,null,null,null,null,null,null,null,"排煙設備の作動の状況"]
["(29)",null,null,null,null,null,null,null,null,"排煙口の維持保全の状況"]
["(30)",null,"その他の設備等","非常用の進入口等",null,null,null,null,null,"非常用の進入口等の設置の状況"]
["(31)",null,null,null,null,null,null,null,null,"非常用の進入口等の維持保全の状況"]
["(32)",null,null,"非常用エレベーター",null,null,null,null,null,"令129条の13の3第3項に規定する乗降ロビー(以下単に「乗降ロビー」という。)の構造及び面積の確保の状況"]
["(33)",null,null,null,null,null,null,null,null,"昇降路又は乗降ロビー(以下「乗降ロビー等」という。)の排煙設備の設置の状況"]
["(34)",null,null,null,null,null,null,null,null,"乗降ロビー等の排煙設備の作動の状況"]
["(35)",null,null,null,null,null,null,null,null,"乗降ロビー等の外気に向かって開くことができる窓の状況"]
["(36)",null,null,null,null,null,null,null,null,"物品の放置の状況"]
["(37)",null,null,null,null,null,null,null,null,"非常用エレベーターの作動の状況"]
["(38)",null,null,"非常用の照明装置",null,null,null,null,null,"非常用の照明装置の設置の状況"]
["(39)",null,null,null,null,null,null,null,null,"非常用の照明装置の作動の状況"]
["(40)",null,null,null,null,null,null,null,null,"照明の妨げとなる物品の放置の状況"]
[6,null,"その他"]
["(1)",null,"特殊な構造等","膜構造建築物の膜体、取付部材等",null,null,null,null,null,"膜体及び取付部材の劣化及び損傷の状況"]
["(2)",null,null,null,null,null,null,null,null,"膜張力及びケーブル張力の状況"]
["(3)",null,null,"免震構造建築物の免震層及び免震装置",null,null,null,null,null,"免震装置の劣化及び損傷の状況（免震装置が可視状態にある場合に限る。）"]
["(4)",null,null,null,null,null,null,null,null,"上部構造の可動の状況"]
["(5)",null,"避雷設備",null,null,null,null,null,null,"避雷針、避雷導線等の劣化及び損傷の状況"]
["(6)",null,"煙突","建築物に設ける煙突",null,null,null,null,null,"煙突本体及び建築物との接合部の劣化及び損傷の状況"]
["(7)",null,null,null,null,null,null,null,null,"付帯金物の劣化及び損傷の状況"]
["(8)",null,null,"令第138条第１項第一号に掲げる煙突",null,null,null,null,null,"煙突本体の劣化及び損傷の状況"]
["(9)",null,null,null,null,null,null,null,null,"付帯金物の劣化及び損傷の状況"]
["その他確認事項"]
["　法第12条3項の規定による検査を要する防火設備の有無",null,null,null,null,null,null,null,null,null,null,null,null,null,null,null,null,"✓"]
[null,null,"有(",null,null,"階)",null,null,"無"]
[]
["特記事項"]
["番号",null,"調査項目",null,null,null,null,null,"指摘の具体的内容等",null,"改善策の具体的内容等",null,null,null,"改善（予定）年月"]
[]
[]
[]
[]
[]
[]
[]
[]
[]
[]
[]
[]
[]
[]
[]
[]
[]
[]
[]
[]
[]
["（注意）"]
["①",null,"　この書類は、特定建築物等ごとに作成してください。"]
["②",null,"　記入欄が不足する場合は、枠を拡大、行を追加して記入するか、別紙に必要な事項を記入して添えてください。"]
["③",null,"　「当該調査に関与した調査者」欄は、建築基準法施行規則別記第36号の２様式第一面３欄に記入した調査者について記入し、「調査者番号」欄に調査者を特定できる番号、記号等を記入してください。当該建築物の調査を行った調査者が１人の場合は、その他の調査者欄は削除して構いません。"]
["④",null,"　該当しない調査項目がある場合は、当該項目の「番号」欄から「担当調査者番号」欄までを取消線で抹消してください。"]
["⑤",null,"　「調査結果」欄は、別表（い）欄に掲げる各調査項目ごとに記入してください。"]
["⑥",null,"　「調査結果」欄のうち「要是正」欄は、別表（い）欄に掲げる調査項目について（は）欄に掲げる判定基準に該当する場合に○印を記入してください。"]
["⑦",null,"　「調査結果」欄のうち「指摘なし」欄は、⑥に該当しない場合に○印を記入してください。"]
["⑧",null,"　「既存不適格」欄は、「要是正」欄に○印を記入した場合で、建築基準法第３条第２項の規定の適用を受けているものであることが確認されたときは、○印を記入してください。"]
["⑨",null,"　「担当調査者番号」欄は、「調査に関与した調査者」欄で記入した番号、記号等を記入してください。ただし、当該建築物の調査を行った調査者が１人の場合は、記入しなくても構いません。"]
["⑩",null,"　「その他確認事項」は、法第12条3項の規定による検査を要する随時閉鎖または、作動ができる防火設備の設置の有無を確認し、該当するチェックボックスに「✓」マークを入れてください。「有」の場合は、該当防火設備が設置されている階を記入してください。"]
["⑪",null,"　「特記事項」は、調査の結果、要是正の指摘があった場合のほか、指摘がない場合にあっても特記すべき事項がある場合に、該当する調査項目の番号、調査項目を記入し、「指摘の具体的内容等」欄に指摘又は特記すべき事項の具体的内容を記入するとともに、改善済みの場合及び改善策が明らかになっている場合は「改善策の具体的内容等」欄にその内容を記入し、改善した場合は「改善（予定）年月」欄に当該年月を記入し、改善予定年月が明らかになっている場合は「改善（予定）年月」欄に当該年月を（　）書きで記入してください。"]
["⑫",null,"配置図及び各階平面図を別添１の様式に従い添付し、指摘(特記すべき事項を含む）のあった箇所や撮影した写真の位置等を明記してください。"]
["⑬",null,"　要是正とされた調査項目（既存不適格の場合を除く。）については、要是正とされた部分を撮影した写真を別添２の様式に従い添付してください。"]
["⑭",null,"　付近見取図を添付してください。"]

{"sheet":"出力用＿関係写真","index":12,"n_rows":50,"n_cols":14,"rows_kept":50,"cut":false,"hidden":true,"merged":[[36,3,40,7],[2,0,3,0],[2,2,2,3],[2,4,2,7],[3,2,3,3],[5,3,15,7],[16,3,20,7],[22,0,23,0],[22,2,22,3],[22,4,22,7],[23,2,23,3],[25,3,35,7]]}
["別添２様式　関係写真（Ａ４）"]
[]
["部位","番号","調査項目",null,"調査結果"]
[null,null,null,null,"□","要是正","□","その他",null,null,null,null,null,"チェック"]
[null,null,null,"特記事項",null,null,null,null,null,null,null,null,null,"□"]
[null,null,null,null,null,null,null,null,null,null,null,null,null,"☑"]
[]
[]
[]
[]
[null,"写真貼付"]
[]
[]
[]
[]
[]
[]
[]
[]
[]
[]
[]
["部位","番号","調査項目",null,"調査結果"]
[null,null,null,null,"□","要是正","□","その他"]
[null,null,null,"特記事項"]
[]
[]
[]
[]
[]
[null,"写真貼付"]
[]
[]
[]
[]
[]
[]
[]
[]
[]
[]
["（注意）"]
["①　　この書類は、検査の結果「要是正」とされた項目のうち、「既存不適格」ではない項目について作成してください。"]
["　　また、「既存不適格」 及び 「指摘なし」 の項目についても、特記すべき事項があれば、必要に応じて作成してください。"]
["　　「要是正」 の項目がない場合は、この書類は省略しても構いません。"]
["②　　記入欄が不足する場合は、枠を拡大し、行を追加して記入するか、別紙に必要な事項を記入して添えてください。"]
["③　　「部位」 欄の 「番号」、 「調査項目」 は、それぞれ別記様式の番号、調査項目に対応したものを記入してください。"]
["④　　「調査結果」欄は、調査の結果、要是正の指摘があった場合は「要是正」のチェックボックスに「☑」マークを入れ、それ"]
["　以外の場合で特記すべき事項がある場合は「その他」のチェックボックス「☑」マークを入れてください。"]
["⑤　　写真は、当該部位の外観の状況が確認できるように撮影したものを添付してください。"]

{"sheet":"旧_出力用＿関係写真","index":13,"n_rows":50,"n_cols":14,"rows_kept":50,"cut":false,"hidden":true,"merged":[[5,3,15,7],[16,3,20,7],[25,3,35,7],[36,3,40,7],[2,0,3,0],[2,2,2,3],[2,4,2,7],[3,2,3,3],[22,0,23,0],[22,2,22,3],[22,4,22,7],[23,2,23,3]]}
["別添２様式　関係写真（Ａ４）"]
[]
["部位","番号","検査項目",null,"調査結果"]
[null,null,null,null,"□","要是正","□","その他",null,null,null,null,null,"チェック"]
[null,null,null,"特記事項",null,null,null,null,null,null,null,null,null,"□"]
[null,null,null,null,null,null,null,null,null,null,null,null,null,"☑"]
[]
[]
[]
[]
[null,"写真貼付"]
[]
[]
[]
[]
[]
[]
[]
[]
[]
[]
[]
["部位","番号","検査項目",null,"調査結果"]
[null,null,null,null,"□","要是正","□","その他"]
[null,null,null,"特記事項"]
[]
[]
[]
[]
[]
[null,"写真貼付"]
[]
[]
[]
[]
[]
[]
[]
[]
[]
[]
["（注意）"]
["①　　この書類は、検査の結果「要是正」とされた項目のうち、「既存不適格」ではない項目について作成してください。"]
["　　また、「既存不適格」 及び 「指摘なし」 の項目についても、特記すべき事項があれば、必要に応じて作成してください。"]
["　　「要是正」 の項目がない場合は、この書類は省略しても構いません。"]
["②　　記入欄が不足する場合は、枠を拡大し、行を追加して記入するか、別紙に必要な事項を記入して添えてください。"]
["③　　「部位」 欄の 「番号」、 「調査項目」 は、それぞれ別記様式の番号、調査項目に対応したものを記入してください。"]
["④　　「調査結果」欄は、調査の結果、要是正の指摘があった場合は「要是正」のチェックボックスに「☑」マークを入れ、それ"]
["　以外の場合で特記すべき事項がある場合は「その他」のチェックボックス「☑」マークを入れてください。"]
["⑤　　写真は、当該部位の外観の状況が確認できるように撮影したものを添付してください。"]

{"sheet":"住所検索用","index":14,"n_rows":389,"n_cols":15,"rows_kept":389,"cut":false,"hidden":true,"merged":[]}
[40131,813,8130000,"ﾌｸｵｶｹﾝ","ﾌｸｵｶｼﾋｶﾞｼｸ","ｲｶﾆｹｲｻｲｶﾞﾅｲﾊﾞｱｲ","福岡県","福岡市東区",null,0,0,0,0,0,0]
[40131,813,8130025,"ﾌｸｵｶｹﾝ","ﾌｸｵｶｼﾋｶﾞｼｸ","ｱｵﾊﾞ","福岡県","福岡市東区","青葉",0,0,1,0,0,0]
[40131,81103,8110322,"ﾌｸｵｶｹﾝ","ﾌｸｵｶｼﾋｶﾞｼｸ","ｵｵﾀｹ","福岡県","福岡市東区","大岳",0,0,1,0,0,0]
[40131,812,8120052,"ﾌｸｵｶｹﾝ","ﾌｸｵｶｼﾋｶﾞｼｸ","ｶｲﾂﾞｶﾀﾞﾝﾁ","福岡県","福岡市東区","貝塚団地",0,0,0,0,0,0]
[40131,813,8130011,"ﾌｸｵｶｹﾝ","ﾌｸｵｶｼﾋｶﾞｼｸ","ｶｼｲ","福岡県","福岡市東区","香椎",0,0,1,0,0,0]
[40131,813,8130013,"ﾌｸｵｶｹﾝ","ﾌｸｵｶｼﾋｶﾞｼｸ","ｶｼｲｴｷﾏｴ","福岡県","福岡市東区","香椎駅前",0,0,1,0,0,0]
[40131,813,8130012,"ﾌｸｵｶｹﾝ","ﾌｸｵｶｼﾋｶﾞｼｸ","ｶｼｲｴｷﾋｶﾞｼ","福岡県","福岡市東区","香椎駅東",0,0,1,0,0,0]
[40131,813,8130014,"ﾌｸｵｶｹﾝ","ﾌｸｵｶｼﾋｶﾞｼｸ","ｶｼｲﾀﾞｲ","福岡県","福岡市東区","香椎台",0,0,1,0,0,0]
[40131,813,8130015,"ﾌｸｵｶｹﾝ","ﾌｸｵｶｼﾋｶﾞｼｸ","ｶｼｲﾀﾞﾝﾁ","福岡県","福岡市東区","香椎団地",0,0,0,0,0,0]
[40131,813,8130017,"ﾌｸｵｶｹﾝ","ﾌｸｵｶｼﾋｶﾞｼｸ","ｶｼｲﾃﾘﾊ","福岡県","福岡市東区","香椎照葉",0,0,1,0,0,0]
[40131,813,8130016,"ﾌｸｵｶｹﾝ","ﾌｸｵｶｼﾋｶﾞｼｸ","ｶｼｲﾊﾏ","福岡県","福岡市東区","香椎浜",0,0,1,0,0,0]
[40131,813,8130018,"ﾌｸｵｶｹﾝ","ﾌｸｵｶｼﾋｶﾞｼｸ","ｶｼｲﾊﾏﾌﾄｳ","福岡県","福岡市東区","香椎浜ふ頭",0,0,1,0,0,0]
[40131,813,8130003,"ﾌｸｵｶｹﾝ","ﾌｸｵｶｼﾋｶﾞｼｸ","ｶｽﾐｶﾞｵｶ","福岡県","福岡市東区","香住ヶ丘",0,0,1,0,0,0]
[40131,81103,8110325,"ﾌｸｵｶｹﾝ","ﾌｸｵｶｼﾋｶﾞｼｸ","ｶﾂﾏ","福岡県","福岡市東区","勝馬",0,0,0,0,0,0]
[40131,813,8130023,"ﾌｸｵｶｹﾝ","ﾌｸｵｶｼﾋｶﾞｼｸ","ｶﾏﾀ","福岡県","福岡市東区","蒲田",0,0,1,0,0,0]
[40131,81102,8110216,"ﾌｸｵｶｹﾝ","ﾌｸｵｶｼﾋｶﾞｼｸ","ｶﾐﾜｼﾞﾛ","福岡県","福岡市東区","上和白",0,0,0,0,0,0]
[40131,81102,8110206,"ﾌｸｵｶｹﾝ","ﾌｸｵｶｼﾋｶﾞｼｸ","ｶﾞﾝﾉｽ","福岡県","福岡市東区","雁の巣",0,0,1,0,0,0]
[40131,812,8120069,"ﾌｸｵｶｹﾝ","ﾌｸｵｶｼﾋｶﾞｼｸ","ｺﾞｳｸﾞﾁﾏﾁ","福岡県","福岡市東区","郷口町",0,0,0,0,0,0]
[40131,81103,8110321,"ﾌｸｵｶｹﾝ","ﾌｸｵｶｼﾋｶﾞｼｸ","ｻｲﾄｻﾞｷ","福岡県","福岡市東区","西戸崎",0,0,1,0,0,0]
[40131,81102,8110203,"ﾌｸｵｶｹﾝ","ﾌｸｵｶｼﾋｶﾞｼｸ","ｼｵﾊﾏ","福岡県","福岡市東区","塩浜",0,0,1,0,0,0]
[40131,81103,8110323,"ﾌｸｵｶｹﾝ","ﾌｸｵｶｼﾋｶﾞｼｸ","ｼｶｼﾏ","福岡県","福岡市東区","志賀島",0,0,0,0,0,0]
[40131,813,8130002,"ﾌｸｵｶｹﾝ","ﾌｸｵｶｼﾋｶﾞｼｸ","ｼﾓﾊﾞﾙ","福岡県","福岡市東区","下原",0,0,1,0,0,0]
[40131,812,8120068,"ﾌｸｵｶｹﾝ","ﾌｸｵｶｼﾋｶﾞｼｸ","ｼｬﾘｮｳ","福岡県","福岡市東区","社領",0,0,1,0,0,0]
[40131,813,8130045,"ﾌｸｵｶｹﾝ","ﾌｸｵｶｼﾋｶﾞｼｸ","ｼﾛﾊﾏﾀﾞﾝﾁ","福岡県","福岡市東区","城浜団地",0,0,0,0,0,0]
[40131,81102,8110215,"ﾌｸｵｶｹﾝ","ﾌｸｵｶｼﾋｶﾞｼｸ","ﾀｶﾐﾀﾞｲ","福岡県","福岡市東区","高美台",0,0,1,0,0,0]
[40131,813,8130033,"ﾌｸｵｶｹﾝ","ﾌｸｵｶｼﾋｶﾞｼｸ","ﾀﾀﾗ","福岡県","福岡市東区","多々良",0,0,1,0,0,0]
[40131,813,8130034,"ﾌｸｵｶｹﾝ","ﾌｸｵｶｼﾋｶﾞｼｸ","ﾀﾉﾂ","福岡県","福岡市東区","多の津",0,0,1,0,0,0]
[40131,813,8130044,"ﾌｸｵｶｹﾝ","ﾌｸｵｶｼﾋｶﾞｼｸ","ﾁﾊﾔ","福岡県","福岡市東区","千早",0,0,1,0,0,0]
[40131,813,8130032,"ﾌｸｵｶｹﾝ","ﾌｸｵｶｼﾋｶﾞｼｸ","ﾄﾞｲ","福岡県","福岡市東区","土井",0,0,1,0,0,0]
[40131,813,8130001,"ﾌｸｵｶｹﾝ","ﾌｸｵｶｼﾋｶﾞｼｸ","ﾄｳﾉﾊﾙ","福岡県","福岡市東区","唐原",0,0,1,0,0,0]
[40131,813,8130024,"ﾌｸｵｶｹﾝ","ﾌｸｵｶｼﾋｶﾞｼｸ","ﾅｺﾞ","福岡県","福岡市東区","名子",0,0,1,0,0,0]
[40131,813,8130043,"ﾌｸｵｶｹﾝ","ﾌｸｵｶｼﾋｶﾞｼｸ","ﾅｼﾞﾏ","福岡県","福岡市東区","名島",0,0,1,0,0,0]
[40131,81102,8110204,"ﾌｸｵｶｹﾝ","ﾌｸｵｶｼﾋｶﾞｼｸ","ﾅﾀ","福岡県","福岡市東区","奈多",0,0,1,0,0,0]
[40131,81102,8110205,"ﾌｸｵｶｹﾝ","ﾌｸｵｶｼﾋｶﾞｼｸ","ﾅﾀﾀﾞﾝﾁ","福岡県","福岡市東区","奈多団地",0,0,0,0,0,0]
[40131,812,8120053,"ﾌｸｵｶｹﾝ","ﾌｸｵｶｼﾋｶﾞｼｸ","ﾊｺｻﾞｷ","福岡県","福岡市東区","箱崎",0,0,1,0,0,0]
[40131,812,8120051,"ﾌｸｵｶｹﾝ","ﾌｸｵｶｼﾋｶﾞｼｸ","ﾊｺｻﾞｷﾌﾄｳ","福岡県","福岡市東区","箱崎ふ頭",0,0,1,0,0,0]
[40131,812,8120061,"ﾌｸｵｶｹﾝ","ﾌｸｵｶｼﾋｶﾞｼｸ","ﾊｺﾏﾂ","福岡県","福岡市東区","筥松",0,0,1,0,0,0]
[40131,812,8120067,"ﾌｸｵｶｹﾝ","ﾌｸｵｶｼﾋｶﾞｼｸ","ﾊｺﾏﾂｼﾝﾏﾁ","福岡県","福岡市東区","筥松新町",0,0,0,0,0,0]
[40131,813,8130031,"ﾌｸｵｶｹﾝ","ﾌｸｵｶｼﾋｶﾞｼｸ","ﾊｯﾀ","福岡県","福岡市東区","八田",0,0,1,0,0,0]
[40131,812,8120063,"ﾌｸｵｶｹﾝ","ﾌｸｵｶｼﾋｶﾞｼｸ","ﾊﾗﾀﾞ","福岡県","福岡市東区","原田",0,0,1,0,0,0]
[40131,812,8120055,"ﾌｸｵｶｹﾝ","ﾌｸｵｶｼﾋｶﾞｼｸ","ﾋｶﾞｼﾊﾏ","福岡県","福岡市東区","東浜",0,0,1,0,0,0]
[40131,81103,8110324,"ﾌｸｵｶｹﾝ","ﾌｸｵｶｼﾋｶﾞｼｸ","ﾋﾛ","福岡県","福岡市東区","弘",0,0,0,0,0,0]
[40131,812,8120066,"ﾌｸｵｶｹﾝ","ﾌｸｵｶｼﾋｶﾞｼｸ","ﾌﾀﾏﾀｾ","福岡県","福岡市東区","二又瀬",0,0,0,0,0,0]
[40131,812,8120065,"ﾌｸｵｶｹﾝ","ﾌｸｵｶｼﾋｶﾞｼｸ","ﾌﾀﾏﾀｾｼﾝﾏﾁ","福岡県","福岡市東区","二又瀬新町",0,0,0,0,0,0]
[40131,812,8120054,"ﾌｸｵｶｹﾝ","ﾌｸｵｶｼﾋｶﾞｼｸ","ﾏｲﾀﾞｼ","福岡県","福岡市東区","馬出",0,0,1,0,0,0]
[40131,813,8130042,"ﾌｸｵｶｹﾝ","ﾌｸｵｶｼﾋｶﾞｼｸ","ﾏｲﾏﾂﾊﾞﾗ","福岡県","福岡市東区","舞松原",0,0,1,0,0,0]
[40131,813,8130004,"ﾌｸｵｶｹﾝ","ﾌｸｵｶｼﾋｶﾞｼｸ","ﾏﾂｶﾀﾞｲ","福岡県","福岡市東区","松香台",0,0,1,0,0,0]
[40131,813,8130035,"ﾌｸｵｶｹﾝ","ﾌｸｵｶｼﾋｶﾞｼｸ","ﾏﾂｻﾞｷ","福岡県","福岡市東区","松崎",0,0,1,0,0,0]
[40131,812,8120062,"ﾌｸｵｶｹﾝ","ﾌｸｵｶｼﾋｶﾞｼｸ","ﾏﾂｼﾏ(1､2ﾁｮｳﾒ)","福岡県","福岡市東区","松島",1,0,1,0,0,0]
[40131,813,8130062,"ﾌｸｵｶｹﾝ","ﾌｸｵｶｼﾋｶﾞｼｸ","ﾏﾂｼﾏ(3-6ﾁｮｳﾒ)","福岡県","福岡市東区","松島",1,0,1,0,0,0]
[40131,812,8120064,"ﾌｸｵｶｹﾝ","ﾌｸｵｶｼﾋｶﾞｼｸ","ﾏﾂﾀﾞ","福岡県","福岡市東区","松田",0,0,1,0,0,0]
[40131,813,8130005,"ﾌｸｵｶｹﾝ","ﾌｸｵｶｼﾋｶﾞｼｸ","ﾐｼﾏｻﾞｷ","福岡県","福岡市東区","御島崎",0,0,1,0,0,0]
[40131,813,8130041,"ﾌｸｵｶｹﾝ","ﾌｸｵｶｼﾋｶﾞｼｸ","ﾐｽﾞﾀﾆ","福岡県","福岡市東区","水谷",0,0,1,0,0,0]
[40131,81102,8110201,"ﾌｸｵｶｹﾝ","ﾌｸｵｶｼﾋｶﾞｼｸ","ﾐﾄﾏ","福岡県","福岡市東区","三苫",0,0,1,0,0,0]
[40131,813,8130021,"ﾌｸｵｶｹﾝ","ﾌｸｵｶｼﾋｶﾞｼｸ","ﾐﾄﾞﾘｶﾞｵｶ","福岡県","福岡市東区","みどりが丘",0,0,1,0,0,0]
[40131,813,8130019,"ﾌｸｵｶｹﾝ","ﾌｸｵｶｼﾋｶﾞｼｸ","ﾐﾅﾄｶｼｲ","福岡県","福岡市東区","みなと香椎",0,0,1,0,0,0]
[40131,81102,8110212,"ﾌｸｵｶｹﾝ","ﾌｸｵｶｼﾋｶﾞｼｸ","ﾐﾜﾀﾞｲ","福岡県","福岡市東区","美和台",0,0,1,0,0,0]
[40131,81102,8110211,"ﾌｸｵｶｹﾝ","ﾌｸｵｶｼﾋｶﾞｼｸ","ﾐﾜﾀﾞｲｼﾝﾏﾁ","福岡県","福岡市東区","美和台新町",0,0,0,0,0,0]
[40131,813,8130036,"ﾌｸｵｶｹﾝ","ﾌｸｵｶｼﾋｶﾞｼｸ","ﾜｶﾐﾔ","福岡県","福岡市東区","若宮",0,0,1,0,0,0]
[40131,81102,8110202,"ﾌｸｵｶｹﾝ","ﾌｸｵｶｼﾋｶﾞｼｸ","ﾜｼﾞﾛ","福岡県","福岡市東区","和白",0,0,1,0,0,0]
[40131,81102,8110213,"ﾌｸｵｶｹﾝ","ﾌｸｵｶｼﾋｶﾞｼｸ","ﾜｼﾞﾛｶﾞｵｶ","福岡県","福岡市東区","和白丘",0,0,1,0,0,0]
[40131,81102,8110214,"ﾌｸｵｶｹﾝ","ﾌｸｵｶｼﾋｶﾞｼｸ","ﾜｼﾞﾛﾋｶﾞｼ","福岡県","福岡市東区","和白東",0,0,1,0,0,0]
[40132,812,8120000,"ﾌｸｵｶｹﾝ","ﾌｸｵｶｼﾊｶﾀｸ","ｲｶﾆｹｲｻｲｶﾞﾅｲﾊﾞｱｲ","福岡県","福岡市博多区",null,0,0,0,0,0,0]
[40132,816,8120885,"ﾌｸｵｶｹﾝ","ﾌｸｵｶｼﾊｶﾀｸ","ｱｲｵｲﾏﾁ","福岡県","福岡市博多区","相生町",0,0,1,0,0,0]
[40132,816,8120851,"ﾌｸｵｶｹﾝ","ﾌｸｵｶｼﾊｶﾀｸ","ｱｵｷ","福岡県","福岡市博多区","青木",0,0,1,0,0,0]
[40132,816,8120881,"ﾌｸｵｶｹﾝ","ﾌｸｵｶｼﾊｶﾀｸ","ｲｿｳﾀﾞ","福岡県","福岡市博多区","井相田",0,0,1,0,0,0]
[40132,816,8120888,"ﾌｸｵｶｹﾝ","ﾌｸｵｶｼﾊｶﾀｸ","ｲﾀﾂﾞｹ","福岡県","福岡市博多区","板付",0,0,1,0,0,0]
[40132,816,8120861,"ﾌｸｵｶｹﾝ","ﾌｸｵｶｼﾊｶﾀｸ","ｳﾗﾀ","福岡県","福岡市博多区","浦田",0,0,1,0,0,0]
[40132,812,8120004,"ﾌｸｵｶｹﾝ","ﾌｸｵｶｼﾊｶﾀｸ","ｴﾉｷﾀﾞ","福岡県","福岡市博多区","榎田",0,0,1,0,0,0]
[40132,812,8120001,"ﾌｸｵｶｹﾝ","ﾌｸｵｶｼﾊｶﾀｸ","ｵｵｲ","福岡県","福岡市博多区","大井",0,0,1,0,0,0]
[40132,812,8120031,"ﾌｸｵｶｹﾝ","ﾌｸｵｶｼﾊｶﾀｸ","ｵｷﾊﾏﾏﾁ","福岡県","福岡市博多区","沖浜町",0,0,0,0,0,0]
[40132,812,8120043,"ﾌｸｵｶｹﾝ","ﾌｸｵｶｼﾊｶﾀｸ","ｶﾀｶｽ","福岡県","福岡市博多区","堅粕",0,0,1,0,0,0]
[40132,816,8120863,"ﾌｸｵｶｹﾝ","ﾌｸｵｶｼﾊｶﾀｸ","ｶﾈﾉｸﾏ","福岡県","福岡市博多区","金の隈",0,0,1,0,0,0]
[40132,812,8120005,"ﾌｸｵｶｹﾝ","ﾌｸｵｶｼﾊｶﾀｸ","ｶﾐｳｽｲ","福岡県","福岡市博多区","上臼井",0,0,0,0,0,0]
[40132,812,8120026,"ﾌｸｵｶｹﾝ","ﾌｸｵｶｼﾊｶﾀｸ","ｶﾐｶﾜﾊﾞﾀﾏﾁ","福岡県","福岡市博多区","上川端町",0,0,0,0,0,0]
[40132,812,8120036,"ﾌｸｵｶｹﾝ","ﾌｸｵｶｼﾊｶﾀｸ","ｶﾐｺﾞﾌｸﾏﾁ","福岡県","福岡市博多区","上呉服町",0,0,0,0,0,0]
[40132,812,8120006,"ﾌｸｵｶｹﾝ","ﾌｸｵｶｼﾊｶﾀｸ","ｶﾐﾑﾀ","福岡県","福岡市博多区","上牟田",0,0,1,0,0,0]
[40132,812,8120022,"ﾌｸｵｶｹﾝ","ﾌｸｵｶｼﾊｶﾀｸ","ｶﾐﾔﾏﾁ","福岡県","福岡市博多区","神屋町",0,0,0,0,0,0]
[40132,812,8120038,"ﾌｸｵｶｹﾝ","ﾌｸｵｶｼﾊｶﾀｸ","ｷﾞｵﾝﾏﾁ","福岡県","福岡市博多区","祇園町",0,0,0,0,0,0]
[40132,816,8120879,"ﾌｸｵｶｹﾝ","ﾌｸｵｶｼﾊｶﾀｸ","ｷﾞﾝﾃﾝﾏﾁ","福岡県","福岡市博多区","銀天町",0,0,1,0,0,0]
[40132,812,8120002,"ﾌｸｵｶｹﾝ","ﾌｸｵｶｼﾊｶﾀｸ","ｸｳｺｳﾏｴ","福岡県","福岡市博多区","空港前",0,0,1,0,0,0]
[40132,812,8120037,"ﾌｸｵｶｹﾝ","ﾌｸｵｶｼﾊｶﾀｸ","ｺﾞｸｼｮﾏﾁ","福岡県","福岡市博多区","御供所町",0,0,0,0,0,0]
[40132,816,8120884,"ﾌｸｵｶｹﾝ","ﾌｸｵｶｼﾊｶﾀｸ","ｺﾄﾌﾞｷﾏﾁ","福岡県","福岡市博多区","寿町",0,0,1,0,0,0]
[40132,812,8120029,"ﾌｸｵｶｹﾝ","ﾌｸｵｶｼﾊｶﾀｸ","ｺﾓﾝﾄﾞﾏﾁ","福岡県","福岡市博多区","古門戸町",0,0,0,0,0,0]
[40132,816,8120891,"ﾌｸｵｶｹﾝ","ﾌｸｵｶｼﾊｶﾀｸ","ｻｻｲ","福岡県","福岡市博多区","雀居",0,0,0,0,0,0]
[40132,816,8120887,"ﾌｸｵｶｹﾝ","ﾌｸｵｶｼﾊｶﾀｸ","ｻﾝﾁｸ","福岡県","福岡市博多区","三筑",0,0,1,0,0,0]
[40132,812,8120015,"ﾌｸｵｶｹﾝ","ﾌｸｵｶｼﾊｶﾀｸ","ｻﾝﾉｳ","福岡県","福岡市博多区","山王",0,0,1,0,0,0]
[40132,816,8120871,"ﾌｸｵｶｹﾝ","ﾌｸｵｶｼﾊｶﾀｸ","ｼﾉﾉﾒﾏﾁ","福岡県","福岡市博多区","東雲町",0,0,1,0,0,0]
[40132,812,8120003,"ﾌｸｵｶｹﾝ","ﾌｸｵｶｼﾊｶﾀｸ","ｼﾓｳｽｲ","福岡県","福岡市博多区","下臼井",0,0,0,0,0,0]
[40132,812,8120027,"ﾌｸｵｶｹﾝ","ﾌｸｵｶｼﾊｶﾀｸ","ｼﾓｶﾜﾊﾞﾀﾏﾁ","福岡県","福岡市博多区","下川端町",0,0,0,0,0,0]
[40132,812,8120034,"ﾌｸｵｶｹﾝ","ﾌｸｵｶｼﾊｶﾀｸ","ｼﾓｺﾞﾌｸﾏﾁ","福岡県","福岡市博多区","下呉服町",0,0,0,0,0,0]
[40132,816,8120855,"ﾌｸｵｶｹﾝ","ﾌｸｵｶｼﾊｶﾀｸ","ｼﾓﾂｷｸﾞﾏ","福岡県","福岡市博多区","下月隈",0,0,0,0,0,0]
[40132,816,8120876,"ﾌｸｵｶｹﾝ","ﾌｸｵｶｼﾊｶﾀｸ","ｼｮｳﾅﾝﾏﾁ","福岡県","福岡市博多区","昭南町",0,0,1,0,0,0]
[40132,816,8120875,"ﾌｸｵｶｹﾝ","ﾌｸｵｶｼﾊｶﾀｸ","ｼﾝﾜﾏﾁ","福岡県","福岡市博多区","新和町",0,0,1,0,0,0]
[40132,812,8120028,"ﾌｸｵｶｹﾝ","ﾌｸｵｶｼﾊｶﾀｸ","ｽｻｷﾏﾁ","福岡県","福岡市博多区","須崎町",0,0,0,0,0,0]
[40132,812,8120018,"ﾌｸｵｶｹﾝ","ﾌｸｵｶｼﾊｶﾀｸ","ｽﾐﾖｼ","福岡県","福岡市博多区","住吉",0,0,1,0,0,0]
[40132,812,8120032,"ﾌｸｵｶｹﾝ","ﾌｸｵｶｼﾊｶﾀｸ","ｾｷｼﾞｮｳﾏﾁ","福岡県","福岡市博多区","石城町",0,0,0,0,0,0]
[40132,812,8120033,"ﾌｸｵｶｹﾝ","ﾌｸｵｶｼﾊｶﾀｸ","ﾀｲﾊｸﾏﾁ","福岡県","福岡市博多区","大博町",0,0,0,0,0,0]
[40132,816,8120878,"ﾌｸｵｶｹﾝ","ﾌｸｵｶｼﾊｶﾀｸ","ﾀｹｵｶﾏﾁ","福岡県","福岡市博多区","竹丘町",0,0,1,0,0,0]
[40132,816,8120895,"ﾌｸｵｶｹﾝ","ﾌｸｵｶｼﾊｶﾀｸ","ﾀｹｼﾀ","福岡県","福岡市博多区","竹下",0,0,1,0,0,0]
[40132,812,8120021,"ﾌｸｵｶｹﾝ","ﾌｸｵｶｼﾊｶﾀｸ","ﾁｯｺｳﾎﾝﾏﾁ","福岡県","福岡市博多区","築港本町",0,0,0,0,0,0]
[40132,812,8120044,"ﾌｸｵｶｹﾝ","ﾌｸｵｶｼﾊｶﾀｸ","ﾁﾖ","福岡県","福岡市博多区","千代",0,0,1,0,0,0]
[40132,816,8120858,"ﾌｸｵｶｹﾝ","ﾌｸｵｶｼﾊｶﾀｸ","ﾂｷｸﾞﾏ","福岡県","福岡市博多区","月隈",0,0,1,0,0,0]
[40132,812,8120024,"ﾌｸｵｶｹﾝ","ﾌｸｵｶｼﾊｶﾀｸ","ﾂﾅﾊﾞﾏﾁ","福岡県","福岡市博多区","綱場町",0,0,0,0,0,0]
[40132,812,8120020,"ﾌｸｵｶｹﾝ","ﾌｸｵｶｼﾊｶﾀｸ","ﾂﾏｼｮｳｼﾞ","福岡県","福岡市博多区","対馬小路",0,0,0,0,0,0]
[40132,812,8120025,"ﾌｸｵｶｹﾝ","ﾌｸｵｶｼﾊｶﾀｸ","ﾃﾝﾔﾏﾁ","福岡県","福岡市博多区","店屋町",0,0,0,0,0,0]
[40132,812,8120008,"ﾌｸｵｶｹﾝ","ﾌｸｵｶｼﾊｶﾀｸ","ﾄｳｺｳ","福岡県","福岡市博多区","東光",0,0,1,0,0,0]
[40132,816,8120896,"ﾌｸｵｶｹﾝ","ﾌｸｵｶｼﾊｶﾀｸ","ﾄｳｺｳｼﾞﾏﾁ","福岡県","福岡市博多区","東光寺町",0,0,1,0,0,0]
[40132,816,8120893,"ﾌｸｵｶｹﾝ","ﾌｸｵｶｼﾊｶﾀｸ","ﾅｶ","福岡県","福岡市博多区","那珂",0,0,1,0,0,0]
[40132,812,8120035,"ﾌｸｵｶｹﾝ","ﾌｸｵｶｼﾊｶﾀｸ","ﾅｶｺﾞﾌｸﾏﾁ","福岡県","福岡市博多区","中呉服町",0,0,0,0,0,0]
[40132,810,8100801,"ﾌｸｵｶｹﾝ","ﾌｸｵｶｼﾊｶﾀｸ","ﾅｶｽ","福岡県","福岡市博多区","中洲",0,0,1,0,0,0]
[40132,810,8100802,"ﾌｸｵｶｹﾝ","ﾌｸｵｶｼﾊｶﾀｸ","ﾅｶｽﾅｶｼﾏﾏﾁ","福岡県","福岡市博多区","中洲中島町",0,0,0,0,0,0]
[40132,812,8120023,"ﾌｸｵｶｹﾝ","ﾌｸｵｶｼﾊｶﾀｸ","ﾅﾗﾔﾏﾁ","福岡県","福岡市博多区","奈良屋町",0,0,0,0,0,0]
[40132,816,8120857,"ﾌｸｵｶｹﾝ","ﾌｸｵｶｼﾊｶﾀｸ","ﾆｼﾂｷｸﾞﾏ","福岡県","福岡市博多区","西月隈",0,0,1,0,0,0]
[40132,816,8120873,"ﾌｸｵｶｹﾝ","ﾌｸｵｶｼﾊｶﾀｸ","ﾆｼﾊﾙﾏﾁ","福岡県","福岡市博多区","西春町",0,0,1,0,0,0]
[40132,812,8120012,"ﾌｸｵｶｹﾝ","ﾌｸｵｶｼﾊｶﾀｸ","ﾊｶﾀｴｷﾁｭｳｵｳｶﾞｲ","福岡県","福岡市博多区","博多駅中央街",0,0,0,0,0,0]
[40132,812,8120011,"ﾌｸｵｶｹﾝ","ﾌｸｵｶｼﾊｶﾀｸ","ﾊｶﾀｴｷﾏｴ","福岡県","福岡市博多区","博多駅前",0,0,1,0,0,0]
[40132,812,8120013,"ﾌｸｵｶｹﾝ","ﾌｸｵｶｼﾊｶﾀｸ","ﾊｶﾀｴｷﾋｶﾞｼ","福岡県","福岡市博多区","博多駅東",0,0,1,0,0,0]
[40132,812,8120016,"ﾌｸｵｶｹﾝ","ﾌｸｵｶｼﾊｶﾀｸ","ﾊｶﾀｴｷﾐﾅﾐ","福岡県","福岡市博多区","博多駅南",0,0,1,0,0,0]
[40132,816,8120872,"ﾌｸｵｶｹﾝ","ﾌｸｵｶｼﾊｶﾀｸ","ﾊﾙﾏﾁ","福岡県","福岡市博多区","春町",0,0,1,0,0,0]
[40132,816,8120897,"ﾌｸｵｶｹﾝ","ﾌｸｵｶｼﾊｶﾀｸ","ﾊﾝﾐﾁﾊﾞｼ","福岡県","福岡市博多区","半道橋",0,0,1,0,0,0]
[40132,812,8120014,"ﾌｸｵｶｹﾝ","ﾌｸｵｶｼﾊｶﾀｸ","ﾋｴﾏﾁ","福岡県","福岡市博多区","比恵町",0,0,0,0,0,0]
[40132,816,8120874,"ﾌｸｵｶｹﾝ","ﾌｸｵｶｼﾊｶﾀｸ","ﾋｶﾘｶﾞｵｶﾏﾁ","福岡県","福岡市博多区","光丘町",0,0,1,0,0,0]
[40132,812,8120045,"ﾌｸｵｶｹﾝ","ﾌｸｵｶｼﾊｶﾀｸ","ﾋｶﾞｼｺｳｴﾝ","福岡県","福岡市博多区","東公園",0,0,0,0,0,0]
[40132,816,8120854,"ﾌｸｵｶｹﾝ","ﾌｸｵｶｼﾊｶﾀｸ","ﾋｶﾞｼﾂｷｸﾞﾏ","福岡県","福岡市博多区","東月隈",0,0,1,0,0,0]
[40132,816,8120892,"ﾌｸｵｶｹﾝ","ﾌｸｵｶｼﾊｶﾀｸ","ﾋｶﾞｼﾅｶ","福岡県","福岡市博多区","東那珂",0,0,1,0,0,0]
[40132,812,8120007,"ﾌｸｵｶｹﾝ","ﾌｸｵｶｼﾊｶﾀｸ","ﾋｶﾞｼﾋｴ","福岡県","福岡市博多区","東比恵",0,0,1,0,0,0]
[40132,816,8120853,"ﾌｸｵｶｹﾝ","ﾌｸｵｶｼﾊｶﾀｸ","ﾋｶﾞｼﾋﾗｵ","福岡県","福岡市博多区","東平尾",0,0,1,0,0,0]
[40132,816,8120852,"ﾌｸｵｶｹﾝ","ﾌｸｵｶｼﾊｶﾀｸ","ﾋｶﾞｼﾋﾗｵｺｳｴﾝ","福岡県","福岡市博多区","東平尾公園",0,0,1,0,0,0]
[40132,816,8120886,"ﾌｸｵｶｹﾝ","ﾌｸｵｶｼﾊｶﾀｸ","ﾐﾅﾐﾊﾁﾏﾝﾏﾁ","福岡県","福岡市博多区","南八幡町",0,0,1,0,0,0]
[40132,816,8120883,"ﾌｸｵｶｹﾝ","ﾌｸｵｶｼﾊｶﾀｸ","ﾐﾅﾐﾎﾝﾏﾁ","福岡県","福岡市博多区","南本町",0,0,1,0,0,0]
[40132,812,8120017,"ﾌｸｵｶｹﾝ","ﾌｸｵｶｼﾊｶﾀｸ","ﾐﾉｼﾏ","福岡県","福岡市博多区","美野島",0,0,1,0,0,0]
[40132,816,8120882,"ﾌｸｵｶｹﾝ","ﾌｸｵｶｼﾊｶﾀｸ","ﾑｷﾞﾉ","福岡県","福岡市博多区","麦野",0,0,1,0,0,0]
[40132,816,8120877,"ﾌｸｵｶｹﾝ","ﾌｸｵｶｼﾊｶﾀｸ","ﾓﾄﾏﾁ","福岡県","福岡市博多区","元町",0,0,1,0,0,0]
[40132,816,8120894,"ﾌｸｵｶｹﾝ","ﾌｸｵｶｼﾊｶﾀｸ","ﾓﾛｵｶ","福岡県","福岡市博多区","諸岡",0,0,1,0,0,0]
[40132,812,8120042,"ﾌｸｵｶｹﾝ","ﾌｸｵｶｼﾊｶﾀｸ","ﾕﾀｶ","福岡県","福岡市博多区","豊",0,0,1,0,0,0]
[40132,812,8120041,"ﾌｸｵｶｹﾝ","ﾌｸｵｶｼﾊｶﾀｸ","ﾖｼﾂﾞｶ","福岡県","福岡市博多区","吉塚",0,0,1,0,0,0]
[40132,812,8120046,"ﾌｸｵｶｹﾝ","ﾌｸｵｶｼﾊｶﾀｸ","ﾖｼﾂﾞｶﾎﾝﾏﾁ","福岡県","福岡市博多区","吉塚本町",0,0,0,0,0,0]
[40132,816,8120862,"ﾌｸｵｶｹﾝ","ﾌｸｵｶｼﾊｶﾀｸ","ﾘｭｳｹﾞｼﾞ","福岡県","福岡市博多区","立花寺",0,0,1,0,0,0]
[40132,812,8120039,"ﾌｸｵｶｹﾝ","ﾌｸｵｶｼﾊｶﾀｸ","ﾚｲｾﾝﾏﾁ","福岡県","福岡市博多区","冷泉町",0,0,0,0,0,0]
[40133,810,8100000,"ﾌｸｵｶｹﾝ","ﾌｸｵｶｼﾁｭｳｵｳｸ","ｲｶﾆｹｲｻｲｶﾞﾅｲﾊﾞｱｲ","福岡県","福岡市中央区",null,0,0,0,0,0,0]
[40133,810,8100042,"ﾌｸｵｶｹﾝ","ﾌｸｵｶｼﾁｭｳｵｳｸ","ｱｶｻｶ","福岡県","福岡市中央区","赤坂",0,0,1,0,0,0]
[40133,810,8100076,"ﾌｸｵｶｹﾝ","ﾌｸｵｶｼﾁｭｳｵｳｸ","ｱﾗﾂ","福岡県","福岡市中央区","荒津",0,0,1,0,0,0]
[40133,810,8100062,"ﾌｸｵｶｹﾝ","ﾌｸｵｶｼﾁｭｳｵｳｸ","ｱﾗﾄ","福岡県","福岡市中央区","荒戸",0,0,1,0,0,0]
[40133,810,8100067,"ﾌｸｵｶｹﾝ","ﾌｸｵｶｼﾁｭｳｵｳｸ","ｲｻﾞｷ","福岡県","福岡市中央区","伊崎",0,0,0,0,0,0]
[40133,810,8100021,"ﾌｸｵｶｹﾝ","ﾌｸｵｶｼﾁｭｳｵｳｸ","ｲﾏｲｽﾞﾐ","福岡県","福岡市中央区","今泉",0,0,1,0,0,0]
[40133,810,8100054,"ﾌｸｵｶｹﾝ","ﾌｸｵｶｼﾁｭｳｵｳｸ","ｲﾏｶﾞﾜ","福岡県","福岡市中央区","今川",0,0,1,0,0,0]
[40133,810,8100074,"ﾌｸｵｶｹﾝ","ﾌｸｵｶｼﾁｭｳｵｳｸ","ｵｵﾃﾓﾝ","福岡県","福岡市中央区","大手門",0,0,1,0,0,0]
[40133,810,8100052,"ﾌｸｵｶｹﾝ","ﾌｸｵｶｼﾁｭｳｵｳｸ","ｵｵﾎﾘ","福岡県","福岡市中央区","大濠",0,0,1,0,0,0]
[40133,810,8100051,"ﾌｸｵｶｹﾝ","ﾌｸｵｶｼﾁｭｳｵｳｸ","ｵｵﾎﾘｺｳｴﾝ","福岡県","福岡市中央区","大濠公園",0,0,0,0,0,0]
[40133,810,8100013,"ﾌｸｵｶｹﾝ","ﾌｸｵｶｼﾁｭｳｵｳｸ","ｵｵﾐﾔ","福岡県","福岡市中央区","大宮",0,0,1,0,0,0]
[40133,810,8100033,"ﾌｸｵｶｹﾝ","ﾌｸｵｶｼﾁｭｳｵｳｸ","ｵｻﾞｻ","福岡県","福岡市中央区","小笹",0,0,1,0,0,0]
[40133,810,8100005,"ﾌｸｵｶｹﾝ","ﾌｸｵｶｼﾁｭｳｵｳｸ","ｷﾖｶﾜ","福岡県","福岡市中央区","清川",0,0,1,0,0,0]
[40133,810,8100045,"ﾌｸｵｶｹﾝ","ﾌｸｵｶｼﾁｭｳｵｳｸ","ｸｻｶﾞｴ","福岡県","福岡市中央区","草香江",0,0,1,0,0,0]
[40133,810,8100055,"ﾌｸｵｶｹﾝ","ﾌｸｵｶｼﾁｭｳｵｳｸ","ｸﾛﾓﾝ","福岡県","福岡市中央区","黒門",0,0,0,0,0,0]
[40133,810,8100023,"ﾌｸｵｶｹﾝ","ﾌｸｵｶｼﾁｭｳｵｳｸ","ｹｺﾞ","福岡県","福岡市中央区","警固",0,0,1,0,0,0]
[40133,810,8100027,"ﾌｸｵｶｹﾝ","ﾌｸｵｶｼﾁｭｳｵｳｸ","ｺﾞｼｮｶﾞﾀﾞﾆ","福岡県","福岡市中央区","御所ケ谷",0,0,0,0,0,0]
[40133,810,8100024,"ﾌｸｵｶｹﾝ","ﾌｸｵｶｼﾁｭｳｵｳｸ","ｻｸﾗｻﾞｶ","福岡県","福岡市中央区","桜坂",0,0,1,0,0,0]
[40133,810,8100034,"ﾌｸｵｶｹﾝ","ﾌｸｵｶｼﾁｭｳｵｳｸ","ｻｻｵｶ","福岡県","福岡市中央区","笹丘",0,0,1,0,0,0]
[40133,810,8100018,"ﾌｸｵｶｹﾝ","ﾌｸｵｶｼﾁｭｳｵｳｸ","ｻﾝｿｳﾄﾞｵﾘ","福岡県","福岡市中央区","山荘通",0,0,1,0,0,0]
[40133,810,8100028,"ﾌｸｵｶｹﾝ","ﾌｸｵｶｼﾁｭｳｵｳｸ","ｼﾞｮｳｽｲﾄﾞｵﾘ","福岡県","福岡市中央区","浄水通",0,0,0,0,0,0]
[40133,810,8100043,"ﾌｸｵｶｹﾝ","ﾌｸｵｶｼﾁｭｳｵｳｸ","ｼﾞｮｳﾅｲ","福岡県","福岡市中央区","城内",0,0,0,0,0,0]
[40133,810,8100012,"ﾌｸｵｶｹﾝ","ﾌｸｵｶｼﾁｭｳｵｳｸ","ｼﾛｶﾞﾈ","福岡県","福岡市中央区","白金",0,0,1,0,0,0]
[40133,810,8100064,"ﾌｸｵｶｹﾝ","ﾌｸｵｶｼﾁｭｳｵｳｸ","ｼﾞｷﾞｮｳ","福岡県","福岡市中央区","地行",0,0,1,0,0,0]
[40133,810,8100065,"ﾌｸｵｶｹﾝ","ﾌｸｵｶｼﾁｭｳｵｳｸ","ｼﾞｷﾞｮｳﾊﾏ","福岡県","福岡市中央区","地行浜",0,0,1,0,0,0]
[40133,810,8100041,"ﾌｸｵｶｹﾝ","ﾌｸｵｶｼﾁｭｳｵｳｸ","ﾀﾞｲﾐｮｳ","福岡県","福岡市中央区","大名",0,0,1,0,0,0]
[40133,810,8100011,"ﾌｸｵｶｹﾝ","ﾌｸｵｶｼﾁｭｳｵｳｸ","ﾀｶｻｺﾞ","福岡県","福岡市中央区","高砂",0,0,1,0,0,0]
[40133,810,8100031,"ﾌｸｵｶｹﾝ","ﾌｸｵｶｼﾁｭｳｵｳｸ","ﾀﾆ","福岡県","福岡市中央区","谷",0,0,1,0,0,0]
[40133,810,8100032,"ﾌｸｵｶｹﾝ","ﾌｸｵｶｼﾁｭｳｵｳｸ","ﾃﾙｸﾆ","福岡県","福岡市中央区","輝国",0,0,1,0,0,0]
[40133,810,8100001,"ﾌｸｵｶｹﾝ","ﾌｸｵｶｼﾁｭｳｵｳｸ","ﾃﾝｼﾞﾝ","福岡県","福岡市中央区","天神",0,0,1,0,0,0]
[40133,810,8100063,"ﾌｸｵｶｹﾝ","ﾌｸｵｶｼﾁｭｳｵｳｸ","ﾄｳｼﾞﾝﾏﾁ","福岡県","福岡市中央区","唐人町",0,0,1,0,0,0]
[40133,810,8100053,"ﾌｸｵｶｹﾝ","ﾌｸｵｶｼﾁｭｳｵｳｸ","ﾄﾘｶｲ","福岡県","福岡市中央区","鳥飼",0,0,1,0,0,0]
[40133,810,8100072,"ﾌｸｵｶｹﾝ","ﾌｸｵｶｼﾁｭｳｵｳｸ","ﾅｶﾞﾊﾏ","福岡県","福岡市中央区","長浜",0,0,1,0,0,0]
[40133,810,8100015,"ﾌｸｵｶｹﾝ","ﾌｸｵｶｼﾁｭｳｵｳｸ","ﾅﾉｶﾜ","福岡県","福岡市中央区","那の川",0,0,1,0,0,0]
[40133,810,8100071,"ﾌｸｵｶｹﾝ","ﾌｸｵｶｼﾁｭｳｵｳｸ","ﾅﾉﾂ","福岡県","福岡市中央区","那の津",0,0,1,0,0,0]
[40133,810,8100061,"ﾌｸｵｶｹﾝ","ﾌｸｵｶｼﾁｭｳｵｳｸ","ﾆｼｺｳｴﾝ","福岡県","福岡市中央区","西公園",0,0,0,0,0,0]
[40133,810,8100002,"ﾌｸｵｶｹﾝ","ﾌｸｵｶｼﾁｭｳｵｳｸ","ﾆｼﾅｶｽ","福岡県","福岡市中央区","西中洲",0,0,0,0,0,0]
[40133,810,8100035,"ﾌｸｵｶｹﾝ","ﾌｸｵｶｼﾁｭｳｵｳｸ","ﾊﾞｲｺｳｴﾝ","福岡県","福岡市中央区","梅光園",0,0,1,0,0,0]
[40133,810,8100036,"ﾌｸｵｶｹﾝ","ﾌｸｵｶｼﾁｭｳｵｳｸ","ﾊﾞｲｺｳｴﾝﾀﾞﾝﾁ","福岡県","福岡市中央区","梅光園団地",0,0,0,0,0,0]
[40133,810,8100003,"ﾌｸｵｶｹﾝ","ﾌｸｵｶｼﾁｭｳｵｳｸ","ﾊﾙﾖｼ","福岡県","福岡市中央区","春吉",0,0,1,0,0,0]
[40133,810,8100014,"ﾌｸｵｶｹﾝ","ﾌｸｵｶｼﾁｭｳｵｳｸ","ﾋﾗｵ","福岡県","福岡市中央区","平尾",0,0,1,0,0,0]
[40133,810,8100017,"ﾌｸｵｶｹﾝ","ﾌｸｵｶｼﾁｭｳｵｳｸ","ﾋﾗｵｶﾏﾁ","福岡県","福岡市中央区","平丘町",0,0,0,0,0,0]
[40133,810,8100029,"ﾌｸｵｶｹﾝ","ﾌｸｵｶｼﾁｭｳｵｳｸ","ﾋﾗｵｼﾞｮｳｽｲﾏﾁ","福岡県","福岡市中央区","平尾浄水町",0,0,0,0,0,0]
[40133,810,8100066,"ﾌｸｵｶｹﾝ","ﾌｸｵｶｼﾁｭｳｵｳｸ","ﾌｸﾊﾏ","福岡県","福岡市中央区","福浜",0,0,1,0,0,0]
[40133,810,8100026,"ﾌｸｵｶｹﾝ","ﾌｸｵｶｼﾁｭｳｵｳｸ","ﾌﾙｺｶﾞﾗｽﾏﾁ","福岡県","福岡市中央区","古小烏町",0,0,0,0,0,0]
[40133,810,8100016,"ﾌｸｵｶｹﾝ","ﾌｸｵｶｼﾁｭｳｵｳｸ","ﾍｲﾜ","福岡県","福岡市中央区","平和",0,0,1,0,0,0]
[40133,810,8100073,"ﾌｸｵｶｹﾝ","ﾌｸｵｶｼﾁｭｳｵｳｸ","ﾏｲﾂﾞﾙ","福岡県","福岡市中央区","舞鶴",0,0,1,0,0,0]
[40133,810,8100075,"ﾌｸｵｶｹﾝ","ﾌｸｵｶｼﾁｭｳｵｳｸ","ﾐﾅﾄ","福岡県","福岡市中央区","港",0,0,1,0,0,0]
[40133,810,8100037,"ﾌｸｵｶｹﾝ","ﾌｸｵｶｼﾁｭｳｵｳｸ","ﾐﾅﾐｺｳｴﾝ","福岡県","福岡市中央区","南公園",0,0,0,0,0,0]
[40133,810,8100022,"ﾌｸｵｶｹﾝ","ﾌｸｵｶｼﾁｭｳｵｳｸ","ﾔｸｲﾝ","福岡県","福岡市中央区","薬院",0,0,1,0,0,0]
[40133,810,8100025,"ﾌｸｵｶｹﾝ","ﾌｸｵｶｼﾁｭｳｵｳｸ","ﾔｸｲﾝｲﾌｸﾏﾁ","福岡県","福岡市中央区","薬院伊福町",0,0,0,0,0,0]
[40133,810,8100044,"ﾌｸｵｶｹﾝ","ﾌｸｵｶｼﾁｭｳｵｳｸ","ﾛｯﾎﾟﾝﾏﾂ","福岡県","福岡市中央区","六本松",0,0,1,0,0,0]
[40133,810,8100004,"ﾌｸｵｶｹﾝ","ﾌｸｵｶｼﾁｭｳｵｳｸ","ﾜﾀﾅﾍﾞﾄﾞｵﾘ","福岡県","福岡市中央区","渡辺通",0,0,1,0,0,0]
[40134,815,8150000,"ﾌｸｵｶｹﾝ","ﾌｸｵｶｼﾐﾅﾐｸ","ｲｶﾆｹｲｻｲｶﾞﾅｲﾊﾞｱｲ","福岡県","福岡市南区",null,0,0,0,0,0,0]
[40134,816,8111302,"ﾌｸｵｶｹﾝ","ﾌｸｵｶｼﾐﾅﾐｸ","ｲｼﾞﾘ","福岡県","福岡市南区","井尻",0,0,1,0,0,0]
[40134,815,8150084,"ﾌｸｵｶｹﾝ","ﾌｸｵｶｼﾐﾅﾐｸ","ｲﾁｻﾞｷ","福岡県","福岡市南区","市崎",0,0,1,0,0,0]
[40134,815,8150073,"ﾌｸｵｶｹﾝ","ﾌｸｵｶｼﾐﾅﾐｸ","ｵｵｲｹ","福岡県","福岡市南区","大池",0,0,1,0,0,0]
[40134,815,8150082,"ﾌｸｵｶｹﾝ","ﾌｸｵｶｼﾐﾅﾐｸ","ｵｵｸﾞｽ","福岡県","福岡市南区","大楠",0,0,1,0,0,0]
[40134,815,8150033,"ﾌｸｵｶｹﾝ","ﾌｸｵｶｼﾐﾅﾐｸ","ｵｵﾊｼ","福岡県","福岡市南区","大橋",0,0,1,0,0,0]
[40134,815,8150038,"ﾌｸｵｶｹﾝ","ﾌｸｵｶｼﾐﾅﾐｸ","ｵｵﾊｼﾀﾞﾝﾁ","福岡県","福岡市南区","大橋団地",0,0,0,0,0,0]
[40134,816,8111313,"ﾌｸｵｶｹﾝ","ﾌｸｵｶｼﾐﾅﾐｸ","ｵｻ","福岡県","福岡市南区","曰佐",0,0,1,0,0,0]
[40134,816,8111303,"ﾌｸｵｶｹﾝ","ﾌｸｵｶｼﾐﾅﾐｸ","ｵﾘﾀﾃﾏﾁ","福岡県","福岡市南区","折立町",0,0,0,0,0,0]
[40134,815,8111353,"ﾌｸｵｶｹﾝ","ﾌｸｵｶｼﾐﾅﾐｸ","ｶｼﾜﾗ","福岡県","福岡市南区","柏原",0,0,1,0,0,0]
[40134,816,8111324,"ﾌｸｵｶｹﾝ","ﾌｸｵｶｼﾐﾅﾐｸ","ｹﾔｺﾞｳ","福岡県","福岡市南区","警弥郷",0,0,1,0,0,0]
[40134,816,8150001,"ﾌｸｵｶｹﾝ","ﾌｸｵｶｼﾐﾅﾐｸ","ｺﾞｼﾞｯｶﾜ","福岡県","福岡市南区","五十川",0,0,1,0,0,0]
[40134,815,8111365,"ﾌｸｵｶｹﾝ","ﾌｸｵｶｼﾐﾅﾐｸ","ｻﾗﾔﾏ","福岡県","福岡市南区","皿山",0,0,1,0,0,0]
[40134,815,8150032,"ﾌｸｵｶｹﾝ","ﾌｸｵｶｼﾐﾅﾐｸ","ｼｵﾊﾞﾙ","福岡県","福岡市南区","塩原",0,0,1,0,0,0]
[40134,815,8150031,"ﾌｸｵｶｹﾝ","ﾌｸｵｶｼﾐﾅﾐｸ","ｼﾐｽﾞ","福岡県","福岡市南区","清水",0,0,1,0,0,0]
[40134,815,8111354,"ﾌｸｵｶｹﾝ","ﾌｸｵｶｼﾐﾅﾐｸ","ﾀｲﾍｲｼﾞ","福岡県","福岡市南区","大平寺",0,0,1,0,0,0]
[40134,816,8150004,"ﾌｸｵｶｹﾝ","ﾌｸｵｶｼﾐﾅﾐｸ","ﾀｶｷ","福岡県","福岡市南区","高木",0,0,1,0,0,0]
[40134,815,8150083,"ﾌｸｵｶｹﾝ","ﾌｸｵｶｼﾐﾅﾐｸ","ﾀｶﾐﾔ","福岡県","福岡市南区","高宮",0,0,1,0,0,0]
[40134,815,8150072,"ﾌｸｵｶｹﾝ","ﾌｸｵｶｼﾐﾅﾐｸ","ﾀｶﾞ","福岡県","福岡市南区","多賀",0,0,1,0,0,0]
[40134,815,8150037,"ﾌｸｵｶｹﾝ","ﾌｸｵｶｼﾐﾅﾐｸ","ﾀﾏｶﾞﾜﾏﾁ","福岡県","福岡市南区","玉川町",0,0,0,0,0,0]
[40134,815,8150036,"ﾌｸｵｶｹﾝ","ﾌｸｵｶｼﾐﾅﾐｸ","ﾁｸｼｶﾞｵｶ","福岡県","福岡市南区","筑紫丘",0,0,1,0,0,0]
[40134,815,8111352,"ﾌｸｵｶｹﾝ","ﾌｸｵｶｼﾐﾅﾐｸ","ﾂﾙﾀ","福岡県","福岡市南区","鶴田",0,0,1,0,0,0]
[40134,815,8150074,"ﾌｸｵｶｹﾝ","ﾌｸｵｶｼﾐﾅﾐｸ","ﾃﾗﾂﾞｶ","福岡県","福岡市南区","寺塚",0,0,1,0,0,0]
[40134,815,8111364,"ﾌｸｵｶｹﾝ","ﾌｸｵｶｼﾐﾅﾐｸ","ﾅｶｵ","福岡県","福岡市南区","中尾",0,0,1,0,0,0]
[40134,815,8150075,"ﾌｸｵｶｹﾝ","ﾌｸｵｶｼﾐﾅﾐｸ","ﾅｶﾞｵｶ","福岡県","福岡市南区","長丘",0,0,1,0,0,0]
[40134,815,8111362,"ﾌｸｵｶｹﾝ","ﾌｸｵｶｼﾐﾅﾐｸ","ﾅｶﾞｽﾞﾐ","福岡県","福岡市南区","長住",0,0,1,0,0,0]
[40134,815,8150081,"ﾌｸｵｶｹﾝ","ﾌｸｵｶｼﾐﾅﾐｸ","ﾅﾉｶﾜ","福岡県","福岡市南区","那の川",0,0,1,0,0,0]
[40134,815,8111361,"ﾌｸｵｶｹﾝ","ﾌｸｵｶｼﾐﾅﾐｸ","ﾆｼﾅｶﾞｽﾞﾐ","福岡県","福岡市南区","西長住",0,0,1,0,0,0]
[40134,815,8111347,"ﾌｸｵｶｹﾝ","ﾌｸｵｶｼﾐﾅﾐｸ","ﾉﾀﾒ","福岡県","福岡市南区","野多目",0,0,1,0,0,0]
[40134,815,8150041,"ﾌｸｵｶｹﾝ","ﾌｸｵｶｼﾐﾅﾐｸ","ﾉﾏ","福岡県","福岡市南区","野間",0,0,1,0,0,0]
[40134,815,8111356,"ﾌｸｵｶｹﾝ","ﾌｸｵｶｼﾐﾅﾐｸ","ﾊﾅﾊﾀ","福岡県","福岡市南区","花畑",0,0,1,0,0,0]
[40134,815,8111355,"ﾌｸｵｶｹﾝ","ﾌｸｵｶｼﾐﾅﾐｸ","ﾋﾊﾞﾙ","福岡県","福岡市南区","桧原",0,0,1,0,0,0]
[40134,815,8150071,"ﾌｸｵｶｹﾝ","ﾌｸｵｶｼﾐﾅﾐｸ","ﾍｲﾜ","福岡県","福岡市南区","平和",0,0,1,0,0,0]
[40134,816,8111314,"ﾌｸｵｶｹﾝ","ﾌｸｵｶｼﾐﾅﾐｸ","ﾏﾄﾊﾞ","福岡県","福岡市南区","的場",0,0,1,0,0,0]
[40134,815,8150034,"ﾌｸｵｶｹﾝ","ﾌｸｵｶｼﾐﾅﾐｸ","ﾐﾅﾐｵｵﾊｼ","福岡県","福岡市南区","南大橋",0,0,1,0,0,0]
[40134,815,8111344,"ﾌｸｵｶｹﾝ","ﾌｸｵｶｼﾐﾅﾐｸ","ﾐﾔｹ","福岡県","福岡市南区","三宅",0,0,1,0,0,0]
[40134,815,8111345,"ﾌｸｵｶｹﾝ","ﾌｸｵｶｼﾐﾅﾐｸ","ﾑｶｲｼﾝﾏﾁ","福岡県","福岡市南区","向新町",0,0,1,0,0,0]
[40134,815,8150035,"ﾌｸｵｶｹﾝ","ﾌｸｵｶｼﾐﾅﾐｸ","ﾑｶｲﾉ","福岡県","福岡市南区","向野",0,0,1,0,0,0]
[40134,815,8111351,"ﾌｸｵｶｹﾝ","ﾌｸｵｶｼﾐﾅﾐｸ","ﾔｶﾀﾊﾞﾙ","福岡県","福岡市南区","屋形原",0,0,1,0,0,0]
[40134,816,8111323,"ﾌｸｵｶｹﾝ","ﾌｸｵｶｼﾐﾅﾐｸ","ﾔﾅｶﾞ","福岡県","福岡市南区","弥永",0,0,1,0,0,0]
[40134,816,8111322,"ﾌｸｵｶｹﾝ","ﾌｸｵｶｼﾐﾅﾐｸ","ﾔﾅｶﾞﾀﾞﾝﾁ","福岡県","福岡市南区","弥永団地",0,0,0,0,0,0]
[40134,815,8150063,"ﾌｸｵｶｹﾝ","ﾌｸｵｶｼﾐﾅﾐｸ","ﾔﾅｺﾞｳﾁ","福岡県","福岡市南区","柳河内",0,0,1,0,0,0]
[40134,816,8111321,"ﾌｸｵｶｹﾝ","ﾌｸｵｶｼﾐﾅﾐｸ","ﾔﾅｾ","福岡県","福岡市南区","柳瀬",0,0,1,0,0,0]
[40134,816,8111311,"ﾌｸｵｶｹﾝ","ﾌｸｵｶｼﾐﾅﾐｸ","ﾖｺﾃ","福岡県","福岡市南区","横手",0,0,1,0,0,0]
[40134,816,8111312,"ﾌｸｵｶｹﾝ","ﾌｸｵｶｼﾐﾅﾐｸ","ﾖｺﾃﾐﾅﾐﾏﾁ","福岡県","福岡市南区","横手南町",0,0,0,0,0,0]
[40134,815,8111346,"ﾌｸｵｶｹﾝ","ﾌｸｵｶｼﾐﾅﾐｸ","ﾛｳｼﾞ","福岡県","福岡市南区","老司",0,0,1,0,0,0]
[40134,815,8150042,"ﾌｸｵｶｹﾝ","ﾌｸｵｶｼﾐﾅﾐｸ","ﾜｶﾋｻ","福岡県","福岡市南区","若久",0,0,1,0,0,0]
[40134,815,8150048,"ﾌｸｵｶｹﾝ","ﾌｸｵｶｼﾐﾅﾐｸ","ﾜｶﾋｻﾀﾞﾝﾁ","福岡県","福岡市南区","若久団地",0,0,0,0,0,0]
[40134,815,8111343,"ﾌｸｵｶｹﾝ","ﾌｸｵｶｼﾐﾅﾐｸ","ﾜﾀﾞ","福岡県","福岡市南区","和田",0,0,1,0,0,0]
[40135,819,8190000,"ﾌｸｵｶｹﾝ","ﾌｸｵｶｼﾆｼｸ","ｲｶﾆｹｲｻｲｶﾞﾅｲﾊﾞｱｲ","福岡県","福岡市西区",null,0,0,0,0,0,0]
[40135,819,8190015,"ﾌｸｵｶｹﾝ","ﾌｸｵｶｼﾆｼｸ","ｱﾀｺﾞ","福岡県","福岡市西区","愛宕",0,0,1,0,0,0]
[40135,819,8190013,"ﾌｸｵｶｹﾝ","ﾌｸｵｶｼﾆｼｸ","ｱﾀｺﾞﾊﾏ","福岡県","福岡市西区","愛宕浜",0,0,1,0,0,0]
[40135,819,8190007,"ﾌｸｵｶｹﾝ","ﾌｸｵｶｼﾆｼｸ","ｱﾀｺﾞﾐﾅﾐ","福岡県","福岡市西区","愛宕南",0,0,1,0,0,0]
[40135,81903,8190371,"ﾌｸｵｶｹﾝ","ﾌｸｵｶｼﾆｼｸ","ｲｲｼﾞ","福岡県","福岡市西区","飯氏",0,0,0,0,0,0]
[40135,819,8190037,"ﾌｸｵｶｹﾝ","ﾌｸｵｶｼﾆｼｸ","ｲｲﾓﾘ","福岡県","福岡市西区","飯盛",0,0,0,0,0,0]
[40135,819,8190042,"ﾌｸｵｶｹﾝ","ﾌｸｵｶｼﾆｼｸ","ｲｷﾀﾞﾝﾁ","福岡県","福岡市西区","壱岐団地",0,0,0,0,0,0]
[40135,819,8190055,"ﾌｸｵｶｹﾝ","ﾌｸｵｶｼﾆｼｸ","ｲｷﾉﾏﾂﾊﾞﾗ","福岡県","福岡市西区","生の松原",0,0,1,0,0,0]
[40135,819,8190044,"ﾌｸｵｶｹﾝ","ﾌｸｵｶｼﾆｼｸ","ｲｷﾏﾂﾀﾞｲ","福岡県","福岡市西区","生松台",0,0,1,0,0,0]
[40135,819,8190025,"ﾌｸｵｶｹﾝ","ﾌｸｵｶｼﾆｼｸ","ｲｼﾏﾙ","福岡県","福岡市西区","石丸",0,0,1,0,0,0]
[40135,81903,8190381,"ﾌｸｵｶｹﾝ","ﾌｸｵｶｼﾆｼｸ","ｲｽﾞﾐ","福岡県","福岡市西区","泉",0,0,1,0,0,0]
[40135,81901,8190167,"ﾌｸｵｶｹﾝ","ﾌｸｵｶｼﾆｼｸ","ｲﾏｼﾞｭｸ","福岡県","福岡市西区","今宿",0,0,1,0,0,0]
[40135,81901,8190162,"ﾌｸｵｶｹﾝ","ﾌｸｵｶｼﾆｼｸ","ｲﾏｼﾞｭｸｱｵｷ","福岡県","福岡市西区","今宿青木",0,0,0,0,0,0]
[40135,81901,8190168,"ﾌｸｵｶｹﾝ","ﾌｸｵｶｼﾆｼｸ","ｲﾏｼﾞｭｸｴｷﾏｴ","福岡県","福岡市西区","今宿駅前",0,0,1,0,0,0]
[40135,81901,8190163,"ﾌｸｵｶｹﾝ","ﾌｸｵｶｼﾆｼｸ","ｲﾏｼﾞｭｸｶﾐﾉﾊﾙ","福岡県","福岡市西区","今宿上ノ原",0,0,0,0,0,0]
[40135,81901,8190164,"ﾌｸｵｶｹﾝ","ﾌｸｵｶｼﾆｼｸ","ｲﾏｼﾞｭｸﾏﾁ","福岡県","福岡市西区","今宿町",0,0,0,0,0,0]
[40135,81901,8190169,"ﾌｸｵｶｹﾝ","ﾌｸｵｶｼﾆｼｸ","ｲﾏｼﾞｭｸﾆｼ","福岡県","福岡市西区","今宿西",0,0,1,0,0,0]
[40135,81901,8190161,"ﾌｸｵｶｹﾝ","ﾌｸｵｶｼﾆｼｸ","ｲﾏｼﾞｭｸﾋｶﾞｼ","福岡県","福岡市西区","今宿東",0,0,1,0,0,0]
[40135,81901,8190165,"ﾌｸｵｶｹﾝ","ﾌｸｵｶｼﾆｼｸ","ｲﾏﾂﾞ","福岡県","福岡市西区","今津",0,0,0,0,0,0]
[40135,81903,8190372,"ﾌｸｵｶｹﾝ","ﾌｸｵｶｼﾆｼｸ","ｳﾀﾞｶﾞﾜﾗ","福岡県","福岡市西区","宇田川原",0,0,0,0,0,0]
[40135,819,8190005,"ﾌｸｵｶｹﾝ","ﾌｸｵｶｼﾆｼｸ","ｳﾁﾊﾏ","福岡県","福岡市西区","内浜",0,0,1,0,0,0]
[40135,819,8190021,"ﾌｸｵｶｹﾝ","ﾌｸｵｶｼﾆｼｸ","ｵｵﾏﾁﾀﾞﾝﾁ","福岡県","福岡市西区","大町団地",0,0,0,0,0,0]
[40135,819,8190001,"ﾌｸｵｶｹﾝ","ﾌｸｵｶｼﾆｼｸ","ｵﾄﾞ","福岡県","福岡市西区","小戸",0,0,1,0,0,0]
[40135,819,8190011,"ﾌｸｵｶｹﾝ","ﾌｸｵｶｼﾆｼｸ","ｵﾛﾉｼﾏ","福岡県","福岡市西区","小呂島",0,0,0,0,0,0]
[40135,81903,8190389,"ﾌｸｵｶｹﾝ","ﾌｸｵｶｼﾆｼｸ","ｶﾞｸｴﾝﾄﾞｵﾘ","福岡県","福岡市西区","学園通",0,0,1,0,0,0]
[40135,819,8190035,"ﾌｸｵｶｹﾝ","ﾌｸｵｶｼﾆｼｸ","ｶﾅﾀｹ","福岡県","福岡市西区","金武",0,0,0,0,0,0]
[40135,819,8190054,"ﾌｸｵｶｹﾝ","ﾌｸｵｶｼﾆｼｸ","ｶﾐﾔﾏﾄ","福岡県","福岡市西区","上山門",0,0,1,0,0,0]
[40135,81903,8190379,"ﾌｸｵｶｹﾝ","ﾌｸｵｶｼﾆｼｸ","ｷﾀﾊﾞﾙ","福岡県","福岡市西区","北原",0,0,1,0,0,0]
[40135,81903,8190388,"ﾌｸｵｶｹﾝ","ﾌｸｵｶｼﾆｼｸ","ｷｭｳﾀﾞｲｼﾝﾏﾁ","福岡県","福岡市西区","九大新町",0,0,0,0,0,0]
[40135,81902,8190204,"ﾌｸｵｶｹﾝ","ﾌｸｵｶｼﾆｼｸ","ｸｻﾊﾞ","福岡県","福岡市西区","草場",0,0,0,0,0,0]
[40135,81903,8190382,"ﾌｸｵｶｹﾝ","ﾌｸｵｶｼﾆｼｸ","ｸﾜﾊﾞﾗ","福岡県","福岡市西区","桑原",0,0,0,0,0,0]
[40135,81902,8190205,"ﾌｸｵｶｹﾝ","ﾌｸｵｶｼﾆｼｸ","ｹﾞﾝｶｲｼﾏ","福岡県","福岡市西区","玄界島",0,0,0,0,0,0]
[40135,81902,8190203,"ﾌｸｵｶｹﾝ","ﾌｸｵｶｼﾆｼｸ","ｺﾀ","福岡県","福岡市西区","小田",0,0,0,0,0,0]
[40135,81903,8190367,"ﾌｸｵｶｹﾝ","ﾌｸｵｶｼﾆｼｸ","ｻｲﾄ","福岡県","福岡市西区","西都",0,0,1,0,0,0]
[40135,819,8190052,"ﾌｸｵｶｹﾝ","ﾌｸｵｶｼﾆｼｸ","ｼﾓﾔﾏﾄ","福岡県","福岡市西区","下山門",0,0,1,0,0,0]
[40135,819,8190051,"ﾌｸｵｶｹﾝ","ﾌｸｵｶｼﾆｼｸ","ｼﾓﾔﾏﾄﾀﾞﾝﾁ","福岡県","福岡市西区","下山門団地",0,0,0,0,0,0]
[40135,819,8190024,"ﾌｸｵｶｹﾝ","ﾌｸｵｶｼﾆｼｸ","ｼﾞｭｳﾛｳｶﾞﾜﾀﾞﾝﾁ","福岡県","福岡市西区","十郎川団地",0,0,0,0,0,0]
[40135,819,8190041,"ﾌｸｵｶｹﾝ","ﾌｸｵｶｼﾆｼｸ","ｼﾞｭｳﾛｸﾁｮｳ","福岡県","福岡市西区","拾六町",0,0,1,0,0,0]
[40135,819,8190045,"ﾌｸｵｶｹﾝ","ﾌｸｵｶｼﾆｼｸ","ｼﾞｭｳﾛｸﾁｮｳﾀﾞﾝﾁ","福岡県","福岡市西区","拾六町団地",0,0,0,0,0,0]
[40135,819,8190053,"ﾌｸｵｶｹﾝ","ﾌｸｵｶｼﾆｼｸ","ｼﾞｮｳﾉﾊﾙﾀﾞﾝﾁ","福岡県","福岡市西区","城の原団地",0,0,0,0,0,0]
[40135,81903,8190373,"ﾌｸｵｶｹﾝ","ﾌｸｵｶｼﾆｼｸ","ｽｾﾝｼﾞ","福岡県","福岡市西区","周船寺",0,0,1,0,0,0]
[40135,81903,8190374,"ﾌｸｵｶｹﾝ","ﾌｸｵｶｼﾆｼｸ","ｾﾝﾘ","福岡県","福岡市西区","千里",0,0,0,0,0,0]
[40135,819,8190034,"ﾌｸｵｶｹﾝ","ﾌｸｵｶｼﾆｼｸ","ﾀ","福岡県","福岡市西区","田",0,0,0,0,0,0]
[40135,81903,8190383,"ﾌｸｵｶｹﾝ","ﾌｸｵｶｼﾆｼｸ","ﾀｼﾞﾘ","福岡県","福岡市西区","田尻",0,0,1,0,0,0]
[40135,81903,8190380,"ﾌｸｵｶｹﾝ","ﾌｸｵｶｼﾆｼｸ","ﾀｼﾞﾘﾋｶﾞｼ","福岡県","福岡市西区","田尻東",0,0,1,0,0,0]
[40135,81903,8190384,"ﾌｸｵｶｹﾝ","ﾌｸｵｶｼﾆｼｸ","ﾀﾛｳﾏﾙ","福岡県","福岡市西区","太郎丸",0,0,1,0,0,0]
[40135,819,8190032,"ﾌｸｵｶｹﾝ","ﾌｸｵｶｼﾆｼｸ","ﾄｷﾞﾚ","福岡県","福岡市西区","戸切",0,0,1,0,0,0]
[40135,81903,8190375,"ﾌｸｵｶｹﾝ","ﾌｸｵｶｼﾆｼｸ","ﾄｸﾅｶﾞ","福岡県","福岡市西区","徳永",0,0,0,0,0,0]
[40135,81903,8190378,"ﾌｸｵｶｹﾝ","ﾌｸｵｶｼﾆｼｸ","ﾄｸﾅｶﾞｷﾀ","福岡県","福岡市西区","徳永北",0,0,0,0,0,0]
[40135,819,8190014,"ﾌｸｵｶｹﾝ","ﾌｸｵｶｼﾆｼｸ","ﾄﾖﾊﾏ","福岡県","福岡市西区","豊浜",0,0,1,0,0,0]
[40135,819,8190039,"ﾌｸｵｶｹﾝ","ﾌｸｵｶｼﾆｼｸ","ﾆｼｲﾘﾍﾞ","福岡県","福岡市西区","西入部",0,0,0,0,0,0]
[40135,81902,8190202,"ﾌｸｵｶｹﾝ","ﾌｸｵｶｼﾆｼｸ","ﾆｼﾉｳﾗ","福岡県","福岡市西区","西浦",0,0,0,0,0,0]
[40135,819,8190046,"ﾌｸｵｶｹﾝ","ﾌｸｵｶｼﾆｼｸ","ﾆｼﾉｵｶ","福岡県","福岡市西区","西の丘",0,0,1,0,0,0]
[40135,819,8190043,"ﾌｸｵｶｹﾝ","ﾌｸｵｶｼﾆｼｸ","ﾉｶﾀ","福岡県","福岡市西区","野方",0,0,1,0,0,0]
[40135,819,8190012,"ﾌｸｵｶｹﾝ","ﾌｸｵｶｼﾆｼｸ","ﾉｺ","福岡県","福岡市西区","能古",0,0,0,0,0,0]
[40135,819,8190033,"ﾌｸｵｶｹﾝ","ﾌｸｵｶｼﾆｼｸ","ﾊｼﾓﾄ(ｵｵｱｻﾞ)","福岡県","福岡市西区","橋本",1,0,1,0,0,0]
[40135,819,8190031,"ﾌｸｵｶｹﾝ","ﾌｸｵｶｼﾆｼｸ","ﾊｼﾓﾄ(ﾁｮｳﾒ)","福岡県","福岡市西区","橋本",1,0,1,0,0,0]
[40135,819,8190038,"ﾌｸｵｶｹﾝ","ﾌｸｵｶｼﾆｼｸ","ﾊﾈﾄﾞ","福岡県","福岡市西区","羽根戸",0,0,0,0,0,0]
[40135,819,8190022,"ﾌｸｵｶｹﾝ","ﾌｸｵｶｼﾆｼｸ","ﾌｸｼｹﾞ","福岡県","福岡市西区","福重",0,0,1,0,0,0]
[40135,819,8190023,"ﾌｸｵｶｹﾝ","ﾌｸｵｶｼﾆｼｸ","ﾌｸｼｹﾞﾀﾞﾝﾁ","福岡県","福岡市西区","福重団地",0,0,0,0,0,0]
[40135,81903,8190387,"ﾌｸｵｶｹﾝ","ﾌｸｵｶｼﾆｼｸ","ﾌｼﾞﾐ","福岡県","福岡市西区","富士見",0,0,1,0,0,0]
[40135,81903,8190370,"ﾌｸｵｶｹﾝ","ﾌｸｵｶｼﾆｼｸ","ﾏﾙｶﾞﾜ","福岡県","福岡市西区","丸川",0,0,1,0,0,0]
[40135,81902,8190201,"ﾌｸｵｶｹﾝ","ﾌｸｵｶｼﾆｼｸ","ﾐﾔﾉｳﾗ","福岡県","福岡市西区","宮浦",0,0,0,0,0,0]
[40135,81903,8190376,"ﾌｸｵｶｹﾝ","ﾌｸｵｶｼﾆｼｸ","ﾐｮｳﾊﾞﾙ","福岡県","福岡市西区","女原",0,0,0,0,0,0]
[40135,81903,8190377,"ﾌｸｵｶｹﾝ","ﾌｸｵｶｼﾆｼｸ","ﾐｮｳﾊﾞﾙｷﾀ","福岡県","福岡市西区","女原北",0,0,0,0,0,0]
[40135,819,8190030,"ﾌｸｵｶｹﾝ","ﾌｸｵｶｼﾆｼｸ","ﾑﾛﾐｶﾞｵｶ","福岡県","福岡市西区","室見が丘",0,0,1,0,0,0]
[40135,819,8190002,"ﾌｸｵｶｹﾝ","ﾌｸｵｶｼﾆｼｸ","ﾒｲﾉﾊﾏ","福岡県","福岡市西区","姪の浜",0,0,1,0,0,0]
[40135,819,8190006,"ﾌｸｵｶｹﾝ","ﾌｸｵｶｼﾆｼｸ","ﾒｲﾉﾊﾏｴｷﾐﾅﾐ","福岡県","福岡市西区","姪浜駅南",0,0,1,0,0,0]
[40135,81903,8190385,"ﾌｸｵｶｹﾝ","ﾌｸｵｶｼﾆｼｸ","ﾓﾄｵｶ","福岡県","福岡市西区","元岡",0,0,0,0,0,0]
[40135,81903,8190386,"ﾌｸｵｶｹﾝ","ﾌｸｵｶｼﾆｼｸ","ﾓﾄﾊﾏ","福岡県","福岡市西区","元浜",0,0,1,0,0,0]
[40135,81901,8190166,"ﾌｸｵｶｹﾝ","ﾌｸｵｶｼﾆｼｸ","ﾖｺﾊﾏ(1-2ﾁｮｳﾒ)","福岡県","福岡市西区","横浜",1,0,1,0,0,0]
[40135,81903,8190366,"ﾌｸｵｶｹﾝ","ﾌｸｵｶｼﾆｼｸ","ﾖｺﾊﾏ(3ﾁｮｳﾒ)","福岡県","福岡市西区","横浜",1,0,1,0,0,0]
[40135,819,8190036,"ﾌｸｵｶｹﾝ","ﾌｸｵｶｼﾆｼｸ","ﾖｼﾀｹ","福岡県","福岡市西区","吉武",0,0,0,0,0,0]
[40136,81401,8140100,"ﾌｸｵｶｹﾝ","ﾌｸｵｶｼｼﾞｮｳﾅﾝｸ","ｲｶﾆｹｲｻｲｶﾞﾅｲﾊﾞｱｲ","福岡県","福岡市城南区",null,0,0,0,0,0,0]
[40136,81401,8140101,"ﾌｸｵｶｹﾝ","ﾌｸｵｶｼｼﾞｮｳﾅﾝｸ","ｱﾗｴ","福岡県","福岡市城南区","荒江",0,0,1,0,0,0]
[40136,81401,8140102,"ﾌｸｵｶｹﾝ","ﾌｸｵｶｼｼﾞｮｳﾅﾝｸ","ｱﾗｴﾀﾞﾝﾁ","福岡県","福岡市城南区","荒江団地",0,0,0,0,0,0]
[40136,81401,8140134,"ﾌｸｵｶｹﾝ","ﾌｸｵｶｼｼﾞｮｳﾅﾝｸ","ｲｲｸﾗ","福岡県","福岡市城南区","飯倉",0,0,1,0,0,0]
[40136,81401,8140144,"ﾌｸｵｶｹﾝ","ﾌｸｵｶｼｼﾞｮｳﾅﾝｸ","ｳﾒﾊﾞﾔｼ","福岡県","福岡市城南区","梅林",0,0,1,0,0,0]
[40136,81401,8140142,"ﾌｸｵｶｹﾝ","ﾌｸｵｶｼｼﾞｮｳﾅﾝｸ","ｶﾀｴ","福岡県","福岡市城南区","片江",0,0,0,0,0,0]
[40136,81401,8140114,"ﾌｸｵｶｹﾝ","ﾌｸｵｶｼｼﾞｮｳﾅﾝｸ","ｶﾅﾔﾏﾀﾞﾝﾁ","福岡県","福岡市城南区","金山団地",0,0,0,0,0,0]
[40136,81401,8140105,"ﾌｸｵｶｹﾝ","ﾌｸｵｶｼｼﾞｮｳﾅﾝｸ","ｼﾞｮｳｾｲﾀﾞﾝﾁ","福岡県","福岡市城南区","城西団地",0,0,0,0,0,0]
[40136,81401,8140121,"ﾌｸｵｶｹﾝ","ﾌｸｵｶｼｼﾞｮｳﾅﾝｸ","ｼﾝｼｮｳｼﾞ","福岡県","福岡市城南区","神松寺",0,0,1,0,0,0]
[40136,81401,8140154,"ﾌｸｵｶｹﾝ","ﾌｸｵｶｼｼﾞｮｳﾅﾝｸ","ﾀｶﾗﾀﾞｲﾀﾞﾝﾁ","福岡県","福岡市城南区","宝台団地",0,0,0,0,0,0]
[40136,81401,8140113,"ﾌｸｵｶｹﾝ","ﾌｸｵｶｼｼﾞｮｳﾅﾝｸ","ﾀｼﾏ","福岡県","福岡市城南区","田島",0,0,1,0,0,0]
[40136,81401,8140111,"ﾌｸｵｶｹﾝ","ﾌｸｵｶｼｼﾞｮｳﾅﾝｸ","ﾁｬﾔﾏ","福岡県","福岡市城南区","茶山",0,0,1,0,0,0]
[40136,81401,8140151,"ﾌｸｵｶｹﾝ","ﾌｸｵｶｼｼﾞｮｳﾅﾝｸ","ﾂﾂﾐ","福岡県","福岡市城南区","堤",0,0,1,0,0,0]
[40136,81401,8140152,"ﾌｸｵｶｹﾝ","ﾌｸｵｶｼｼﾞｮｳﾅﾝｸ","ﾂﾂﾐﾀﾞﾝﾁ","福岡県","福岡市城南区","堤団地",0,0,0,0,0,0]
[40136,81401,8140112,"ﾌｸｵｶｹﾝ","ﾌｸｵｶｼｼﾞｮｳﾅﾝｸ","ﾄﾓｵｶ","福岡県","福岡市城南区","友丘",0,0,1,0,0,0]
[40136,81401,8140103,"ﾌｸｵｶｹﾝ","ﾌｸｵｶｼｼﾞｮｳﾅﾝｸ","ﾄﾘｶｲ","福岡県","福岡市城南区","鳥飼",0,0,1,0,0,0]
[40136,81401,8140123,"ﾌｸｵｶｹﾝ","ﾌｸｵｶｼｼﾞｮｳﾅﾝｸ","ﾅｶﾞｵ","福岡県","福岡市城南区","長尾",0,0,1,0,0,0]
[40136,81401,8140133,"ﾌｸｵｶｹﾝ","ﾌｸｵｶｼｼﾞｮｳﾅﾝｸ","ﾅﾅｸﾏ","福岡県","福岡市城南区","七隈",0,0,0,0,0,0]
[40136,81401,8140141,"ﾌｸｵｶｹﾝ","ﾌｸｵｶｼｼﾞｮｳﾅﾝｸ","ﾆｼｶﾀｴ","福岡県","福岡市城南区","西片江",0,0,1,0,0,0]
[40136,81401,8140153,"ﾌｸｵｶｹﾝ","ﾌｸｵｶｼｼﾞｮｳﾅﾝｸ","ﾋｲｶﾜ","福岡県","福岡市城南区","樋井川",0,0,1,0,0,0]
[40136,81401,8140155,"ﾌｸｵｶｹﾝ","ﾌｸｵｶｼｼﾞｮｳﾅﾝｸ","ﾋｶﾞｼｱﾌﾞﾗﾔﾏ","福岡県","福岡市城南区","東油山",0,0,1,0,0,0]
[40136,81401,8140104,"ﾌｸｵｶｹﾝ","ﾌｸｵｶｼｼﾞｮｳﾅﾝｸ","ﾍﾞﾌ","福岡県","福岡市城南区","別府",0,0,1,0,0,0]
[40136,81401,8140106,"ﾌｸｵｶｹﾝ","ﾌｸｵｶｼｼﾞｮｳﾅﾝｸ","ﾍﾞﾌﾀﾞﾝﾁ","福岡県","福岡市城南区","別府団地",0,0,0,0,0,0]
[40136,81401,8140132,"ﾌｸｵｶｹﾝ","ﾌｸｵｶｼｼﾞｮｳﾅﾝｸ","ﾎｼｸﾏ","福岡県","福岡市城南区","干隈",0,0,1,0,0,0]
[40136,81401,8140131,"ﾌｸｵｶｹﾝ","ﾌｸｵｶｼｼﾞｮｳﾅﾝｸ","ﾏﾂﾔﾏ","福岡県","福岡市城南区","松山",0,0,1,0,0,0]
[40136,81401,8140143,"ﾌｸｵｶｹﾝ","ﾌｸｵｶｼｼﾞｮｳﾅﾝｸ","ﾐﾅﾐｶﾀｴ","福岡県","福岡市城南区","南片江",0,0,1,0,0,0]
[40136,81401,8140122,"ﾌｸｵｶｹﾝ","ﾌｸｵｶｼｼﾞｮｳﾅﾝｸ","ﾕｳｾﾝﾃｲ","福岡県","福岡市城南区","友泉亭",0,0,0,0,0,0]
[40137,814,8140000,"ﾌｸｵｶｹﾝ","ﾌｸｵｶｼｻﾜﾗｸ","ｲｶﾆｹｲｻｲｶﾞﾅｲﾊﾞｱｲ","福岡県","福岡市早良区",null,0,0,0,0,0,0]
[40137,814,8140004,"ﾌｸｵｶｹﾝ","ﾌｸｵｶｼｻﾜﾗｸ","ｱｹﾎﾞﾉ","福岡県","福岡市早良区","曙",0,0,1,0,0,0]
[40137,814,8140021,"ﾌｸｵｶｹﾝ","ﾌｸｵｶｼｻﾜﾗｸ","ｱﾗｴ","福岡県","福岡市早良区","荒江",0,0,1,0,0,0]
[40137,814,8140033,"ﾌｸｵｶｹﾝ","ﾌｸｵｶｼｻﾜﾗｸ","ｱﾘﾀ","福岡県","福岡市早良区","有田",0,0,1,0,0,0]
[40137,814,8140034,"ﾌｸｵｶｹﾝ","ﾌｸｵｶｼｻﾜﾗｸ","ｱﾘﾀﾀﾞﾝﾁ","福岡県","福岡市早良区","有田団地",0,0,0,0,0,0]
[40137,81401,8140161,"ﾌｸｵｶｹﾝ","ﾌｸｵｶｼｻﾜﾗｸ","ｲｲｸﾗ","福岡県","福岡市早良区","飯倉",0,0,1,0,0,0]
[40137,81111,8111134,"ﾌｸｵｶｹﾝ","ﾌｸｵｶｼｻﾜﾗｸ","ｲｲﾊﾞ","福岡県","福岡市早良区","飯場",0,0,0,0,0,0]
[40137,81111,8111132,"ﾌｸｵｶｹﾝ","ﾌｸｵｶｼｻﾜﾗｸ","ｲｼｶﾞﾏ","福岡県","福岡市早良区","石釜",0,0,0,0,0,0]
[40137,81111,8111113,"ﾌｸｵｶｹﾝ","ﾌｸｵｶｼｻﾜﾗｸ","ｲﾀﾔ","福岡県","福岡市早良区","板屋",0,0,0,0,0,0]
[40137,81111,8111123,"ﾌｸｵｶｹﾝ","ﾌｸｵｶｼｻﾜﾗｸ","ｳﾁﾉ","福岡県","福岡市早良区","内野",0,0,1,0,0,0]
[40137,81401,8140172,"ﾌｸｵｶｹﾝ","ﾌｸｵｶｼｻﾜﾗｸ","ｳﾒﾊﾞﾔｼ","福岡県","福岡市早良区","梅林",0,0,1,0,0,0]
[40137,81111,8111112,"ﾌｸｵｶｹﾝ","ﾌｸｵｶｼｻﾜﾗｸ","ｵｶｻｷﾞ","福岡県","福岡市早良区","小笠木",0,0,0,0,0,0]
[40137,81111,8111124,"ﾌｸｵｶｹﾝ","ﾌｸｵｶｼｻﾜﾗｸ","ｶﾅﾀｹ","福岡県","福岡市早良区","金武",0,0,0,0,0,0]
[40137,81401,8140164,"ﾌｸｵｶｹﾝ","ﾌｸｵｶｼｻﾜﾗｸ","ｶﾓ","福岡県","福岡市早良区","賀茂",0,0,1,0,0,0]
[40137,814,8140032,"ﾌｸｵｶｹﾝ","ﾌｸｵｶｼｻﾜﾗｸ","ｺﾀﾍﾞ","福岡県","福岡市早良区","小田部",0,0,1,0,0,0]
[40137,81111,8111122,"ﾌｸｵｶｹﾝ","ﾌｸｵｶｼｻﾜﾗｸ","ｻﾜﾗ","福岡県","福岡市早良区","早良",0,0,1,0,0,0]
[40137,81111,8111114,"ﾌｸｵｶｹﾝ","ﾌｸｵｶｼｻﾜﾗｸ","ｼｲﾊﾞ","福岡県","福岡市早良区","椎原",0,0,0,0,0,0]
[40137,81111,8111103,"ﾌｸｵｶｹﾝ","ﾌｸｵｶｼｻﾜﾗｸ","ｼｶ","福岡県","福岡市早良区","四箇",0,0,1,0,0,0]
[40137,81401,8140176,"ﾌｸｵｶｹﾝ","ﾌｸｵｶｼｻﾜﾗｸ","ｼｶﾀﾀﾞﾝﾁ","福岡県","福岡市早良区","四箇田団地",0,0,0,0,0,0]
[40137,81111,8111101,"ﾌｸｵｶｹﾝ","ﾌｸｵｶｼｻﾜﾗｸ","ｼｹﾞﾄﾞﾒ","福岡県","福岡市早良区","重留",0,0,1,0,0,0]
[40137,814,8140003,"ﾌｸｵｶｹﾝ","ﾌｸｵｶｼｻﾜﾗｸ","ｼﾞｮｳｾｲ","福岡県","福岡市早良区","城西",0,0,1,0,0,0]
[40137,814,8140012,"ﾌｸｵｶｹﾝ","ﾌｸｵｶｼｻﾜﾗｸ","ｼｮｳﾀﾞｲ","福岡県","福岡市早良区","昭代",0,0,1,0,0,0]
[40137,81401,8140165,"ﾌｸｵｶｹﾝ","ﾌｸｵｶｼｻﾜﾗｸ","ｼﾞﾛｳﾏﾙ","福岡県","福岡市早良区","次郎丸",0,0,1,0,0,0]
[40137,814,8140005,"ﾌｸｵｶｹﾝ","ﾌｸｵｶｼｻﾜﾗｸ","ｿﾊﾗ","福岡県","福岡市早良区","祖原",0,0,0,0,0,0]
[40137,81401,8140177,"ﾌｸｵｶｹﾝ","ﾌｸｵｶｼｻﾜﾗｸ","ﾀ","福岡県","福岡市早良区","田",0,0,0,0,0,0]
[40137,814,8140011,"ﾌｸｵｶｹﾝ","ﾌｸｵｶｼｻﾜﾗｸ","ﾀｶﾄﾘ","福岡県","福岡市早良区","高取",0,0,1,0,0,0]
[40137,81401,8140174,"ﾌｸｵｶｹﾝ","ﾌｸｵｶｼｻﾜﾗｸ","ﾀｸﾞﾏ","福岡県","福岡市早良区","田隈",0,0,1,0,0,0]
[40137,81401,8140175,"ﾌｸｵｶｹﾝ","ﾌｸｵｶｼｻﾜﾗｸ","ﾀﾑﾗ","福岡県","福岡市早良区","田村",0,0,1,0,0,0]
[40137,81111,8111131,"ﾌｸｵｶｹﾝ","ﾌｸｵｶｼｻﾜﾗｸ","ﾆｼ","福岡県","福岡市早良区","西",0,0,0,0,0,0]
[40137,81401,8140173,"ﾌｸｵｶｹﾝ","ﾌｸｵｶｼｻﾜﾗｸ","ﾆｼｱﾌﾞﾗﾔﾏ","福岡県","福岡市早良区","西油山",0,0,0,0,0,0]
[40137,81111,8111121,"ﾌｸｵｶｹﾝ","ﾌｸｵｶｼｻﾜﾗｸ","ﾆｼｲﾙﾍﾞ","福岡県","福岡市早良区","西入部",0,0,1,0,0,0]
[40137,814,8140002,"ﾌｸｵｶｹﾝ","ﾌｸｵｶｼｻﾜﾗｸ","ﾆｼｼﾞﾝ","福岡県","福岡市早良区","西新",0,0,1,0,0,0]
[40137,81401,8140171,"ﾌｸｵｶｹﾝ","ﾌｸｵｶｼｻﾜﾗｸ","ﾉｹ","福岡県","福岡市早良区","野芥",0,0,1,0,0,0]
[40137,814,8140022,"ﾌｸｵｶｹﾝ","ﾌｸｵｶｼｻﾜﾗｸ","ﾊﾗ","福岡県","福岡市早良区","原",0,0,1,0,0,0]
[40137,814,8140023,"ﾌｸｵｶｹﾝ","ﾌｸｵｶｼｻﾜﾗｸ","ﾊﾗﾀﾞﾝﾁ","福岡県","福岡市早良区","原団地",0,0,0,0,0,0]
[40137,81111,8111102,"ﾌｸｵｶｹﾝ","ﾌｸｵｶｼｻﾜﾗｸ","ﾋｶﾞｼｲﾙﾍﾞ","福岡県","福岡市早良区","東入部",0,0,1,0,0,0]
[40137,814,8140013,"ﾌｸｵｶｹﾝ","ﾌｸｵｶｼｻﾜﾗｸ","ﾌｼﾞｻｷ","福岡県","福岡市早良区","藤崎",0,0,1,0,0,0]
[40137,81401,8140163,"ﾌｸｵｶｹﾝ","ﾌｸｵｶｼｻﾜﾗｸ","ﾎｼｸﾏ","福岡県","福岡市早良区","干隈",0,0,1,0,0,0]
[40137,81401,8140162,"ﾌｸｵｶｹﾝ","ﾌｸｵｶｼｻﾜﾗｸ","ﾎｼﾉﾊﾗﾀﾞﾝﾁ","福岡県","福岡市早良区","星の原団地",0,0,0,0,0,0]
[40137,81111,8111133,"ﾌｸｵｶｹﾝ","ﾌｸｵｶｼｻﾜﾗｸ","ﾏｶﾞﾘﾌﾞﾁ","福岡県","福岡市早良区","曲渕",0,0,0,0,0,0]
[40137,814,8140031,"ﾌｸｵｶｹﾝ","ﾌｸｵｶｼｻﾜﾗｸ","ﾐﾅﾐｼｮｳ","福岡県","福岡市早良区","南庄",0,0,1,0,0,0]
[40137,814,8140035,"ﾌｸｵｶｹﾝ","ﾌｸｵｶｼｻﾜﾗｸ","ﾑﾛｽﾞﾐﾀﾞﾝﾁ","福岡県","福岡市早良区","室住団地",0,0,0,0,0,0]
[40137,814,8140015,"ﾌｸｵｶｹﾝ","ﾌｸｵｶｼｻﾜﾗｸ","ﾑﾛﾐ","福岡県","福岡市早良区","室見",0,0,1,0,0,0]
[40137,814,8140006,"ﾌｸｵｶｹﾝ","ﾌｸｵｶｼｻﾜﾗｸ","ﾓﾓﾁ","福岡県","福岡市早良区","百道",0,0,1,0,0,0]
[40137,814,8140001,"ﾌｸｵｶｹﾝ","ﾌｸｵｶｼｻﾜﾗｸ","ﾓﾓﾁﾊﾏ","福岡県","福岡市早良区","百道浜",0,0,1,0,0,0]
[40137,814,8140014,"ﾌｸｵｶｹﾝ","ﾌｸｵｶｼｻﾜﾗｸ","ﾔﾖｲ","福岡県","福岡市早良区","弥生",0,0,1,0,0,0]
[40137,81111,8111111,"ﾌｸｵｶｹﾝ","ﾌｸｵｶｼｻﾜﾗｸ","ﾜｷﾔﾏ","福岡県","福岡市早良区","脇山",0,0,1,0,0,0]

{"sheet":"写真縮小用","index":15,"n_rows":11,"n_cols":9,"rows_kept":11,"cut":false,"hidden":true,"merged":[[2,0,3,0]]}
[]
[]
[]
[]
[null,null,null,null,null,null,null,null,"□"]
[null,null,null,null,null,null,null,null,"☑"]
[]
[]
[]
[]
[null,"写真貼付"]

{"sheet":"図面縮小用","index":16,"n_rows":0,"n_cols":0,"rows_kept":0,"cut":false,"hidden":true,"merged":[]}